Organisation Code,Organisation Label,Effective Date,Organisational Unit,Service Division Label,Category Internal Name,Purpose,Detailed Expenditure Code,Payment Date,Transaction Number,Irrecoverable VAT Amount,Amount,Capital Or Revenue,Benificiary Name,Procurement Card
Http://opendatacommunities.org/id/metropolitan-district-council/leeds,Leeds City Council,30/06/2019,Resources and Housing,Leeds Building Services,Supplies and Services,Operational Materials,205,21/06/2019,1906-00001,0.00,76.68,R,A & A Electrical Distributors Ltd,No
Http://opendatacommunities.org/id/metropolitan-district-council/leeds,Leeds City Council,30/06/2019,Adults and Health,Services For Older People Under 65 P/Dis,Third Party Payments,Sheltered Accommodation,569,26/06/2019,1906-00002,0.00,4500.00,R,A & V Transitional Homes,No
Http://opendatacommunities.org/id/metropolitan-district-council/leeds,Leeds City Council,30/06/2019,Communities and Environment,Elections  Licensing and Registration,Income,Admissions  Booking Fees & Ticket Sales,933,27/06/2019,1906-00003,0.00,295.00,R,REDACTED PERSONAL DATA,No
Http://opendatacommunities.org/id/metropolitan-district-council/leeds,Leeds City Council,30/06/2019,Resources and Housing,HRA Housing Leeds,Capital,Other Costs,7,27/06/2019,1906-00004,0.00,100.00,C,REDACTED PERSONAL DATA,No
Http://opendatacommunities.org/id/metropolitan-district-council/leeds,Leeds City Council,30/06/2019,Resources and Housing,HRA Housing Leeds,Capital,Other Costs,7,20/06/2019,1906-00005,0.00,100.00,C,REDACTED PERSONAL DATA,No
Http://opendatacommunities.org/id/metropolitan-district-council/leeds,Leeds City Council,30/06/2019,Children and Families,Social Care,Third Party Payments,Services Rendered By Other Organisations,511,13/06/2019,1906-00006,0.00,69.69,R,REDACTED PERSONAL DATA,No
Http://opendatacommunities.org/id/metropolitan-district-council/leeds,Leeds City Council,30/06/2019,City Development,Highways,Transport,Plant Hire - By Directorate,305,06/06/2019,1906-00007,0.00,283.80,R,A C Entertainment Technologies Ltd,No
Http://opendatacommunities.org/id/metropolitan-district-council/leeds,Leeds City Council,30/06/2019,City Development,Libraries  Arts & Heritage,Supplies and Services,Other Hired And Contracted Services,265,07/06/2019,1906-00008,0.00,2307.80,R,A C Entertainment Technologies Ltd,No
Http://opendatacommunities.org/id/metropolitan-district-council/leeds,Leeds City Council,30/06/2019,Children and Families,Social Care,Third Party Payments,Services Rendered By Other Organisations,511,07/06/2019,1906-00009,0.00,89.44,R,REDACTED PERSONAL DATA,No
Http://opendatacommunities.org/id/metropolitan-district-council/leeds,Leeds City Council,30/06/2019,Children and Families,Social Care,Third Party Payments,Services Rendered By Other Organisations,511,05/06/2019,1906-00010,0.00,202.80,R,REDACTED PERSONAL DATA,No
Http://opendatacommunities.org/id/metropolitan-district-council/leeds,Leeds City Council,30/06/2019,Children and Families,Social Care,Third Party Payments,Services Rendered By Other Organisations,511,07/06/2019,1906-00011,0.00,838.50,R,REDACTED PERSONAL DATA,No
Http://opendatacommunities.org/id/metropolitan-district-council/leeds,Leeds City Council,30/06/2019,Resources and Housing,HRA Housing Leeds,Capital,Construction,3,04/06/2019,1906-00012,0.00,81559.30,C,A Connolly Limited,No
Http://opendatacommunities.org/id/metropolitan-district-council/leeds,Leeds City Council,30/06/2019,Resources and Housing,HRA Housing Leeds,Capital,Construction,3,05/06/2019,1906-00013,0.00,15329.06,C,A Connolly Limited,No
Http://opendatacommunities.org/id/metropolitan-district-council/leeds,Leeds City Council,30/06/2019,Resources and Housing,HRA Housing Leeds,Capital,Construction,3,20/06/2019,1906-00014,0.00,98255.74,C,A Connolly Limited,No
Http://opendatacommunities.org/id/metropolitan-district-council/leeds,Leeds City Council,30/06/2019,Resources and Housing,Leeds Building Services,Supplies and Services,Other Hired And Contracted Services,265,20/06/2019,1906-00015,0.00,85.00,R,A Coole Electrical Ltd,No
Http://opendatacommunities.org/id/metropolitan-district-council/leeds,Leeds City Council,30/06/2019,Children and Families,Social Care,Third Party Payments,Services Rendered By Voluntary Sector,505,05/06/2019,1906-00016,0.00,1392.56,R,REDACTED PERSONAL DATA,No
Http://opendatacommunities.org/id/metropolitan-district-council/leeds,Leeds City Council,30/06/2019,Children and Families,Social Care,Third Party Payments,Services Rendered By Other Organisations,511,07/06/2019,1906-00017,0.00,5455.84,R,REDACTED PERSONAL DATA,No
Http://opendatacommunities.org/id/metropolitan-district-council/leeds,Leeds City Council,30/06/2019,Children and Families,Social Care,Third Party Payments,Services Rendered By Voluntary Sector,505,13/06/2019,1906-00018,0.00,752.62,R,REDACTED PERSONAL DATA,No
Http://opendatacommunities.org/id/metropolitan-district-council/leeds,Leeds City Council,30/06/2019,Resources and Housing,Commercial Services  ,Supplies and Services,Food & Drink,231,29/05/2019,1906-00019,0.00,32640.14,R,A F Blakemore & Son Ltd,Yes
Http://opendatacommunities.org/id/metropolitan-district-council/leeds,Leeds City Council,30/06/2019,Children and Families,Social Care,Third Party Payments,Services Rendered By Other Organisations,511,07/06/2019,1906-00020,0.00,1431.04,R,REDACTED PERSONAL DATA,No
Http://opendatacommunities.org/id/metropolitan-district-council/leeds,Leeds City Council,30/06/2019,Children and Families,Social Care,Third Party Payments,Services Rendered By Other Organisations,511,07/06/2019,1906-00021,0.00,335.40,R,REDACTED PERSONAL DATA,No
Http://opendatacommunities.org/id/metropolitan-district-council/leeds,Leeds City Council,30/06/2019,Children and Families,Social Care,Third Party Payments,Services Rendered By Other Organisations,511,13/06/2019,1906-00022,0.00,418.12,R,REDACTED PERSONAL DATA,No
Http://opendatacommunities.org/id/metropolitan-district-council/leeds,Leeds City Council,30/06/2019,Resources and Housing,HRA Housing Leeds,Capital,Other Costs,7,24/06/2019,1906-00023,0.00,100.00,C,REDACTED PERSONAL DATA,No
Http://opendatacommunities.org/id/metropolitan-district-council/leeds,Leeds City Council,30/06/2019,Children and Families,Social Care,Third Party Payments,Services Rendered By Other Organisations,511,07/06/2019,1906-00024,0.00,167.70,R,REDACTED PERSONAL DATA,No
Http://opendatacommunities.org/id/metropolitan-district-council/leeds,Leeds City Council,30/06/2019,Children and Families,Social Care,Third Party Payments,Services Rendered By Other Organisations,511,07/06/2019,1906-00025,0.00,178.88,R,REDACTED PERSONAL DATA,No
Http://opendatacommunities.org/id/metropolitan-district-council/leeds,Leeds City Council,30/06/2019,Children and Families,Social Care,Third Party Payments,Services Rendered By Other Organisations,511,07/06/2019,1906-00026,0.00,335.40,R,REDACTED PERSONAL DATA,No
Http://opendatacommunities.org/id/metropolitan-district-council/leeds,Leeds City Council,30/06/2019,Children and Families,Social Care,Third Party Payments,Services Rendered By Other Organisations,511,13/06/2019,1906-00027,0.00,278.75,R,REDACTED PERSONAL DATA,No
Http://opendatacommunities.org/id/metropolitan-district-council/leeds,Leeds City Council,30/06/2019,City Development,Libraries  Arts & Heritage,Supplies and Services,Other Hired And Contracted Services,265,28/06/2019,1906-00028,0.00,365.00,R,REDACTED COMMERCIAL CONFIDENTIALITY,No
Http://opendatacommunities.org/id/metropolitan-district-council/leeds,Leeds City Council,30/06/2019,Children and Families,Social Care  ,Supplies and Services,Office Consumables,210,23/05/2019,1906-00029,0.00,54.99,R,A J Fishing Tackle,Yes
Http://opendatacommunities.org/id/metropolitan-district-council/leeds,Leeds City Council,30/06/2019,Resources and Housing,Leeds Building Services,Supplies and Services,Operational Materials,205,03/06/2019,1906-00030,0.00,82.50,R,A J H  Pump Supply & Repair Ltd,No
Http://opendatacommunities.org/id/metropolitan-district-council/leeds,Leeds City Council,30/06/2019,Resources and Housing,Leeds Building Services,Supplies and Services,Operational Materials,205,03/06/2019,1906-00031,0.00,897.00,R,A J H  Pump Supply & Repair Ltd,No
Http://opendatacommunities.org/id/metropolitan-district-council/leeds,Leeds City Council,30/06/2019,Resources and Housing,Leeds Building Services,Supplies and Services,Operational Materials,205,03/06/2019,1906-00032,0.00,40.96,R,A J H  Pump Supply & Repair Ltd,No
Http://opendatacommunities.org/id/metropolitan-district-council/leeds,Leeds City Council,30/06/2019,Resources and Housing,Leeds Building Services,Supplies and Services,Operational Materials,205,03/06/2019,1906-00033,0.00,29.00,R,A J H  Pump Supply & Repair Ltd,No
Http://opendatacommunities.org/id/metropolitan-district-council/leeds,Leeds City Council,30/06/2019,Resources and Housing,Leeds Building Services,Supplies and Services,Operational Materials,205,06/06/2019,1906-00034,0.00,290.00,R,A J H  Pump Supply & Repair Ltd,No
Http://opendatacommunities.org/id/metropolitan-district-council/leeds,Leeds City Council,30/06/2019,Resources and Housing,Leeds Building Services,Supplies and Services,Operational Materials,205,06/06/2019,1906-00035,0.00,90.94,R,A J H  Pump Supply & Repair Ltd,No
Http://opendatacommunities.org/id/metropolitan-district-council/leeds,Leeds City Council,30/06/2019,Resources and Housing,Leeds Building Services,Supplies and Services,Operational Materials,205,10/06/2019,1906-00036,0.00,50.00,R,A J H  Pump Supply & Repair Ltd,No
Http://opendatacommunities.org/id/metropolitan-district-council/leeds,Leeds City Council,30/06/2019,Resources and Housing,Leeds Building Services,Supplies and Services,Operational Materials,205,10/06/2019,1906-00037,0.00,104.15,R,A J H  Pump Supply & Repair Ltd,No
Http://opendatacommunities.org/id/metropolitan-district-council/leeds,Leeds City Council,30/06/2019,Resources and Housing,Leeds Building Services,Supplies and Services,Operational Materials,205,10/06/2019,1906-00038,0.00,245.45,R,A J H  Pump Supply & Repair Ltd,No
Http://opendatacommunities.org/id/metropolitan-district-council/leeds,Leeds City Council,30/06/2019,Resources and Housing,Leeds Building Services,Supplies and Services,Operational Materials,205,10/06/2019,1906-00039,0.00,19.20,R,A J H  Pump Supply & Repair Ltd,No
Http://opendatacommunities.org/id/metropolitan-district-council/leeds,Leeds City Council,30/06/2019,Resources and Housing,Leeds Building Services,Supplies and Services,Operational Materials,205,10/06/2019,1906-00040,0.00,99.39,R,A J H  Pump Supply & Repair Ltd,No
Http://opendatacommunities.org/id/metropolitan-district-council/leeds,Leeds City Council,30/06/2019,Resources and Housing,Leeds Building Services,Supplies and Services,Operational Materials,205,10/06/2019,1906-00041,0.00,420.00,R,A J H  Pump Supply & Repair Ltd,No
Http://opendatacommunities.org/id/metropolitan-district-council/leeds,Leeds City Council,30/06/2019,Resources and Housing,Leeds Building Services,Supplies and Services,Operational Materials,205,10/06/2019,1906-00042,0.00,708.95,R,A J H  Pump Supply & Repair Ltd,No
Http://opendatacommunities.org/id/metropolitan-district-council/leeds,Leeds City Council,30/06/2019,Resources and Housing,Leeds Building Services,Supplies and Services,Operational Materials,205,10/06/2019,1906-00043,0.00,45.74,R,A J H  Pump Supply & Repair Ltd,No
Http://opendatacommunities.org/id/metropolitan-district-council/leeds,Leeds City Council,30/06/2019,Resources and Housing,Leeds Building Services,Supplies and Services,Operational Materials,205,13/06/2019,1906-00044,0.00,40.06,R,A J H  Pump Supply & Repair Ltd,No
Http://opendatacommunities.org/id/metropolitan-district-council/leeds,Leeds City Council,30/06/2019,Resources and Housing,Leeds Building Services,Supplies and Services,Operational Materials,205,13/06/2019,1906-00045,0.00,173.00,R,A J H  Pump Supply & Repair Ltd,No
Http://opendatacommunities.org/id/metropolitan-district-council/leeds,Leeds City Council,30/06/2019,Resources and Housing,Leeds Building Services,Supplies and Services,Operational Materials,205,13/06/2019,1906-00046,0.00,335.91,R,A J H  Pump Supply & Repair Ltd,No
Http://opendatacommunities.org/id/metropolitan-district-council/leeds,Leeds City Council,30/06/2019,Resources and Housing,Leeds Building Services,Supplies and Services,Operational Materials,205,13/06/2019,1906-00047,0.00,495.00,R,A J H  Pump Supply & Repair Ltd,No
Http://opendatacommunities.org/id/metropolitan-district-council/leeds,Leeds City Council,30/06/2019,Resources and Housing,Leeds Building Services,Supplies and Services,Operational Materials,205,13/06/2019,1906-00048,0.00,54.00,R,A J H  Pump Supply & Repair Ltd,No
Http://opendatacommunities.org/id/metropolitan-district-council/leeds,Leeds City Council,30/06/2019,Resources and Housing,Leeds Building Services,Supplies and Services,Operational Materials,205,13/06/2019,1906-00049,0.00,68.23,R,A J H  Pump Supply & Repair Ltd,No
Http://opendatacommunities.org/id/metropolitan-district-council/leeds,Leeds City Council,30/06/2019,Resources and Housing,Leeds Building Services,Supplies and Services,Operational Materials,205,13/06/2019,1906-00050,0.00,400.97,R,A J H  Pump Supply & Repair Ltd,No
Http://opendatacommunities.org/id/metropolitan-district-council/leeds,Leeds City Council,30/06/2019,Resources and Housing,Leeds Building Services,Supplies and Services,Operational Materials,205,13/06/2019,1906-00051,0.00,138.83,R,A J H  Pump Supply & Repair Ltd,No
Http://opendatacommunities.org/id/metropolitan-district-council/leeds,Leeds City Council,30/06/2019,Resources and Housing,Leeds Building Services,Supplies and Services,Operational Materials,205,13/06/2019,1906-00052,0.00,33.99,R,A J H  Pump Supply & Repair Ltd,No
Http://opendatacommunities.org/id/metropolitan-district-council/leeds,Leeds City Council,30/06/2019,Resources and Housing,Leeds Building Services,Supplies and Services,Operational Materials,205,13/06/2019,1906-00053,0.00,35.40,R,A J H  Pump Supply & Repair Ltd,No
Http://opendatacommunities.org/id/metropolitan-district-council/leeds,Leeds City Council,30/06/2019,Resources and Housing,Leeds Building Services,Supplies and Services,Operational Materials,205,13/06/2019,1906-00054,0.00,220.00,R,A J H  Pump Supply & Repair Ltd,No
Http://opendatacommunities.org/id/metropolitan-district-council/leeds,Leeds City Council,30/06/2019,Resources and Housing,Leeds Building Services,Supplies and Services,Operational Materials,205,13/06/2019,1906-00055,0.00,108.20,R,A J H  Pump Supply & Repair Ltd,No
Http://opendatacommunities.org/id/metropolitan-district-council/leeds,Leeds City Council,30/06/2019,Resources and Housing,Leeds Building Services,Supplies and Services,Operational Materials,205,13/06/2019,1906-00056,0.00,192.59,R,A J H  Pump Supply & Repair Ltd,No
Http://opendatacommunities.org/id/metropolitan-district-council/leeds,Leeds City Council,30/06/2019,Resources and Housing,Leeds Building Services,Supplies and Services,Operational Materials,205,13/06/2019,1906-00057,0.00,54.75,R,A J H  Pump Supply & Repair Ltd,No
Http://opendatacommunities.org/id/metropolitan-district-council/leeds,Leeds City Council,30/06/2019,Resources and Housing,Leeds Building Services,Supplies and Services,Operational Materials,205,13/06/2019,1906-00058,0.00,55.00,R,A J H  Pump Supply & Repair Ltd,No
Http://opendatacommunities.org/id/metropolitan-district-council/leeds,Leeds City Council,30/06/2019,Resources and Housing,Leeds Building Services,Supplies and Services,Operational Materials,205,13/06/2019,1906-00059,0.00,97.95,R,A J H  Pump Supply & Repair Ltd,No
Http://opendatacommunities.org/id/metropolitan-district-council/leeds,Leeds City Council,30/06/2019,Resources and Housing,Leeds Building Services,Supplies and Services,Operational Materials,205,13/06/2019,1906-00060,0.00,100.00,R,A J H  Pump Supply & Repair Ltd,No
Http://opendatacommunities.org/id/metropolitan-district-council/leeds,Leeds City Council,30/06/2019,Resources and Housing,Leeds Building Services,Supplies and Services,Operational Materials,205,13/06/2019,1906-00061,0.00,44.50,R,A J H  Pump Supply & Repair Ltd,No
Http://opendatacommunities.org/id/metropolitan-district-council/leeds,Leeds City Council,30/06/2019,Resources and Housing,Leeds Building Services,Supplies and Services,Operational Materials,205,13/06/2019,1906-00062,0.00,45.76,R,A J H  Pump Supply & Repair Ltd,No
Http://opendatacommunities.org/id/metropolitan-district-council/leeds,Leeds City Council,30/06/2019,Resources and Housing,Leeds Building Services,Supplies and Services,Operational Materials,205,13/06/2019,1906-00063,0.00,43.75,R,A J H  Pump Supply & Repair Ltd,No
Http://opendatacommunities.org/id/metropolitan-district-council/leeds,Leeds City Council,30/06/2019,Resources and Housing,Leeds Building Services,Supplies and Services,Operational Materials,205,14/06/2019,1906-00064,0.00,36.50,R,A J H  Pump Supply & Repair Ltd,No
Http://opendatacommunities.org/id/metropolitan-district-council/leeds,Leeds City Council,30/06/2019,Resources and Housing,Leeds Building Services,Supplies and Services,Operational Materials,205,14/06/2019,1906-00065,0.00,335.00,R,A J H  Pump Supply & Repair Ltd,No
Http://opendatacommunities.org/id/metropolitan-district-council/leeds,Leeds City Council,30/06/2019,Resources and Housing,Leeds Building Services,Supplies and Services,Operational Materials,205,19/06/2019,1906-00066,0.00,484.20,R,A J H  Pump Supply & Repair Ltd,No
Http://opendatacommunities.org/id/metropolitan-district-council/leeds,Leeds City Council,30/06/2019,Resources and Housing,Leeds Building Services,Supplies and Services,Operational Materials,205,19/06/2019,1906-00067,0.00,66.90,R,A J H  Pump Supply & Repair Ltd,No
Http://opendatacommunities.org/id/metropolitan-district-council/leeds,Leeds City Council,30/06/2019,Resources and Housing,Leeds Building Services,Supplies and Services,Operational Materials,205,19/06/2019,1906-00068,0.00,129.95,R,A J H  Pump Supply & Repair Ltd,No
Http://opendatacommunities.org/id/metropolitan-district-council/leeds,Leeds City Council,30/06/2019,Resources and Housing,Leeds Building Services,Supplies and Services,Operational Materials,205,19/06/2019,1906-00069,0.00,639.26,R,A J H  Pump Supply & Repair Ltd,No
Http://opendatacommunities.org/id/metropolitan-district-council/leeds,Leeds City Council,30/06/2019,Resources and Housing,Leeds Building Services,Supplies and Services,Operational Materials,205,19/06/2019,1906-00070,0.00,23.85,R,A J H  Pump Supply & Repair Ltd,No
Http://opendatacommunities.org/id/metropolitan-district-council/leeds,Leeds City Council,30/06/2019,Resources and Housing,Leeds Building Services,Supplies and Services,Operational Materials,205,19/06/2019,1906-00071,0.00,697.83,R,A J H  Pump Supply & Repair Ltd,No
Http://opendatacommunities.org/id/metropolitan-district-council/leeds,Leeds City Council,30/06/2019,Resources and Housing,Leeds Building Services,Supplies and Services,Operational Materials,205,19/06/2019,1906-00072,0.00,610.00,R,A J H  Pump Supply & Repair Ltd,No
Http://opendatacommunities.org/id/metropolitan-district-council/leeds,Leeds City Council,30/06/2019,Resources and Housing,Leeds Building Services,Supplies and Services,Operational Materials,205,19/06/2019,1906-00073,0.00,117.00,R,A J H  Pump Supply & Repair Ltd,No
Http://opendatacommunities.org/id/metropolitan-district-council/leeds,Leeds City Council,30/06/2019,Resources and Housing,Leeds Building Services,Supplies and Services,Operational Materials,205,19/06/2019,1906-00074,0.00,347.50,R,A J H  Pump Supply & Repair Ltd,No
Http://opendatacommunities.org/id/metropolitan-district-council/leeds,Leeds City Council,30/06/2019,Resources and Housing,Leeds Building Services,Supplies and Services,Operational Materials,205,19/06/2019,1906-00075,0.00,176.25,R,A J H  Pump Supply & Repair Ltd,No
Http://opendatacommunities.org/id/metropolitan-district-council/leeds,Leeds City Council,30/06/2019,Resources and Housing,Leeds Building Services,Supplies and Services,Operational Materials,205,19/06/2019,1906-00076,0.00,575.40,R,A J H  Pump Supply & Repair Ltd,No
Http://opendatacommunities.org/id/metropolitan-district-council/leeds,Leeds City Council,30/06/2019,Resources and Housing,Leeds Building Services,Supplies and Services,Operational Materials,205,19/06/2019,1906-00077,0.00,980.00,R,A J H  Pump Supply & Repair Ltd,No
Http://opendatacommunities.org/id/metropolitan-district-council/leeds,Leeds City Council,30/06/2019,Resources and Housing,Leeds Building Services,Supplies and Services,Operational Materials,205,19/06/2019,1906-00078,0.00,157.67,R,A J H  Pump Supply & Repair Ltd,No
Http://opendatacommunities.org/id/metropolitan-district-council/leeds,Leeds City Council,30/06/2019,Resources and Housing,Leeds Building Services,Supplies and Services,Operational Materials,205,19/06/2019,1906-00079,0.00,37.90,R,A J H  Pump Supply & Repair Ltd,No
Http://opendatacommunities.org/id/metropolitan-district-council/leeds,Leeds City Council,30/06/2019,Resources and Housing,Leeds Building Services,Supplies and Services,Operational Materials,205,19/06/2019,1906-00080,0.00,196.87,R,A J H  Pump Supply & Repair Ltd,No
Http://opendatacommunities.org/id/metropolitan-district-council/leeds,Leeds City Council,30/06/2019,Resources and Housing,Leeds Building Services,Supplies and Services,Operational Materials,205,19/06/2019,1906-00081,0.00,165.00,R,A J H  Pump Supply & Repair Ltd,No
Http://opendatacommunities.org/id/metropolitan-district-council/leeds,Leeds City Council,30/06/2019,Resources and Housing,Leeds Building Services,Supplies and Services,Operational Materials,205,19/06/2019,1906-00082,0.00,193.55,R,A J H  Pump Supply & Repair Ltd,No
Http://opendatacommunities.org/id/metropolitan-district-council/leeds,Leeds City Council,30/06/2019,Resources and Housing,Leeds Building Services,Supplies and Services,Operational Materials,205,19/06/2019,1906-00083,0.00,36.96,R,A J H  Pump Supply & Repair Ltd,No
Http://opendatacommunities.org/id/metropolitan-district-council/leeds,Leeds City Council,30/06/2019,Resources and Housing,Leeds Building Services,Supplies and Services,Operational Materials,205,19/06/2019,1906-00084,0.00,30.12,R,A J H  Pump Supply & Repair Ltd,No
Http://opendatacommunities.org/id/metropolitan-district-council/leeds,Leeds City Council,30/06/2019,Resources and Housing,Leeds Building Services,Supplies and Services,Operational Materials,205,19/06/2019,1906-00085,0.00,826.00,R,A J H  Pump Supply & Repair Ltd,No
Http://opendatacommunities.org/id/metropolitan-district-council/leeds,Leeds City Council,30/06/2019,Resources and Housing,Leeds Building Services,Supplies and Services,Operational Materials,205,19/06/2019,1906-00086,0.00,26.05,R,A J H  Pump Supply & Repair Ltd,No
Http://opendatacommunities.org/id/metropolitan-district-council/leeds,Leeds City Council,30/06/2019,Resources and Housing,Leeds Building Services,Supplies and Services,Operational Materials,205,19/06/2019,1906-00087,0.00,107.00,R,A J H  Pump Supply & Repair Ltd,No
Http://opendatacommunities.org/id/metropolitan-district-council/leeds,Leeds City Council,30/06/2019,Resources and Housing,Leeds Building Services,Supplies and Services,Operational Materials,205,20/06/2019,1906-00088,0.00,82.50,R,A J H  Pump Supply & Repair Ltd,No
Http://opendatacommunities.org/id/metropolitan-district-council/leeds,Leeds City Council,30/06/2019,Resources and Housing,Leeds Building Services,Supplies and Services,Operational Materials,205,20/06/2019,1906-00089,0.00,39.50,R,A J H  Pump Supply & Repair Ltd,No
Http://opendatacommunities.org/id/metropolitan-district-council/leeds,Leeds City Council,30/06/2019,Resources and Housing,Leeds Building Services,Supplies and Services,Operational Materials,205,20/06/2019,1906-00090,0.00,59.00,R,A J H  Pump Supply & Repair Ltd,No
Http://opendatacommunities.org/id/metropolitan-district-council/leeds,Leeds City Council,30/06/2019,Resources and Housing,Leeds Building Services,Supplies and Services,Operational Materials,205,20/06/2019,1906-00091,0.00,490.00,R,A J H  Pump Supply & Repair Ltd,No
Http://opendatacommunities.org/id/metropolitan-district-council/leeds,Leeds City Council,30/06/2019,Resources and Housing,Leeds Building Services,Supplies and Services,Operational Materials,205,20/06/2019,1906-00092,0.00,193.95,R,A J H  Pump Supply & Repair Ltd,No
Http://opendatacommunities.org/id/metropolitan-district-council/leeds,Leeds City Council,30/06/2019,Resources and Housing,Leeds Building Services,Supplies and Services,Operational Materials,205,20/06/2019,1906-00093,0.00,119.96,R,A J H  Pump Supply & Repair Ltd,No
Http://opendatacommunities.org/id/metropolitan-district-council/leeds,Leeds City Council,30/06/2019,Resources and Housing,Leeds Building Services,Supplies and Services,Operational Materials,205,20/06/2019,1906-00094,0.00,230.95,R,A J H  Pump Supply & Repair Ltd,No
Http://opendatacommunities.org/id/metropolitan-district-council/leeds,Leeds City Council,30/06/2019,Resources and Housing,Leeds Building Services,Supplies and Services,Operational Materials,205,20/06/2019,1906-00095,0.00,109.05,R,A J H  Pump Supply & Repair Ltd,No
Http://opendatacommunities.org/id/metropolitan-district-council/leeds,Leeds City Council,30/06/2019,Resources and Housing,Leeds Building Services,Supplies and Services,Operational Materials,205,20/06/2019,1906-00096,0.00,164.65,R,A J H  Pump Supply & Repair Ltd,No
Http://opendatacommunities.org/id/metropolitan-district-council/leeds,Leeds City Council,30/06/2019,Resources and Housing,Leeds Building Services,Supplies and Services,Operational Materials,205,20/06/2019,1906-00097,0.00,201.46,R,A J H  Pump Supply & Repair Ltd,No
Http://opendatacommunities.org/id/metropolitan-district-council/leeds,Leeds City Council,30/06/2019,Resources and Housing,Leeds Building Services,Supplies and Services,Operational Materials,205,20/06/2019,1906-00098,0.00,398.02,R,A J H  Pump Supply & Repair Ltd,No
Http://opendatacommunities.org/id/metropolitan-district-council/leeds,Leeds City Council,30/06/2019,Resources and Housing,Leeds Building Services,Supplies and Services,Operational Materials,205,20/06/2019,1906-00099,0.00,160.00,R,A J H  Pump Supply & Repair Ltd,No
Http://opendatacommunities.org/id/metropolitan-district-council/leeds,Leeds City Council,30/06/2019,Resources and Housing,Leeds Building Services,Supplies and Services,Operational Materials,205,20/06/2019,1906-00100,0.00,85.00,R,A J H  Pump Supply & Repair Ltd,No
Http://opendatacommunities.org/id/metropolitan-district-council/leeds,Leeds City Council,30/06/2019,Resources and Housing,Leeds Building Services,Supplies and Services,Operational Materials,205,20/06/2019,1906-00101,0.00,102.90,R,A J H  Pump Supply & Repair Ltd,No
Http://opendatacommunities.org/id/metropolitan-district-council/leeds,Leeds City Council,30/06/2019,Resources and Housing,Leeds Building Services,Supplies and Services,Operational Materials,205,27/06/2019,1906-00102,0.00,622.50,R,A J H  Pump Supply & Repair Ltd,No
Http://opendatacommunities.org/id/metropolitan-district-council/leeds,Leeds City Council,30/06/2019,Resources and Housing,Leeds Building Services,Supplies and Services,Operational Materials,205,27/06/2019,1906-00103,0.00,305.42,R,A J H  Pump Supply & Repair Ltd,No
Http://opendatacommunities.org/id/metropolitan-district-council/leeds,Leeds City Council,30/06/2019,Resources and Housing,Leeds Building Services,Supplies and Services,Operational Materials,205,27/06/2019,1906-00104,0.00,71.40,R,A J H  Pump Supply & Repair Ltd,No
Http://opendatacommunities.org/id/metropolitan-district-council/leeds,Leeds City Council,30/06/2019,Resources and Housing,Leeds Building Services,Supplies and Services,Operational Materials,205,27/06/2019,1906-00105,0.00,25.00,R,A J H  Pump Supply & Repair Ltd,No
Http://opendatacommunities.org/id/metropolitan-district-council/leeds,Leeds City Council,30/06/2019,Resources and Housing,Leeds Building Services,Supplies and Services,Operational Materials,205,27/06/2019,1906-00106,0.00,51.55,R,A J H  Pump Supply & Repair Ltd,No
Http://opendatacommunities.org/id/metropolitan-district-council/leeds,Leeds City Council,30/06/2019,Resources and Housing,Leeds Building Services,Supplies and Services,Operational Materials,205,27/06/2019,1906-00107,0.00,145.75,R,A J H  Pump Supply & Repair Ltd,No
Http://opendatacommunities.org/id/metropolitan-district-council/leeds,Leeds City Council,30/06/2019,Resources and Housing,Leeds Building Services,Supplies and Services,Operational Materials,205,27/06/2019,1906-00108,0.00,85.00,R,A J H  Pump Supply & Repair Ltd,No
Http://opendatacommunities.org/id/metropolitan-district-council/leeds,Leeds City Council,30/06/2019,Resources and Housing,Leeds Building Services,Supplies and Services,Operational Materials,205,27/06/2019,1906-00109,0.00,27.20,R,A J H  Pump Supply & Repair Ltd,No
Http://opendatacommunities.org/id/metropolitan-district-council/leeds,Leeds City Council,30/06/2019,Resources and Housing,Leeds Building Services,Supplies and Services,Operational Materials,205,27/06/2019,1906-00110,0.00,151.15,R,A J H  Pump Supply & Repair Ltd,No
Http://opendatacommunities.org/id/metropolitan-district-council/leeds,Leeds City Council,30/06/2019,Resources and Housing,Leeds Building Services,Supplies and Services,Operational Materials,205,27/06/2019,1906-00111,0.00,305.66,R,A J H  Pump Supply & Repair Ltd,No
Http://opendatacommunities.org/id/metropolitan-district-council/leeds,Leeds City Council,30/06/2019,Resources and Housing,Leeds Building Services,Supplies and Services,Operational Materials,205,27/06/2019,1906-00112,0.00,213.82,R,A J H  Pump Supply & Repair Ltd,No
Http://opendatacommunities.org/id/metropolitan-district-council/leeds,Leeds City Council,30/06/2019,Resources and Housing,Leeds Building Services,Supplies and Services,Operational Materials,205,27/06/2019,1906-00113,0.00,200.61,R,A J H  Pump Supply & Repair Ltd,No
Http://opendatacommunities.org/id/metropolitan-district-council/leeds,Leeds City Council,30/06/2019,Resources and Housing,Leeds Building Services,Supplies and Services,Operational Materials,205,27/06/2019,1906-00114,0.00,620.98,R,A J H  Pump Supply & Repair Ltd,No
Http://opendatacommunities.org/id/metropolitan-district-council/leeds,Leeds City Council,30/06/2019,Resources and Housing,Leeds Building Services,Supplies and Services,Operational Materials,205,28/06/2019,1906-00115,0.00,1045.00,R,A J H  Pump Supply & Repair Ltd,No
Http://opendatacommunities.org/id/metropolitan-district-council/leeds,Leeds City Council,30/06/2019,Resources and Housing,HRA Housing Leeds,Capital,Other Costs,7,18/06/2019,1906-00116,0.00,80.00,C,REDACTED PERSONAL DATA,No
Http://opendatacommunities.org/id/metropolitan-district-council/leeds,Leeds City Council,30/06/2019,Resources and Housing,HRA Housing Leeds,Capital,Other Costs,7,27/06/2019,1906-00117,0.00,80.00,C,REDACTED PERSONAL DATA,No
Http://opendatacommunities.org/id/metropolitan-district-council/leeds,Leeds City Council,30/06/2019,Children and Families,Social Care,Third Party Payments,Services Rendered By Other Organisations,511,05/06/2019,1906-00118,0.00,608.40,R,REDACTED PERSONAL DATA,No
Http://opendatacommunities.org/id/metropolitan-district-council/leeds,Leeds City Council,30/06/2019,Children and Families,Social Care,Third Party Payments,Services Rendered By Other Organisations,511,07/06/2019,1906-00119,0.00,2224.82,R,REDACTED PERSONAL DATA,No
Http://opendatacommunities.org/id/metropolitan-district-council/leeds,Leeds City Council,30/06/2019,Children and Families,Social Care,Third Party Payments,Services Rendered By Other Organisations,511,13/06/2019,1906-00120,0.00,167.25,R,REDACTED PERSONAL DATA,No
Http://opendatacommunities.org/id/metropolitan-district-council/leeds,Leeds City Council,30/06/2019,City Development,Recreation,Income,Sporting & Other Recreational Fees,928,26/06/2019,1906-00121,0.00,24.95,R,REDACTED PERSONAL DATA,No
Http://opendatacommunities.org/id/metropolitan-district-council/leeds,Leeds City Council,30/06/2019,Children and Families,Social Care,Third Party Payments,Section 17,551,04/06/2019,1906-00122,0.00,770.00,R,A Little Something Extra Ltd,No
Http://opendatacommunities.org/id/metropolitan-district-council/leeds,Leeds City Council,30/06/2019,Communities and Environment,Customer Access,Supplies and Services,Bought In Professional Services,277,11/06/2019,1906-00123,0.00,1440.00,R,A Mohammed,No
Http://opendatacommunities.org/id/metropolitan-district-council/leeds,Leeds City Council,30/06/2019,Resources and Housing,HRA Housing Leeds,Capital,Other Costs,7,24/06/2019,1906-00124,0.00,100.00,C,REDACTED PERSONAL DATA,No
Http://opendatacommunities.org/id/metropolitan-district-council/leeds,Leeds City Council,30/06/2019,Children and Families,Social Care,Third Party Payments,Services Rendered By Other Organisations,511,05/06/2019,1906-00125,0.00,1014.00,R,A Myland,No
Http://opendatacommunities.org/id/metropolitan-district-council/leeds,Leeds City Council,30/06/2019,Children and Families,Social Care,Third Party Payments,Services Rendered By Other Organisations,511,07/06/2019,1906-00126,0.00,1509.30,R,A Myland,No
Http://opendatacommunities.org/id/metropolitan-district-council/leeds,Leeds City Council,30/06/2019,Communities and Environment,Customer Access,Supplies and Services,Bought In Professional Services,277,11/06/2019,1906-00127,0.00,360.00,R,A Namaki,No
Http://opendatacommunities.org/id/metropolitan-district-council/leeds,Leeds City Council,30/06/2019,Communities and Environment,Elections  Licensing and Registration,Income,Admissions  Booking Fees & Ticket Sales,933,06/06/2019,1906-00128,0.00,40.00,R,REDACTED PERSONAL DATA,No
Http://opendatacommunities.org/id/metropolitan-district-council/leeds,Leeds City Council,30/06/2019,Children and Families,Social Care,Third Party Payments,Services Rendered By Other Organisations,511,05/06/2019,1906-00129,0.00,121.68,R,REDACTED PERSONAL DATA,No
Http://opendatacommunities.org/id/metropolitan-district-council/leeds,Leeds City Council,30/06/2019,Children and Families,Social Care,Third Party Payments,Services Rendered By Other Organisations,511,07/06/2019,1906-00130,0.00,436.02,R,REDACTED PERSONAL DATA,No
Http://opendatacommunities.org/id/metropolitan-district-council/leeds,Leeds City Council,30/06/2019,Resources and Housing,Shared Services,Supplies and Services,Other Hired And Contracted Services,265,28/06/2019,1906-00131,0.00,38.00,R,A Star Couriers Ltd,No
Http://opendatacommunities.org/id/metropolitan-district-council/leeds,Leeds City Council,30/06/2019,Communities and Environment,Communities,Supplies and Services,Other Hired And Contracted Services,265,28/06/2019,1906-00132,0.00,25.00,R,REDACTED PERSONAL DATA,No
Http://opendatacommunities.org/id/metropolitan-district-council/leeds,Leeds City Council,30/06/2019,Communities and Environment,Communities,Supplies and Services,Other Hired And Contracted Services,265,28/06/2019,1906-00133,0.00,75.00,R,REDACTED PERSONAL DATA,No
Http://opendatacommunities.org/id/metropolitan-district-council/leeds,Leeds City Council,30/06/2019,Children and Families,Social Care,Third Party Payments,Independent Fostering Agencies,509,05/06/2019,1906-00134,0.00,792.00,R,A Taxis,No
Http://opendatacommunities.org/id/metropolitan-district-council/leeds,Leeds City Council,30/06/2019,Children and Families,Social Care,Third Party Payments,Services Rendered By Other Organisations,511,05/06/2019,1906-00135,0.00,202.80,R,REDACTED PERSONAL DATA,No
Http://opendatacommunities.org/id/metropolitan-district-council/leeds,Leeds City Council,30/06/2019,Children and Families,Social Care,Third Party Payments,Services Rendered By Other Organisations,511,07/06/2019,1906-00136,0.00,167.70,R,REDACTED PERSONAL DATA,No
Http://opendatacommunities.org/id/metropolitan-district-council/leeds,Leeds City Council,30/06/2019,Children and Families,Social Care,Third Party Payments,Services Rendered By Other Organisations,511,13/06/2019,1906-00137,0.00,494.20,R,REDACTED PERSONAL DATA,No
Http://opendatacommunities.org/id/metropolitan-district-council/leeds,Leeds City Council,30/06/2019,Children and Families,Social Care,Third Party Payments,Services Rendered By Other Organisations,511,13/06/2019,1906-00138,0.00,83.62,R,REDACTED PERSONAL DATA,No
Http://opendatacommunities.org/id/metropolitan-district-council/leeds,Leeds City Council,30/06/2019,Children and Families,Social Care,Third Party Payments,Services Rendered By Other Organisations,511,07/06/2019,1906-00139,0.00,335.40,R,REDACTED PERSONAL DATA,No
Http://opendatacommunities.org/id/metropolitan-district-council/leeds,Leeds City Council,30/06/2019,Children and Families,Social Care,Third Party Payments,General External Residential Placements,507,05/06/2019,1906-00140,0.00,28542.01,R,A Wilderness Way Ltd,No
Http://opendatacommunities.org/id/metropolitan-district-council/leeds,Leeds City Council,30/06/2019,Children and Families,Social Care,Third Party Payments,General External Residential Placements,507,12/06/2019,1906-00141,0.00,1360.00,R,A Wilderness Way Ltd,No
Http://opendatacommunities.org/id/metropolitan-district-council/leeds,Leeds City Council,30/06/2019,Children and Families,Social Care,Third Party Payments,General External Residential Placements,507,20/06/2019,1906-00142,0.00,18892.33,R,A Wilderness Way Ltd,No
Http://opendatacommunities.org/id/metropolitan-district-council/leeds,Leeds City Council,30/06/2019,Children and Families,Social Care,Third Party Payments,General External Residential Placements,507,20/06/2019,1906-00143,0.00,18422.68,R,A Wilderness Way Ltd,No
Http://opendatacommunities.org/id/metropolitan-district-council/leeds,Leeds City Council,30/06/2019,Children and Families,Social Care,Third Party Payments,General External Residential Placements,507,26/06/2019,1906-00144,0.00,14018.55,R,A Wilderness Way Ltd,No
Http://opendatacommunities.org/id/metropolitan-district-council/leeds,Leeds City Council,30/06/2019,Resources and Housing,HRA Housing Leeds,Capital,Other Costs,7,20/06/2019,1906-00145,0.00,100.00,C,REDACTED PERSONAL DATA,No
Http://opendatacommunities.org/id/metropolitan-district-council/leeds,Leeds City Council,30/06/2019,Resources and Housing,HRA Housing Leeds,Capital,Other Costs,7,12/06/2019,1906-00146,0.00,100.00,C,REDACTED PERSONAL DATA,No
Http://opendatacommunities.org/id/metropolitan-district-council/leeds,Leeds City Council,30/06/2019,Communities and Environment,Waste Management,Capital,Furniture And Equipment,5,21/06/2019,1906-00147,0.00,609.00,C,A&C Weber Uk Ltd,No
Http://opendatacommunities.org/id/metropolitan-district-council/leeds,Leeds City Council,30/06/2019,Communities and Environment,Waste Management,Capital,Furniture And Equipment,5,27/06/2019,1906-00148,0.00,3540.00,C,A&C Weber Uk Ltd,No
Http://opendatacommunities.org/id/metropolitan-district-council/leeds,Leeds City Council,30/06/2019,Children and Families,Learning,Supplies and Services,Office Consumables,210,12/06/2019,1906-00149,0.00,222.00,R,A0 Print Solutions Ltd,No
Http://opendatacommunities.org/id/metropolitan-district-council/leeds,Leeds City Council,30/06/2019,Resources and Housing,Leeds Building Services,Supplies and Services,Other Hired And Contracted Services,265,12/06/2019,1906-00150,0.00,185.00,R,A1 Stair Lift Services,No
Http://opendatacommunities.org/id/metropolitan-district-council/leeds,Leeds City Council,30/06/2019,Communities and Environment,Elections  Licensing and Registration,Income,Admissions  Booking Fees & Ticket Sales,933,27/06/2019,1906-00151,0.00,70.00,R,REDACTED PERSONAL DATA,No
Http://opendatacommunities.org/id/metropolitan-district-council/leeds,Leeds City Council,30/06/2019,City Development,Libraries  Arts & Heritage,Supplies and Services,Bought In Professional Services,277,10/06/2019,1906-00152,0.00,72.44,R,Aardman Animations Ltd,No
Http://opendatacommunities.org/id/metropolitan-district-council/leeds,Leeds City Council As Accountable Body,30/06/2019,Social Services Pooled Budgets,Leeds Community Equip Store Pooled Budgt,Supplies and Services,Other Equipment,203,14/06/2019,1906-00153,0.00,450.00,R,Aat (Gb) Ltd,No
Http://opendatacommunities.org/id/metropolitan-district-council/leeds,Leeds City Council,30/06/2019,Adults and Health,Social Services Support Services,Transport,Public Transport Expenses,310,07/06/2019,1906-00154,0.00,228.00,R,Ab Cars,No
Http://opendatacommunities.org/id/metropolitan-district-council/leeds,Leeds City Council,30/06/2019,Communities and Environment,Parks And Countryside  ,Supplies and Services,Resaleable Materials,204,14/05/2019,1906-00155,0.00,94.26,R,Abacus Cards Ltd,Yes
Http://opendatacommunities.org/id/metropolitan-district-council/leeds,Leeds City Council,30/06/2019,Children and Families,Social Care,Support Services,Legal Disbursements,411,12/06/2019,1906-00156,0.00,17.74,R,Abacus Express Limited,No
Http://opendatacommunities.org/id/metropolitan-district-council/leeds,Leeds City Council,30/06/2019,Children and Families,Social Care,Support Services,Legal Disbursements,411,12/06/2019,1906-00157,0.00,18.28,R,Abacus Express Limited,No
Http://opendatacommunities.org/id/metropolitan-district-council/leeds,Leeds City Council,30/06/2019,Children and Families,Social Care,Support Services,Legal Disbursements,411,19/06/2019,1906-00158,0.00,17.74,R,Abacus Express Limited,No
Http://opendatacommunities.org/id/metropolitan-district-council/leeds,Leeds City Council,30/06/2019,Children and Families,Social Care,Support Services,Legal Disbursements,411,27/06/2019,1906-00159,0.00,32.25,R,Abacus Express Limited,No
Http://opendatacommunities.org/id/metropolitan-district-council/leeds,Leeds City Council,30/06/2019,Adults and Health,Services For Adults Under 65 Mental/Dis,Third Party Payments,Nursing Home,570,26/06/2019,1906-00160,0.00,1852.00,R,Abbey Grange Nursing Home,No
Http://opendatacommunities.org/id/metropolitan-district-council/leeds,Leeds City Council,30/06/2019,Children and Families,Social Care,Premises,Hire of meeting rooms,143,07/06/2019,1906-00161,0.00,50.00,R,Abbey Multi Academy Trust,No
Http://opendatacommunities.org/id/metropolitan-district-council/leeds,Leeds City Council,30/06/2019,Children and Families,Social Care,Supplies and Services,Food & Drink,231,07/06/2019,1906-00162,0.00,216.00,R,Abbey Multi Academy Trust,No
Http://opendatacommunities.org/id/metropolitan-district-council/leeds,Leeds City Council,30/06/2019,Children and Families,Social Care,Supplies and Services,Other Hired And Contracted Services,265,07/06/2019,1906-00163,0.00,19.20,R,Abbey Multi Academy Trust,No
Http://opendatacommunities.org/id/metropolitan-district-council/leeds,Leeds City Council,30/06/2019,Children and Families,Learning,Supplies and Services,Other Hired And Contracted Services,265,07/06/2019,1906-00164,0.00,76.00,R,Abbey Multi Academy Trust,No
Http://opendatacommunities.org/id/metropolitan-district-council/leeds,Leeds City Council,30/06/2019,Children and Families,Learning,Supplies and Services,Other Hired And Contracted Services,265,13/06/2019,1906-00165,0.00,762.72,R,Abbey Multi Academy Trust,No
Http://opendatacommunities.org/id/metropolitan-district-council/leeds,Leeds City Council,30/06/2019,Children and Families,Social Care,Third Party Payments,Allowances,546,04/06/2019,1906-00166,0.00,1854.51,R,ABBIE O'MAHONY,No
Http://opendatacommunities.org/id/metropolitan-district-council/leeds,Leeds City Council,30/06/2019,Children and Families,Social Care,Third Party Payments,Services Rendered By Other Organisations,511,05/06/2019,1906-00167,0.00,1014.00,R,Abc Daycare And Ozone Out Of School,No
Http://opendatacommunities.org/id/metropolitan-district-council/leeds,Leeds City Council,30/06/2019,Children and Families,Social Care,Third Party Payments,Services Rendered By Other Organisations,511,07/06/2019,1906-00168,0.00,12074.40,R,Abc Daycare And Ozone Out Of School,No
Http://opendatacommunities.org/id/metropolitan-district-council/leeds,Leeds City Council,30/06/2019,Children and Families,Social Care,Third Party Payments,Services Rendered By Other Organisations,511,13/06/2019,1906-00169,0.00,741.01,R,Abc Daycare And Ozone Out Of School,No
Http://opendatacommunities.org/id/metropolitan-district-council/leeds,Leeds City Council,30/06/2019,Children and Families,Social Care,Third Party Payments,Services Rendered By Other Organisations,511,05/06/2019,1906-00170,0.00,2974.40,R,Abc Nursery At Lufc,No
Http://opendatacommunities.org/id/metropolitan-district-council/leeds,Leeds City Council,30/06/2019,Children and Families,Social Care,Third Party Payments,Services Rendered By Other Organisations,511,07/06/2019,1906-00171,0.00,6316.70,R,Abc Nursery At Lufc,No
Http://opendatacommunities.org/id/metropolitan-district-council/leeds,Leeds City Council,30/06/2019,Children and Families,Social Care,Third Party Payments,Services Rendered By Other Organisations,511,13/06/2019,1906-00172,0.00,2681.10,R,Abc Nursery At Lufc,No
Http://opendatacommunities.org/id/metropolitan-district-council/leeds,Leeds City Council,30/06/2019,Children and Families,Social Care,Third Party Payments,Services Rendered By Other Organisations,511,05/06/2019,1906-00173,0.00,1014.00,R,Abc@D'S Childcare Services,No
Http://opendatacommunities.org/id/metropolitan-district-council/leeds,Leeds City Council,30/06/2019,Children and Families,Social Care,Third Party Payments,Services Rendered By Other Organisations,511,07/06/2019,1906-00174,0.00,9642.75,R,Abc@D'S Childcare Services,No
Http://opendatacommunities.org/id/metropolitan-district-council/leeds,Leeds City Council,30/06/2019,Children and Families,Social Care,Third Party Payments,Services Rendered By Other Organisations,511,13/06/2019,1906-00175,0.00,2043.00,R,Abc@D'S Childcare Services,No
Http://opendatacommunities.org/id/metropolitan-district-council/leeds,Leeds City Council,30/06/2019,Communities and Environment,Customer Access,Supplies and Services,Bought In Professional Services,277,11/06/2019,1906-00176,0.00,360.00,R,Abdulahad Denha,No
Http://opendatacommunities.org/id/metropolitan-district-council/leeds,Leeds City Council,30/06/2019,Communities and Environment,Customer Access,Supplies and Services,Bought In Professional Services,277,11/06/2019,1906-00177,0.00,108.00,R,Abdulrahim Dastyar,No
Http://opendatacommunities.org/id/metropolitan-district-council/leeds,Leeds City Council,30/06/2019,Communities and Environment,Customer Access,Supplies and Services,Other Hired And Contracted Services,265,05/06/2019,1906-00178,0.00,69.00,R,Abdur Rahman Khan,No
Http://opendatacommunities.org/id/metropolitan-district-council/leeds,Leeds City Council,30/06/2019,Adults and Health,Services For Older People - 65 And Over,Third Party Payments,Nursing Home,570,26/06/2019,1906-00179,0.00,22968.30,R,Aberford Hall,No
Http://opendatacommunities.org/id/metropolitan-district-council/leeds,Leeds City Council,30/06/2019,Adults and Health,Services For Older People - 65 And Over,Third Party Payments,Residential,580,26/06/2019,1906-00180,0.00,3076.72,R,Aberford Hall,No
Http://opendatacommunities.org/id/metropolitan-district-council/leeds,Leeds City Council,30/06/2019,Resources and Housing,Leeds Building Services,Supplies and Services,Operational Materials,205,06/06/2019,1906-00181,0.00,10.00,R,Abi Garage Doors Ltd,No
Http://opendatacommunities.org/id/metropolitan-district-council/leeds,Leeds City Council,30/06/2019,Resources and Housing,Leeds Building Services,Supplies and Services,Operational Materials,205,06/06/2019,1906-00182,0.00,10.00,R,Abi Garage Doors Ltd,No
Http://opendatacommunities.org/id/metropolitan-district-council/leeds,Leeds City Council,30/06/2019,Resources and Housing,Leeds Building Services,Supplies and Services,Operational Materials,205,06/06/2019,1906-00183,0.00,10.00,R,Abi Garage Doors Ltd,No
Http://opendatacommunities.org/id/metropolitan-district-council/leeds,Leeds City Council,30/06/2019,Resources and Housing,Leeds Building Services,Supplies and Services,Operational Materials,205,06/06/2019,1906-00184,0.00,10.00,R,Abi Garage Doors Ltd,No
Http://opendatacommunities.org/id/metropolitan-district-council/leeds,Leeds City Council,30/06/2019,Resources and Housing,Leeds Building Services,Supplies and Services,Operational Materials,205,06/06/2019,1906-00185,0.00,10.00,R,Abi Garage Doors Ltd,No
Http://opendatacommunities.org/id/metropolitan-district-council/leeds,Leeds City Council,30/06/2019,Resources and Housing,Leeds Building Services,Supplies and Services,Operational Materials,205,06/06/2019,1906-00186,0.00,10.00,R,Abi Garage Doors Ltd,No
Http://opendatacommunities.org/id/metropolitan-district-council/leeds,Leeds City Council,30/06/2019,Resources and Housing,Leeds Building Services,Supplies and Services,Operational Materials,205,10/06/2019,1906-00187,0.00,260.46,R,Abi Garage Doors Ltd,No
Http://opendatacommunities.org/id/metropolitan-district-council/leeds,Leeds City Council,30/06/2019,Resources and Housing,Leeds Building Services,Supplies and Services,Operational Materials,205,14/06/2019,1906-00188,0.00,260.46,R,Abi Garage Doors Ltd,No
Http://opendatacommunities.org/id/metropolitan-district-council/leeds,Leeds City Council,30/06/2019,Resources and Housing,Leeds Building Services,Supplies and Services,Operational Materials,205,14/06/2019,1906-00189,0.00,260.46,R,Abi Garage Doors Ltd,No
Http://opendatacommunities.org/id/metropolitan-district-council/leeds,Leeds City Council,30/06/2019,Resources and Housing,Leeds Building Services,Supplies and Services,Operational Materials,205,14/06/2019,1906-00190,0.00,260.46,R,Abi Garage Doors Ltd,No
Http://opendatacommunities.org/id/metropolitan-district-council/leeds,Leeds City Council,30/06/2019,Resources and Housing,Leeds Building Services,Supplies and Services,Operational Materials,205,21/06/2019,1906-00191,0.00,260.46,R,Abi Garage Doors Ltd,No
Http://opendatacommunities.org/id/metropolitan-district-council/leeds,Leeds City Council,30/06/2019,Resources and Housing,Leeds Building Services,Supplies and Services,Operational Materials,205,28/06/2019,1906-00192,0.00,260.46,R,Abi Garage Doors Ltd,No
Http://opendatacommunities.org/id/metropolitan-district-council/leeds,Leeds City Council,30/06/2019,Children and Families,Social Care,Employees,Agency Staff,8,19/06/2019,1906-00193,0.00,2042.75,R,Academic Appointments Ltd,No
Http://opendatacommunities.org/id/metropolitan-district-council/leeds,Leeds City Council,30/06/2019,Children and Families,Social Care,Employees,Agency Staff,8,19/06/2019,1906-00194,0.00,1218.00,R,Academic Appointments Ltd,No
Http://opendatacommunities.org/id/metropolitan-district-council/leeds,Leeds City Council,30/06/2019,Children and Families,Social Care,Employees,Agency Staff,8,19/06/2019,1906-00195,0.00,1297.75,R,Academic Appointments Ltd,No
Http://opendatacommunities.org/id/metropolitan-district-council/leeds,Leeds City Council,30/06/2019,Children and Families,Social Care,Employees,Agency Staff,8,19/06/2019,1906-00196,0.00,2260.00,R,Academic Appointments Ltd,No
Http://opendatacommunities.org/id/metropolitan-district-council/leeds,Leeds City Council,30/06/2019,Children and Families,Social Care,Employees,Agency Staff,8,19/06/2019,1906-00197,0.00,1990.00,R,Academic Appointments Ltd,No
Http://opendatacommunities.org/id/metropolitan-district-council/leeds,Leeds City Council,30/06/2019,Children and Families,Social Care,Employees,Agency Staff,8,19/06/2019,1906-00198,0.00,1539.00,R,Academic Appointments Ltd,No
Http://opendatacommunities.org/id/metropolitan-district-council/leeds,Leeds City Council,30/06/2019,Children and Families,Social Care,Employees,Agency Staff,8,19/06/2019,1906-00199,0.00,1211.00,R,Academic Appointments Ltd,No
Http://opendatacommunities.org/id/metropolitan-district-council/leeds,Leeds City Council,30/06/2019,Children and Families,Social Care,Employees,Agency Staff,8,19/06/2019,1906-00200,0.00,600.50,R,Academic Appointments Ltd,No
Http://opendatacommunities.org/id/metropolitan-district-council/leeds,Leeds City Council,30/06/2019,Children and Families,Social Care,Employees,Agency Staff,8,19/06/2019,1906-00201,0.00,964.00,R,Academic Appointments Ltd,No
Http://opendatacommunities.org/id/metropolitan-district-council/leeds,Leeds City Council,30/06/2019,Children and Families,Social Care,Employees,Agency Staff,8,19/06/2019,1906-00202,0.00,1585.00,R,Academic Appointments Ltd,No
Http://opendatacommunities.org/id/metropolitan-district-council/leeds,Leeds City Council,30/06/2019,Children and Families,Social Care,Employees,Agency Staff,8,19/06/2019,1906-00203,0.00,599.40,R,Academic Appointments Ltd,No
Http://opendatacommunities.org/id/metropolitan-district-council/leeds,Leeds City Council,30/06/2019,Children and Families,Social Care,Employees,Agency Staff,8,19/06/2019,1906-00204,0.00,1378.00,R,Academic Appointments Ltd,No
Http://opendatacommunities.org/id/metropolitan-district-council/leeds,Leeds City Council,30/06/2019,Children and Families,Social Care,Third Party Payments, Direct Work,549,24/06/2019,1906-00205,0.00,257.94,R,Academic Appointments Ltd,No
Http://opendatacommunities.org/id/metropolitan-district-council/leeds,Leeds City Council,30/06/2019,Children and Families,Social Care,Employees,Agency Staff,8,28/06/2019,1906-00206,0.00,1585.00,R,Academic Appointments Ltd,No
Http://opendatacommunities.org/id/metropolitan-district-council/leeds,Leeds City Council,30/06/2019,Children and Families,Social Care,Third Party Payments,Services Rendered By Voluntary Sector,505,17/06/2019,1906-00207,0.00,473.70,R,Academies Enterprise Trust (Aet),No
Http://opendatacommunities.org/id/metropolitan-district-council/leeds,Leeds City Council,30/06/2019,Resources and Housing,Leeds Building Services,Supplies and Services,Other Hired And Contracted Services,265,06/06/2019,1906-00208,0.00,2749.29,R,Access Hire Nationwide Ltd,No
Http://opendatacommunities.org/id/metropolitan-district-council/leeds,Leeds City Council,30/06/2019,Communities and Environment,Community Safety,Transport,Hire Of Movable Plant & Machinery,315,06/06/2019,1906-00209,0.00,-33.50,R,Access Hire Nationwide Ltd,No
Http://opendatacommunities.org/id/metropolitan-district-council/leeds,Leeds City Council,30/06/2019,Resources and Housing,Leeds Building Services,Supplies and Services,Other Hired And Contracted Services,265,27/06/2019,1906-00210,0.00,1325.71,R,Access Hire Nationwide Ltd,No
Http://opendatacommunities.org/id/metropolitan-district-council/leeds,Leeds City Council,30/06/2019,Communities and Environment,Parks and Countryside,Transport,External Hire -Occasional,304,28/06/2019,1906-00211,0.00,225.00,R,Access Hire Nationwide Ltd,No
Http://opendatacommunities.org/id/metropolitan-district-council/leeds,Leeds City Council,30/06/2019,Resources and Housing,Leeds Building Services,Supplies and Services,Other Hired And Contracted Services,265,28/06/2019,1906-00212,0.00,5970.00,R,Access Lift Consultants Ltd,No
Http://opendatacommunities.org/id/metropolitan-district-council/leeds,Leeds City Council,30/06/2019,Strategic Landlord,Housing Management  ,Premises,Maintenance Of Buildings,101,28/05/2019,1906-00213,0.00,14.40,R,Access Locksmiths,Yes
Http://opendatacommunities.org/id/metropolitan-district-council/leeds,Leeds City Council,30/06/2019,Resources and Housing,Shared Services  ,Premises,Maintenance Of Buildings,101,30/05/2019,1906-00214,0.00,21.55,R,Access Locksmiths,Yes
Http://opendatacommunities.org/id/metropolitan-district-council/leeds,Leeds City Council,30/06/2019,Resources and Housing,Commercial Services  ,Supplies and Services,Operational Materials,205,30/05/2019,1906-00215,0.00,577.92,R,Access Locksmiths,Yes
Http://opendatacommunities.org/id/metropolitan-district-council/leeds,Leeds City Council,30/06/2019,Resources and Housing,Facilities Management  ,Premises,Maintenance Of Buildings,101,30/05/2019,1906-00216,0.00,698.03,R,Access Locksmiths,Yes
Http://opendatacommunities.org/id/metropolitan-district-council/leeds,Leeds City Council,30/06/2019,Strategic Landlord,Property and Contracts,Premises,General Maintenance,104,06/06/2019,1906-00217,0.00,103.10,R,Access Locksmiths (Leeds) Limited,No
Http://opendatacommunities.org/id/metropolitan-district-council/leeds,Leeds City Council,30/06/2019,Resources and Housing,Leeds Building Services,Supplies and Services,Operational Materials,205,14/06/2019,1906-00218,0.00,133.26,R,Access Locksmiths (Leeds) Limited,No
Http://opendatacommunities.org/id/metropolitan-district-council/leeds,Leeds City Council,30/06/2019,Resources and Housing,Leeds Building Services,Supplies and Services,Operational Materials,205,14/06/2019,1906-00219,0.00,134.58,R,Access Locksmiths (Leeds) Limited,No
Http://opendatacommunities.org/id/metropolitan-district-council/leeds,Leeds City Council,30/06/2019,Resources and Housing,Leeds Building Services,Supplies and Services,Operational Materials,205,14/06/2019,1906-00220,0.00,269.16,R,Access Locksmiths (Leeds) Limited,No
Http://opendatacommunities.org/id/metropolitan-district-council/leeds,Leeds City Council,30/06/2019,Resources and Housing,Leeds Building Services,Supplies and Services,Operational Materials,205,14/06/2019,1906-00221,0.00,10.53,R,Access Locksmiths (Leeds) Limited,No
Http://opendatacommunities.org/id/metropolitan-district-council/leeds,Leeds City Council,30/06/2019,Strategic Landlord,Housing Management,Supplies and Services,Resaleable Materials,204,19/06/2019,1906-00222,0.00,269.47,R,Access Locksmiths (Leeds) Limited,No
Http://opendatacommunities.org/id/metropolitan-district-council/leeds,Leeds City Council,30/06/2019,Resources and Housing,Leeds Building Services,Supplies and Services,Office Furniture & Equipment,201,19/06/2019,1906-00223,0.00,155.54,R,Access Locksmiths (Leeds) Limited,No
Http://opendatacommunities.org/id/metropolitan-district-council/leeds,Leeds City Council,30/06/2019,Strategic Landlord,Housing Management,Premises,General Maintenance,104,21/06/2019,1906-00224,0.00,205.20,R,Access Locksmiths (Leeds) Limited,No
Http://opendatacommunities.org/id/metropolitan-district-council/leeds,Leeds City Council,30/06/2019,Strategic Landlord,Housing Management,Premises,General Maintenance,104,21/06/2019,1906-00225,0.00,114.00,R,Access Locksmiths (Leeds) Limited,No
Http://opendatacommunities.org/id/metropolitan-district-council/leeds,Leeds City Council,30/06/2019,Strategic Landlord,Housing Management,Supplies and Services,Resaleable Materials,204,21/06/2019,1906-00226,0.00,185.24,R,Access Locksmiths (Leeds) Limited,No
Http://opendatacommunities.org/id/metropolitan-district-council/leeds,Leeds City Council,30/06/2019,Strategic Landlord,Housing Management,Supplies and Services,Resaleable Materials,204,21/06/2019,1906-00227,0.00,64.20,R,Access Locksmiths (Leeds) Limited,No
Http://opendatacommunities.org/id/metropolitan-district-council/leeds,Leeds City Council,30/06/2019,Strategic Landlord,Property and Contracts,Premises,General Maintenance,104,27/06/2019,1906-00228,0.00,174.30,R,Access Locksmiths (Leeds) Limited,No
Http://opendatacommunities.org/id/metropolitan-district-council/leeds,Leeds City Council,30/06/2019,Strategic Landlord,Housing Management,Premises,Fixtures & Fittings,131,28/06/2019,1906-00229,0.00,228.00,R,Access Locksmiths (Leeds) Limited,No
Http://opendatacommunities.org/id/metropolitan-district-council/leeds,Leeds City Council,30/06/2019,Strategic Landlord,Housing Management,Supplies and Services,Resaleable Materials,204,28/06/2019,1906-00230,0.00,15.60,R,Access Locksmiths (Leeds) Limited,No
Http://opendatacommunities.org/id/metropolitan-district-council/leeds,Leeds City Council,30/06/2019,Insurance,Insurance,Supplies and Services,Insurance Claims,248,04/06/2019,1906-00231,0.00,4200.00,R,Accountant General Of The Senior Courts,No
Http://opendatacommunities.org/id/metropolitan-district-council/leeds,Leeds City Council,30/06/2019,Insurance,Insurance,Supplies and Services,Insurance Claims,248,18/06/2019,1906-00232,0.00,3541.29,R,Accountant General Of The Senior Courts,No
Http://opendatacommunities.org/id/metropolitan-district-council/leeds,Leeds City Council,30/06/2019,Insurance,Insurance,Supplies and Services,Insurance Claims,248,25/06/2019,1906-00233,0.00,2000.00,R,Accountant General Of The Senior Courts,No
Http://opendatacommunities.org/id/metropolitan-district-council/leeds,Leeds City Council,30/06/2019,City Development,Recreation,Supplies and Services,Other Hired And Contracted Services,265,28/06/2019,1906-00234,0.00,90.00,R,Ace Container Services Limited,No
Http://opendatacommunities.org/id/metropolitan-district-council/leeds,Leeds City Council,30/06/2019,City Development,Recreation,Transport,External Hire -Occasional,304,28/06/2019,1906-00235,0.00,124.50,R,Ace Container Services Limited,No
Http://opendatacommunities.org/id/metropolitan-district-council/leeds,Leeds City Council,30/06/2019,City Development,Highways,Capital,Other Costs,7,28/06/2019,1906-00236,0.00,1319.79,C,Ace Leaflet Distribution & Print Ltd,No
Http://opendatacommunities.org/id/metropolitan-district-council/leeds,Leeds City Council,30/06/2019,Children and Families,Partnerships & Health,Third Party Payments,SEN Placements,566,13/06/2019,1906-00237,0.00,58000.00,R,Acorn Care & Education Ltd (Sales),No
Http://opendatacommunities.org/id/metropolitan-district-council/leeds,Leeds City Council,30/06/2019,Children and Families,Partnerships & Health,Third Party Payments,SEN Placements,566,14/06/2019,1906-00238,0.00,18472.00,R,Acorn Care & Education Ltd (Sales),No
Http://opendatacommunities.org/id/metropolitan-district-council/leeds,Leeds City Council,30/06/2019,Children and Families,Partnerships & Health,Third Party Payments,SEN Placements,566,14/06/2019,1906-00239,0.00,18472.00,R,Acorn Care & Education Ltd (Sales),No
Http://opendatacommunities.org/id/metropolitan-district-council/leeds,Leeds City Council,30/06/2019,Children and Families,Partnerships & Health,Third Party Payments,SEN Placements,566,14/06/2019,1906-00240,0.00,566.67,R,Acorn Care & Education Ltd (Sales),No
Http://opendatacommunities.org/id/metropolitan-district-council/leeds,Leeds City Council,30/06/2019,Children and Families,Partnerships & Health,Third Party Payments,SEN Placements,566,14/06/2019,1906-00241,0.00,8500.00,R,Acorn Care & Education Ltd (Sales),No
Http://opendatacommunities.org/id/metropolitan-district-council/leeds,Leeds City Council,30/06/2019,Children and Families,Partnerships & Health,Third Party Payments,SEN Placements,566,14/06/2019,1906-00242,0.00,1231.47,R,Acorn Care & Education Ltd (Sales),No
Http://opendatacommunities.org/id/metropolitan-district-council/leeds,Leeds City Council,30/06/2019,Children and Families,Partnerships & Health,Third Party Payments,SEN Placements,566,14/06/2019,1906-00243,0.00,18472.00,R,Acorn Care & Education Ltd (Sales),No
Http://opendatacommunities.org/id/metropolitan-district-council/leeds,Leeds City Council,30/06/2019,Children and Families,Partnerships & Health,Third Party Payments,SEN Placements,566,18/06/2019,1906-00244,0.00,4390.89,R,Acorn Care & Education Ltd (Sales),No
Http://opendatacommunities.org/id/metropolitan-district-council/leeds,Leeds City Council,30/06/2019,Adults and Health,Services For Older People - 65 And Over,Third Party Payments,Residential Care Dementia,571,26/06/2019,1906-00245,0.00,5889.16,R,Acorn Nursing Home,No
Http://opendatacommunities.org/id/metropolitan-district-council/leeds,Leeds City Council,30/06/2019,Adults and Health,Services For Older People - 65 And Over,Third Party Payments,Nursing Care Dementia,574,26/06/2019,1906-00246,0.00,1646.24,R,Acorn Nursing Home,No
Http://opendatacommunities.org/id/metropolitan-district-council/leeds,Leeds City Council,30/06/2019,City Development,Libraries  Arts & Heritage,Supplies and Services,Other Hired And Contracted Services,265,07/06/2019,1906-00247,0.00,1839.94,R,Acorn Scaffolding (Yorkshire) Ltd,No
Http://opendatacommunities.org/id/metropolitan-district-council/leeds,Leeds City Council,30/06/2019,Children and Families,Social Care,Third Party Payments,Services Rendered By Other Organisations,511,07/06/2019,1906-00248,0.00,7546.50,R,Acorns Nursery,No
Http://opendatacommunities.org/id/metropolitan-district-council/leeds,Leeds City Council,30/06/2019,Children and Families,Social Care,Third Party Payments,Services Rendered By Other Organisations,511,13/06/2019,1906-00249,0.00,306.62,R,Acorns Nursery,No
Http://opendatacommunities.org/id/metropolitan-district-council/leeds,Leeds City Council,30/06/2019,Adults and Health,Services For Older People - 65 And Over,Third Party Payments,Nursing Home,570,26/06/2019,1906-00250,0.00,32672.19,R,Acre Green,No
Http://opendatacommunities.org/id/metropolitan-district-council/leeds,Leeds City Council,30/06/2019,Adults and Health,Services For Older People - 65 And Over,Third Party Payments,Residential,580,26/06/2019,1906-00251,0.00,3566.77,R,Acre Green,No
Http://opendatacommunities.org/id/metropolitan-district-council/leeds,Leeds City Council,30/06/2019,Adults and Health,Services For Older People Under 65 P/Dis,Third Party Payments,Nursing Home,570,26/06/2019,1906-00252,0.00,2200.00,R,Acre Green,No
Http://opendatacommunities.org/id/metropolitan-district-council/leeds,Leeds City Council,30/06/2019,Adults and Health,Services For Older People Under 65 P/Dis,Third Party Payments,Residential,580,26/06/2019,1906-00253,0.00,1510.20,R,Acre Green,No
Http://opendatacommunities.org/id/metropolitan-district-council/leeds,Leeds City Council,30/06/2019,Children and Families,Social Care,Third Party Payments,Services Rendered By Other Organisations,511,05/06/2019,1906-00254,0.00,1825.20,R,Acre Wood Day Nursery,No
Http://opendatacommunities.org/id/metropolitan-district-council/leeds,Leeds City Council,30/06/2019,Children and Families,Social Care,Third Party Payments,Services Rendered By Other Organisations,511,07/06/2019,1906-00255,0.00,12234.36,R,Acre Wood Day Nursery,No
Http://opendatacommunities.org/id/metropolitan-district-council/leeds,Leeds City Council,30/06/2019,Children and Families,Social Care,Third Party Payments,Services Rendered By Other Organisations,511,13/06/2019,1906-00256,0.00,2282.03,R,Acre Wood Day Nursery,No
Http://opendatacommunities.org/id/metropolitan-district-council/leeds,Leeds City Council,30/06/2019,Resources and Housing,Technology  ,Supplies and Services,Computer Software & Equipment,214,21/05/2019,1906-00257,0.00,4310.75,R,Acs Business Supplies Lt,Yes
Http://opendatacommunities.org/id/metropolitan-district-council/leeds,Leeds City Council,30/06/2019,Strategic Landlord,Property And Contracts  ,Supplies and Services,Computer Software & Equipment,214,30/04/2019,1906-00258,0.00,358.51,R,Acsbusinesssupplies,Yes
Http://opendatacommunities.org/id/metropolitan-district-council/leeds,Leeds City Council,30/06/2019,Resources and Housing,Technology  ,Supplies and Services,Computer Software & Equipment,214,07/05/2019,1906-00259,0.00,53.55,R,Acsbusinesssupplies,Yes
Http://opendatacommunities.org/id/metropolitan-district-council/leeds,Leeds City Council,30/06/2019,Resources and Housing,Technology  ,Supplies and Services,Computer Software & Equipment,214,20/05/2019,1906-00260,0.00,53.45,R,Acsbusinesssupplies,Yes
Http://opendatacommunities.org/id/metropolitan-district-council/leeds,Leeds City Council,30/06/2019,Resources and Housing,Leeds Building Services,Supplies and Services,Other Hired And Contracted Services,265,06/06/2019,1906-00261,0.00,142.51,R,Actavo (Leeds H & S),No
Http://opendatacommunities.org/id/metropolitan-district-council/leeds,Leeds City Council,30/06/2019,City Development,Highways,Supplies and Services,Operational Materials,205,14/06/2019,1906-00262,0.00,1317.00,R,Actavo (Leeds H & S),No
Http://opendatacommunities.org/id/metropolitan-district-council/leeds,Leeds City Council,30/06/2019,City Development,Highways,Supplies and Services,Operational Materials,205,26/06/2019,1906-00263,0.00,420.00,R,Actavo (Leeds H & S),No
Http://opendatacommunities.org/id/metropolitan-district-council/leeds,Leeds City Council,30/06/2019,Children and Families,Social Care,Third Party Payments,Independent Fostering Agencies,509,28/06/2019,1906-00264,0.00,4776.48,R,Action For Children,No
Http://opendatacommunities.org/id/metropolitan-district-council/leeds,Leeds City Council,30/06/2019,Adults and Health,Services For Older People - 65 And Over,Third Party Payments,Payments To Voluntary Organisations,561,28/06/2019,1906-00265,0.00,49415.82,R,Action For Gipton Elderly,No
Http://opendatacommunities.org/id/metropolitan-district-council/leeds,Leeds City Council,30/06/2019,Children and Families,Social Care,Third Party Payments,Services Rendered By Other Organisations,511,05/06/2019,1906-00266,0.00,202.80,R,Active Kids Yeadon Llp,No
Http://opendatacommunities.org/id/metropolitan-district-council/leeds,Leeds City Council,30/06/2019,Children and Families,Social Care,Third Party Payments,Services Rendered By Other Organisations,511,07/06/2019,1906-00267,0.00,7725.38,R,Active Kids Yeadon Llp,No
Http://opendatacommunities.org/id/metropolitan-district-council/leeds,Leeds City Council,30/06/2019,Children and Families,Social Care,Third Party Payments,Services Rendered By Other Organisations,511,13/06/2019,1906-00268,0.00,69.69,R,Active Kids Yeadon Llp,No
Http://opendatacommunities.org/id/metropolitan-district-council/leeds,Leeds City Council,30/06/2019,Communities and Environment,Waste Management,Supplies and Services,Recycling & Reuse Charges,234,06/06/2019,1906-00269,0.00,337.28,R,Acumen Waste Services Ltd,No
Http://opendatacommunities.org/id/metropolitan-district-council/leeds,Leeds City Council,30/06/2019,Communities and Environment,Waste Management,Supplies and Services,Recycling & Reuse Charges,234,06/06/2019,1906-00270,0.00,453.13,R,Acumen Waste Services Ltd,No
Http://opendatacommunities.org/id/metropolitan-district-council/leeds,Leeds City Council,30/06/2019,Communities and Environment,Waste Management,Supplies and Services,Recycling & Reuse Charges,234,06/06/2019,1906-00271,0.00,402.36,R,Acumen Waste Services Ltd,No
Http://opendatacommunities.org/id/metropolitan-district-council/leeds,Leeds City Council,30/06/2019,Communities and Environment,Waste Management,Supplies and Services,Recycling & Reuse Charges,234,06/06/2019,1906-00272,0.00,399.26,R,Acumen Waste Services Ltd,No
Http://opendatacommunities.org/id/metropolitan-district-council/leeds,Leeds City Council,30/06/2019,Communities and Environment,Waste Management,Supplies and Services,Recycling & Reuse Charges,234,06/06/2019,1906-00273,0.00,226.08,R,Acumen Waste Services Ltd,No
Http://opendatacommunities.org/id/metropolitan-district-council/leeds,Leeds City Council,30/06/2019,Communities and Environment,Cleaner Neighbourhood Teams,Premises,Removal Of Workplace Waste,126,06/06/2019,1906-00274,0.00,110.00,R,Acumen Waste Services Ltd,No
Http://opendatacommunities.org/id/metropolitan-district-council/leeds,Leeds City Council,30/06/2019,Communities and Environment,Cleaner Neighbourhood Teams,Premises,Removal Of Workplace Waste,126,06/06/2019,1906-00275,0.00,110.00,R,Acumen Waste Services Ltd,No
Http://opendatacommunities.org/id/metropolitan-district-council/leeds,Leeds City Council,30/06/2019,Communities and Environment,Cleaner Neighbourhood Teams,Premises,Removal Of Workplace Waste,126,06/06/2019,1906-00276,0.00,110.00,R,Acumen Waste Services Ltd,No
Http://opendatacommunities.org/id/metropolitan-district-council/leeds,Leeds City Council,30/06/2019,Communities and Environment,Cleaner Neighbourhood Teams,Premises,Removal Of Workplace Waste,126,06/06/2019,1906-00277,0.00,110.00,R,Acumen Waste Services Ltd,No
Http://opendatacommunities.org/id/metropolitan-district-council/leeds,Leeds City Council,30/06/2019,Communities and Environment,Cleaner Neighbourhood Teams,Premises,Removal Of Workplace Waste,126,06/06/2019,1906-00278,0.00,50.00,R,Acumen Waste Services Ltd,No
Http://opendatacommunities.org/id/metropolitan-district-council/leeds,Leeds City Council,30/06/2019,Communities and Environment,Cleaner Neighbourhood Teams,Premises,Removal Of Workplace Waste,126,06/06/2019,1906-00279,0.00,116.60,R,Acumen Waste Services Ltd,No
Http://opendatacommunities.org/id/metropolitan-district-council/leeds,Leeds City Council,30/06/2019,Communities and Environment,Cleaner Neighbourhood Teams,Premises,Removal Of Workplace Waste,126,06/06/2019,1906-00280,0.00,116.60,R,Acumen Waste Services Ltd,No
Http://opendatacommunities.org/id/metropolitan-district-council/leeds,Leeds City Council,30/06/2019,Communities and Environment,Cleaner Neighbourhood Teams,Premises,Removal Of Workplace Waste,126,06/06/2019,1906-00281,0.00,116.60,R,Acumen Waste Services Ltd,No
Http://opendatacommunities.org/id/metropolitan-district-council/leeds,Leeds City Council,30/06/2019,Communities and Environment,Waste Management,Supplies and Services,Recycling & Reuse Charges,234,12/06/2019,1906-00282,0.00,2014.84,R,Acumen Waste Services Ltd,No
Http://opendatacommunities.org/id/metropolitan-district-council/leeds,Leeds City Council,30/06/2019,Communities and Environment,Waste Management,Supplies and Services,Recycling & Reuse Charges,234,13/06/2019,1906-00283,0.00,7012.51,R,Acumen Waste Services Ltd,No
Http://opendatacommunities.org/id/metropolitan-district-council/leeds,Leeds City Council,30/06/2019,Communities and Environment,Cleaner Neighbourhood Teams,Premises,Removal Of Workplace Waste,126,13/06/2019,1906-00284,0.00,116.60,R,Acumen Waste Services Ltd,No
Http://opendatacommunities.org/id/metropolitan-district-council/leeds,Leeds City Council,30/06/2019,Communities and Environment,Cleaner Neighbourhood Teams,Premises,Removal Of Workplace Waste,126,14/06/2019,1906-00285,0.00,116.60,R,Acumen Waste Services Ltd,No
Http://opendatacommunities.org/id/metropolitan-district-council/leeds,Leeds City Council,30/06/2019,Communities and Environment,Cleaner Neighbourhood Teams,Premises,Removal Of Workplace Waste,126,14/06/2019,1906-00286,0.00,116.60,R,Acumen Waste Services Ltd,No
Http://opendatacommunities.org/id/metropolitan-district-council/leeds,Leeds City Council,30/06/2019,Communities and Environment,Cleaner Neighbourhood Teams,Premises,Removal Of Workplace Waste,126,14/06/2019,1906-00287,0.00,116.60,R,Acumen Waste Services Ltd,No
Http://opendatacommunities.org/id/metropolitan-district-council/leeds,Leeds City Council,30/06/2019,Communities and Environment,Cleaner Neighbourhood Teams,Premises,Removal Of Workplace Waste,126,14/06/2019,1906-00288,0.00,116.60,R,Acumen Waste Services Ltd,No
Http://opendatacommunities.org/id/metropolitan-district-council/leeds,Leeds City Council,30/06/2019,Communities and Environment,Cleaner Neighbourhood Teams,Premises,Removal Of Workplace Waste,126,14/06/2019,1906-00289,0.00,116.60,R,Acumen Waste Services Ltd,No
Http://opendatacommunities.org/id/metropolitan-district-council/leeds,Leeds City Council,30/06/2019,Communities and Environment,Cleaner Neighbourhood Teams,Premises,Removal Of Workplace Waste,126,14/06/2019,1906-00290,0.00,116.60,R,Acumen Waste Services Ltd,No
Http://opendatacommunities.org/id/metropolitan-district-council/leeds,Leeds City Council,30/06/2019,Communities and Environment,Cleaner Neighbourhood Teams,Premises,Removal Of Workplace Waste,126,19/06/2019,1906-00291,0.00,116.60,R,Acumen Waste Services Ltd,No
Http://opendatacommunities.org/id/metropolitan-district-council/leeds,Leeds City Council,30/06/2019,Communities and Environment,Cleaner Neighbourhood Teams,Premises,Removal Of Workplace Waste,126,19/06/2019,1906-00292,0.00,116.61,R,Acumen Waste Services Ltd,No
Http://opendatacommunities.org/id/metropolitan-district-council/leeds,Leeds City Council,30/06/2019,Communities and Environment,Cleaner Neighbourhood Teams,Premises,Removal Of Workplace Waste,126,19/06/2019,1906-00293,0.00,116.60,R,Acumen Waste Services Ltd,No
Http://opendatacommunities.org/id/metropolitan-district-council/leeds,Leeds City Council,30/06/2019,Communities and Environment,Cleaner Neighbourhood Teams,Premises,Removal Of Workplace Waste,126,19/06/2019,1906-00294,0.00,116.60,R,Acumen Waste Services Ltd,No
Http://opendatacommunities.org/id/metropolitan-district-council/leeds,Leeds City Council,30/06/2019,Communities and Environment,Waste Management,Supplies and Services,Recycling & Reuse Charges,234,20/06/2019,1906-00295,0.00,5056.62,R,Acumen Waste Services Ltd,No
Http://opendatacommunities.org/id/metropolitan-district-council/leeds,Leeds City Council,30/06/2019,Communities and Environment,Cleaner Neighbourhood Teams,Premises,Removal Of Workplace Waste,126,20/06/2019,1906-00296,0.00,116.60,R,Acumen Waste Services Ltd,No
Http://opendatacommunities.org/id/metropolitan-district-council/leeds,Leeds City Council,30/06/2019,Communities and Environment,Cleaner Neighbourhood Teams,Premises,Removal Of Workplace Waste,126,27/06/2019,1906-00297,0.00,116.60,R,Acumen Waste Services Ltd,No
Http://opendatacommunities.org/id/metropolitan-district-council/leeds,Leeds City Council,30/06/2019,Communities and Environment,Cleaner Neighbourhood Teams,Premises,Removal Of Workplace Waste,126,27/06/2019,1906-00298,0.00,116.60,R,Acumen Waste Services Ltd,No
Http://opendatacommunities.org/id/metropolitan-district-council/leeds,Leeds City Council,30/06/2019,Communities and Environment,Cleaner Neighbourhood Teams,Premises,Removal Of Workplace Waste,126,27/06/2019,1906-00299,0.00,116.60,R,Acumen Waste Services Ltd,No
Http://opendatacommunities.org/id/metropolitan-district-council/leeds,Leeds City Council,30/06/2019,Communities and Environment,Cleaner Neighbourhood Teams,Premises,Removal Of Workplace Waste,126,27/06/2019,1906-00300,0.00,116.60,R,Acumen Waste Services Ltd,No
Http://opendatacommunities.org/id/metropolitan-district-council/leeds,Leeds City Council,30/06/2019,Communities and Environment,Cleaner Neighbourhood Teams,Premises,Removal Of Workplace Waste,126,27/06/2019,1906-00301,0.00,116.60,R,Acumen Waste Services Ltd,No
Http://opendatacommunities.org/id/metropolitan-district-council/leeds,Leeds City Council,30/06/2019,Communities and Environment,Cleaner Neighbourhood Teams,Premises,Removal Of Workplace Waste,126,27/06/2019,1906-00302,0.00,116.60,R,Acumen Waste Services Ltd,No
Http://opendatacommunities.org/id/metropolitan-district-council/leeds,Leeds City Council,30/06/2019,Communities and Environment,Waste Management,Supplies and Services,Recycling & Reuse Charges,234,27/06/2019,1906-00303,0.00,6018.23,R,Acumen Waste Services Ltd,No
Http://opendatacommunities.org/id/metropolitan-district-council/leeds,Leeds City Council,30/06/2019,Resources and Housing,Shared Services,Supplies and Services,Other Hired And Contracted Services,265,04/06/2019,1906-00304,0.00,435.73,R,Ad3 Envelope Printers Limited,No
Http://opendatacommunities.org/id/metropolitan-district-council/leeds,Leeds City Council,30/06/2019,Resources and Housing,Shared Services,Supplies and Services,Other Hired And Contracted Services,265,04/06/2019,1906-00305,0.00,70.40,R,Ad3 Envelope Printers Limited,No
Http://opendatacommunities.org/id/metropolitan-district-council/leeds,Leeds City Council,30/06/2019,Resources and Housing,Shared Services,Supplies and Services,Other Hired And Contracted Services,265,14/06/2019,1906-00306,0.00,394.00,R,Ad3 Envelope Printers Limited,No
Http://opendatacommunities.org/id/metropolitan-district-council/leeds,Leeds City Council,30/06/2019,Resources and Housing,Shared Services,Supplies and Services,Operational Materials,205,21/06/2019,1906-00307,0.00,1131.75,R,Ad3 Envelope Printers Limited,No
Http://opendatacommunities.org/id/metropolitan-district-council/leeds,Leeds City Council,30/06/2019,Adults and Health,Services For Older People - 65 And Over,Third Party Payments,Nursing Home,570,26/06/2019,1906-00308,0.00,2380.00,R,Adbolton Hall,No
Http://opendatacommunities.org/id/metropolitan-district-council/leeds,Leeds City Council,30/06/2019,Resources and Housing,Technology  ,Employees,Agency Staff,8,09/05/2019,1906-00309,0.00,54190.84,R,Adecco Alfred Marks,Yes
Http://opendatacommunities.org/id/metropolitan-district-council/leeds,Leeds City Council,30/06/2019,Resources and Housing,Technology  ,Employees,Agency Staff,8,20/05/2019,1906-00310,0.00,52871.61,R,Adecco Alfred Marks,Yes
Http://opendatacommunities.org/id/metropolitan-district-council/leeds,Leeds City Council,30/06/2019,Children and Families,Social Care,Third Party Payments,Services Rendered By Voluntary Sector,505,05/06/2019,1906-00311,0.00,3802.50,R,Adel Pre School,No
Http://opendatacommunities.org/id/metropolitan-district-council/leeds,Leeds City Council,30/06/2019,Children and Families,Social Care,Third Party Payments,Services Rendered By Other Organisations,511,07/06/2019,1906-00312,0.00,5845.85,R,Adel Pre School,No
Http://opendatacommunities.org/id/metropolitan-district-council/leeds,Leeds City Council,30/06/2019,Children and Families,Social Care,Third Party Payments,Services Rendered By Voluntary Sector,505,13/06/2019,1906-00313,0.00,1912.22,R,Adel Pre School,No
Http://opendatacommunities.org/id/metropolitan-district-council/leeds,Leeds City Council,30/06/2019,Children and Families,Social Care,Third Party Payments,Services Rendered By Other Organisations,511,07/06/2019,1906-00314,0.00,503.10,R,REDACTED PERSONAL DATA,No
Http://opendatacommunities.org/id/metropolitan-district-council/leeds,Leeds City Council,30/06/2019,Children and Families,Social Care,Third Party Payments,Services Rendered By Other Organisations,511,13/06/2019,1906-00315,0.00,418.12,R,REDACTED PERSONAL DATA,No
Http://opendatacommunities.org/id/metropolitan-district-council/leeds,Leeds City Council,30/06/2019,Children and Families,Social Care,Third Party Payments,Services Rendered By Other Organisations,511,07/06/2019,1906-00316,0.00,223.60,R,REDACTED PERSONAL DATA,No
Http://opendatacommunities.org/id/metropolitan-district-council/leeds,Leeds City Council,30/06/2019,Children and Families,Social Care,Supplies and Services,Teaching Furniture & Equipment,207,25/06/2019,1906-00317,0.00,270.00,R,REDACTED PERSONAL DATA,No
Http://opendatacommunities.org/id/metropolitan-district-council/leeds,Leeds City Council,30/06/2019,Children and Families,Social Care,Third Party Payments,Services Rendered By Other Organisations,511,07/06/2019,1906-00318,0.00,1006.20,R,REDACTED PERSONAL DATA,No
Http://opendatacommunities.org/id/metropolitan-district-council/leeds,Leeds City Council,30/06/2019,City Development,Support Services,Supplies and Services,Memberships,226,26/06/2019,1906-00319,0.00,2085.00,R,Adept,No
Http://opendatacommunities.org/id/metropolitan-district-council/leeds,Leeds City Council,30/06/2019,Resources and Housing,Leeds Building Services,Supplies and Services,Operational Materials,205,03/06/2019,1906-00320,0.00,559.96,R,Adi Global,No
Http://opendatacommunities.org/id/metropolitan-district-council/leeds,Leeds City Council,30/06/2019,Resources and Housing,Leeds Building Services,Supplies and Services,Operational Materials,205,04/06/2019,1906-00321,0.00,990.60,R,Adi Global,No
Http://opendatacommunities.org/id/metropolitan-district-council/leeds,Leeds City Council,30/06/2019,Resources and Housing,Leeds Building Services,Supplies and Services,Operational Materials,205,04/06/2019,1906-00322,0.00,341.64,R,Adi Global,No
Http://opendatacommunities.org/id/metropolitan-district-council/leeds,Leeds City Council,30/06/2019,Resources and Housing,Leeds Building Services,Supplies and Services,Operational Materials,205,04/06/2019,1906-00323,0.00,62.05,R,Adi Global,No
Http://opendatacommunities.org/id/metropolitan-district-council/leeds,Leeds City Council,30/06/2019,Resources and Housing,Leeds Building Services,Supplies and Services,Stores - Central And Other Depots,5,06/06/2019,1906-00324,0.00,75.00,R,Adi Global,No
Http://opendatacommunities.org/id/metropolitan-district-council/leeds,Leeds City Council,30/06/2019,Resources and Housing,Leeds Building Services,Supplies and Services,Stores - Central And Other Depots,5,06/06/2019,1906-00325,0.00,1017.60,R,Adi Global,No
Http://opendatacommunities.org/id/metropolitan-district-council/leeds,Leeds City Council,30/06/2019,Resources and Housing,Leeds Building Services,Supplies and Services,Operational Materials,205,07/06/2019,1906-00326,0.00,14.90,R,Adi Global,No
Http://opendatacommunities.org/id/metropolitan-district-council/leeds,Leeds City Council,30/06/2019,Resources and Housing,Leeds Building Services,Supplies and Services,Stores - Central And Other Depots,5,11/06/2019,1906-00327,0.00,125.00,R,Adi Global,No
Http://opendatacommunities.org/id/metropolitan-district-council/leeds,Leeds City Council,30/06/2019,Resources and Housing,Leeds Building Services,Supplies and Services,Operational Materials,205,14/06/2019,1906-00328,0.00,279.42,R,Adi Global,No
Http://opendatacommunities.org/id/metropolitan-district-council/leeds,Leeds City Council,30/06/2019,Resources and Housing,Leeds Building Services,Supplies and Services,Operational Materials,205,19/06/2019,1906-00329,0.00,15.69,R,Adi Global,No
Http://opendatacommunities.org/id/metropolitan-district-council/leeds,Leeds City Council,30/06/2019,Resources and Housing,Leeds Building Services,Supplies and Services,Operational Materials,205,19/06/2019,1906-00330,0.00,841.92,R,Adi Global,No
Http://opendatacommunities.org/id/metropolitan-district-council/leeds,Leeds City Council,30/06/2019,Resources and Housing,Leeds Building Services,Supplies and Services,Operational Materials,205,19/06/2019,1906-00331,0.00,473.47,R,Adi Global,No
Http://opendatacommunities.org/id/metropolitan-district-council/leeds,Leeds City Council,30/06/2019,Resources and Housing,Leeds Building Services,Supplies and Services,Operational Materials,205,19/06/2019,1906-00332,0.00,7199.52,R,Adi Global,No
Http://opendatacommunities.org/id/metropolitan-district-council/leeds,Leeds City Council,30/06/2019,Resources and Housing,Leeds Building Services,Supplies and Services,Operational Materials,205,21/06/2019,1906-00333,0.00,96.72,R,Adi Global,No
Http://opendatacommunities.org/id/metropolitan-district-council/leeds,Leeds City Council,30/06/2019,Resources and Housing,Leeds Building Services,Supplies and Services,Operational Materials,205,27/06/2019,1906-00334,0.00,73.90,R,Adi Global,No
Http://opendatacommunities.org/id/metropolitan-district-council/leeds,Leeds City Council,30/06/2019,Adults and Health,Services For Adults Under 65 Mental/Dis,Third Party Payments,Home Care,568,12/06/2019,1906-00335,0.00,485.52,R,Adjuvo Care & Support Ltd,No
Http://opendatacommunities.org/id/metropolitan-district-council/leeds,Leeds City Council,30/06/2019,Adults and Health,Services For Older People - 65 And Over,Third Party Payments,Home Care,568,12/06/2019,1906-00336,0.00,13981.89,R,Adjuvo Care & Support Ltd,No
Http://opendatacommunities.org/id/metropolitan-district-council/leeds,Leeds City Council,30/06/2019,Adults and Health,Services For Older People - 65 And Over,Third Party Payments,HCAIT Other,577,12/06/2019,1906-00337,0.00,260.10,R,Adjuvo Care & Support Ltd,No
Http://opendatacommunities.org/id/metropolitan-district-council/leeds,Leeds City Council,30/06/2019,Adults and Health,Services For Older People Under 65 P/Dis,Third Party Payments,Home Care,568,12/06/2019,1906-00338,0.00,10904.13,R,Adjuvo Care & Support Ltd,No
Http://opendatacommunities.org/id/metropolitan-district-council/leeds,Leeds City Council,30/06/2019,Adults and Health,Services For Older People - 65 And Over,Third Party Payments,Home Care,568,12/06/2019,1906-00339,0.00,6620.00,R,Adjuvo Care & Support Ltd,No
Http://opendatacommunities.org/id/metropolitan-district-council/leeds,Leeds City Council,30/06/2019,Adults and Health,Services For Older People Under 65 P/Dis,Third Party Payments,Home Care,568,12/06/2019,1906-00340,0.00,1040.00,R,Adjuvo Care & Support Ltd,No
Http://opendatacommunities.org/id/metropolitan-district-council/leeds,Leeds City Council,30/06/2019,Adults and Health,Services For Older People - 65 And Over,Third Party Payments,Home Care,568,12/06/2019,1906-00341,0.00,1704.00,R,Adjuvo Care & Support Ltd,No
Http://opendatacommunities.org/id/metropolitan-district-council/leeds,Leeds City Council,30/06/2019,Adults and Health,Services For Older People Under 65 P/Dis,Third Party Payments,Home Care,568,12/06/2019,1906-00342,0.00,260.00,R,Adjuvo Care & Support Ltd,No
Http://opendatacommunities.org/id/metropolitan-district-council/leeds,Leeds City Council,30/06/2019,Adults and Health,Services For Adults Under 65 Mental/Dis,Third Party Payments,Home Care,568,19/06/2019,1906-00343,0.00,121.38,R,Adjuvo Care & Support Ltd,No
Http://opendatacommunities.org/id/metropolitan-district-council/leeds,Leeds City Council,30/06/2019,Adults and Health,Services For Older People - 65 And Over,Third Party Payments,Home Care,568,19/06/2019,1906-00344,0.00,3507.01,R,Adjuvo Care & Support Ltd,No
Http://opendatacommunities.org/id/metropolitan-district-council/leeds,Leeds City Council,30/06/2019,Adults and Health,Services For Older People - 65 And Over,Third Party Payments,HCAIT Other,577,19/06/2019,1906-00345,0.00,69.36,R,Adjuvo Care & Support Ltd,No
Http://opendatacommunities.org/id/metropolitan-district-council/leeds,Leeds City Council,30/06/2019,Adults and Health,Services For Older People Under 65 P/Dis,Third Party Payments,Home Care,568,19/06/2019,1906-00346,0.00,2614.01,R,Adjuvo Care & Support Ltd,No
Http://opendatacommunities.org/id/metropolitan-district-council/leeds,Leeds City Council,30/06/2019,Resources and Housing,Sustainable Energy & Climate Change,Capital,Other Costs,7,10/06/2019,1906-00347,0.00,1500.00,C,Adnan Mir,No
Http://opendatacommunities.org/id/metropolitan-district-council/leeds,Leeds City Council,30/06/2019,City Development,Libraries  Arts & Heritage  ,Supplies and Services,Computer Software & Equipment,214,02/05/2019,1906-00348,0.00,9.98,R,Adobe Photogphy Plan,Yes
Http://opendatacommunities.org/id/metropolitan-district-council/leeds,Leeds City Council,30/06/2019,Children and Families,Social Care,Third Party Payments,Independent Fostering Agencies,509,05/06/2019,1906-00349,0.00,2826.32,R,Adolescent And Childrens Trust,No
Http://opendatacommunities.org/id/metropolitan-district-council/leeds,Leeds City Council,30/06/2019,Children and Families,Social Care,Third Party Payments,Independent Fostering Agencies,509,05/06/2019,1906-00350,0.00,2826.32,R,Adolescent And Childrens Trust,No
Http://opendatacommunities.org/id/metropolitan-district-council/leeds,Leeds City Council,30/06/2019,Children and Families,Social Care,Third Party Payments,Independent Fostering Agencies,509,07/06/2019,1906-00351,0.00,3090.00,R,Adolescent And Childrens Trust,No
Http://opendatacommunities.org/id/metropolitan-district-council/leeds,Leeds City Council,30/06/2019,City Development,Libraries  Arts & Heritage,Supplies and Services,Other Hired And Contracted Services,265,07/06/2019,1906-00352,0.00,85.00,R,Advance Stocks Ltd,No
Http://opendatacommunities.org/id/metropolitan-district-council/leeds,Leeds City Council,30/06/2019,City Development,Libraries  Arts & Heritage,Supplies and Services,External Audit Fees,261,26/06/2019,1906-00353,0.00,90.00,R,Advance Stocks Ltd,No
Http://opendatacommunities.org/id/metropolitan-district-council/leeds,Leeds City Council As Accountable Body,30/06/2019,Social Services Pooled Budgets,Jcs For People With Learning Disabilitie,Third Party Payments,Residential,580,26/06/2019,1906-00354,0.00,7737.96,R,Advitam Ltd,No
Http://opendatacommunities.org/id/metropolitan-district-council/leeds,Leeds City Council,30/06/2019,Adults and Health,Services For Older People - 65 And Over,Third Party Payments,Payments To Voluntary Organisations,561,14/06/2019,1906-00355,0.00,103916.67,R,Advonet,No
Http://opendatacommunities.org/id/metropolitan-district-council/leeds,Leeds City Council As Accountable Body,30/06/2019,Social Services Pooled Budgets,Jcs For People With Learning Disabilitie,Third Party Payments,Other Agency Services,561,25/06/2019,1906-00356,0.00,558.82,R,Advonet,No
Http://opendatacommunities.org/id/metropolitan-district-council/leeds,Leeds City Council,30/06/2019,Adults and Health,Services For Adults Under 65 Mental/Dis,Third Party Payments,Fees - Level 4,520,14/06/2019,1906-00357,0.00,224.00,R,Ae Bia Assessments Limited,No
Http://opendatacommunities.org/id/metropolitan-district-council/leeds,Leeds City Council,30/06/2019,Adults and Health,Services For Adults Under 65 Mental/Dis,Third Party Payments,Fees - Level 4,520,14/06/2019,1906-00358,0.00,254.21,R,Ae Bia Assessments Limited,No
Http://opendatacommunities.org/id/metropolitan-district-council/leeds,Leeds City Council,30/06/2019,Adults and Health,Services For Adults Under 65 Mental/Dis,Third Party Payments,Fees - Level 4,520,21/06/2019,1906-00359,0.00,200.00,R,Ae Bia Assessments Limited,No
Http://opendatacommunities.org/id/metropolitan-district-council/leeds,Leeds City Council,30/06/2019,Adults and Health,Services For Adults Under 65 Mental/Dis,Third Party Payments,Fees - Level 4,520,21/06/2019,1906-00360,0.00,200.00,R,Ae Bia Assessments Limited,No
Http://opendatacommunities.org/id/metropolitan-district-council/leeds,Leeds City Council,30/06/2019,Adults and Health,Services For Adults Under 65 Mental/Dis,Third Party Payments,Fees - Level 4,520,21/06/2019,1906-00361,0.00,245.15,R,Ae Bia Assessments Limited,No
Http://opendatacommunities.org/id/metropolitan-district-council/leeds,Leeds City Council,30/06/2019,Adults and Health,Services For Adults Under 65 Mental/Dis,Third Party Payments,Fees - Level 4,520,27/06/2019,1906-00362,0.00,200.00,R,Ae Bia Assessments Limited,No
Http://opendatacommunities.org/id/metropolitan-district-council/leeds,Leeds City Council,30/06/2019,Adults and Health,Services For Adults Under 65 Mental/Dis,Third Party Payments,Fees - Level 4,520,27/06/2019,1906-00363,0.00,224.94,R,Ae Bia Assessments Limited,No
Http://opendatacommunities.org/id/metropolitan-district-council/leeds,Leeds City Council,30/06/2019,Adults and Health,Services For Adults Under 65 Mental/Dis,Third Party Payments,Fees - Level 4,520,27/06/2019,1906-00364,0.00,200.00,R,Ae Bia Assessments Limited,No
Http://opendatacommunities.org/id/metropolitan-district-council/leeds,Leeds City Council,30/06/2019,City Development,Highways,Capital,Other Costs,7,21/06/2019,1906-00365,0.00,21882.80,C,Aecom Limited,No
Http://opendatacommunities.org/id/metropolitan-district-council/leeds,Leeds City Council,30/06/2019,City Development,Highways,Capital,Other Costs,7,21/06/2019,1906-00366,0.00,22121.98,C,Aecom Limited,No
Http://opendatacommunities.org/id/metropolitan-district-council/leeds,Leeds City Council,30/06/2019,City Development,Highways,Capital,Other Costs,7,21/06/2019,1906-00367,0.00,16094.18,C,Aecom Limited,No
Http://opendatacommunities.org/id/metropolitan-district-council/leeds,Leeds City Council,30/06/2019,City Development,Economic Development,Capital,Other Costs,7,25/06/2019,1906-00368,0.00,4500.00,C,Aecom Limited,No
Http://opendatacommunities.org/id/metropolitan-district-council/leeds,Leeds City Council,30/06/2019,City Development,Libraries  Arts & Heritage,Supplies and Services,Other Hired And Contracted Services,265,12/06/2019,1906-00369,0.00,5616.80,R,Aesg Ltd,No
Http://opendatacommunities.org/id/metropolitan-district-council/leeds,Leeds City Council,30/06/2019,Communities and Environment,Customer Access,Supplies and Services,Other Hired And Contracted Services,265,05/06/2019,1906-00370,0.00,1172.60,R,Afbedel Ltd,No
Http://opendatacommunities.org/id/metropolitan-district-council/leeds,Leeds City Council As Accountable Body,30/06/2019,Social Services Pooled Budgets,Jcs For People With Learning Disabilitie,Third Party Payments,Home Care,568,06/06/2019,1906-00371,0.00,287.64,R,Affinity Trust,No
Http://opendatacommunities.org/id/metropolitan-district-council/leeds,Leeds City Council As Accountable Body,30/06/2019,Social Services Pooled Budgets,Jcs For People With Learning Disabilitie,Third Party Payments,Home Care,568,14/06/2019,1906-00372,0.00,966.79,R,Affinity Trust,No
Http://opendatacommunities.org/id/metropolitan-district-council/leeds,Leeds City Council As Accountable Body,30/06/2019,Social Services Pooled Budgets,Jcs For People With Learning Disabilitie,Third Party Payments,Home Care,568,14/06/2019,1906-00373,0.00,1166.54,R,Affinity Trust,No
Http://opendatacommunities.org/id/metropolitan-district-council/leeds,Leeds City Council As Accountable Body,30/06/2019,Social Services Pooled Budgets,Jcs For People With Learning Disabilitie,Third Party Payments,Home Care,568,14/06/2019,1906-00374,0.00,287.64,R,Affinity Trust,No
Http://opendatacommunities.org/id/metropolitan-district-council/leeds,Leeds City Council As Accountable Body,30/06/2019,Social Services Pooled Budgets,Jcs For People With Learning Disabilitie,Third Party Payments,Day Centre,564,14/06/2019,1906-00375,0.00,260.40,R,Affinity Trust,No
Http://opendatacommunities.org/id/metropolitan-district-council/leeds,Leeds City Council As Accountable Body,30/06/2019,Social Services Pooled Budgets,Jcs For People With Learning Disabilitie,Third Party Payments,Home Care,568,14/06/2019,1906-00376,0.00,1402.50,R,Affinity Trust,No
Http://opendatacommunities.org/id/metropolitan-district-council/leeds,Leeds City Council As Accountable Body,30/06/2019,Social Services Pooled Budgets,Jcs For People With Learning Disabilitie,Third Party Payments,Home Care,568,14/06/2019,1906-00377,0.00,807.36,R,Affinity Trust,No
Http://opendatacommunities.org/id/metropolitan-district-council/leeds,Leeds City Council As Accountable Body,30/06/2019,Social Services Pooled Budgets,Jcs For People With Learning Disabilitie,Third Party Payments,Home Care,568,14/06/2019,1906-00378,0.00,639.20,R,Affinity Trust,No
Http://opendatacommunities.org/id/metropolitan-district-council/leeds,Leeds City Council As Accountable Body,30/06/2019,Social Services Pooled Budgets,Jcs For People With Learning Disabilitie,Third Party Payments,Home Care,568,14/06/2019,1906-00379,0.00,479.40,R,Affinity Trust,No
Http://opendatacommunities.org/id/metropolitan-district-council/leeds,Leeds City Council As Accountable Body,30/06/2019,Social Services Pooled Budgets,Jcs For People With Learning Disabilitie,Third Party Payments,Home Care,568,14/06/2019,1906-00380,0.00,306.00,R,Affinity Trust,No
Http://opendatacommunities.org/id/metropolitan-district-council/leeds,Leeds City Council As Accountable Body,30/06/2019,Social Services Pooled Budgets,Jcs For People With Learning Disabilitie,Third Party Payments,Home Care,568,14/06/2019,1906-00381,0.00,2724.59,R,Affinity Trust,No
Http://opendatacommunities.org/id/metropolitan-district-council/leeds,Leeds City Council As Accountable Body,30/06/2019,Social Services Pooled Budgets,Jcs For People With Learning Disabilitie,Third Party Payments,Home Care,568,14/06/2019,1906-00382,0.00,306.48,R,Affinity Trust,No
Http://opendatacommunities.org/id/metropolitan-district-council/leeds,Leeds City Council As Accountable Body,30/06/2019,Social Services Pooled Budgets,Jcs For People With Learning Disabilitie,Third Party Payments,Home Care,568,14/06/2019,1906-00383,0.00,958.80,R,Affinity Trust,No
Http://opendatacommunities.org/id/metropolitan-district-council/leeds,Leeds City Council As Accountable Body,30/06/2019,Social Services Pooled Budgets,Jcs For People With Learning Disabilitie,Third Party Payments,Home Care,568,14/06/2019,1906-00384,0.00,447.44,R,Affinity Trust,No
Http://opendatacommunities.org/id/metropolitan-district-council/leeds,Leeds City Council As Accountable Body,30/06/2019,Social Services Pooled Budgets,Jcs For People With Learning Disabilitie,Third Party Payments,Home Care,568,14/06/2019,1906-00385,0.00,191.76,R,Affinity Trust,No
Http://opendatacommunities.org/id/metropolitan-district-council/leeds,Leeds City Council As Accountable Body,30/06/2019,Social Services Pooled Budgets,Jcs For People With Learning Disabilitie,Third Party Payments,Home Care,568,14/06/2019,1906-00386,0.00,319.60,R,Affinity Trust,No
Http://opendatacommunities.org/id/metropolitan-district-council/leeds,Leeds City Council,30/06/2019,Adults and Health,Services For Adults Under 65 Mental/Dis,Third Party Payments,Home Care,568,14/06/2019,1906-00387,0.00,511.36,R,Affinity Trust,No
Http://opendatacommunities.org/id/metropolitan-district-council/leeds,Leeds City Council,30/06/2019,Adults and Health,Services For Older People Under 65 P/Dis,Third Party Payments,Home Care,568,14/06/2019,1906-00388,0.00,925.10,R,Affinity Trust,No
Http://opendatacommunities.org/id/metropolitan-district-council/leeds,Leeds City Council,30/06/2019,Adults and Health,Services For Older People - 65 And Over,Third Party Payments,Home Care,568,14/06/2019,1906-00389,0.00,503.37,R,Affinity Trust,No
Http://opendatacommunities.org/id/metropolitan-district-council/leeds,Leeds City Council As Accountable Body,30/06/2019,Social Services Pooled Budgets,Jcs For People With Learning Disabilitie,Third Party Payments,Day Centre,564,18/06/2019,1906-00390,0.00,1021.32,R,Affinity Trust,No
Http://opendatacommunities.org/id/metropolitan-district-council/leeds,Leeds City Council As Accountable Body,30/06/2019,Social Services Pooled Budgets,Jcs For People With Learning Disabilitie,Third Party Payments,Home Care,568,18/06/2019,1906-00391,0.00,1530.00,R,Affinity Trust,No
Http://opendatacommunities.org/id/metropolitan-district-council/leeds,Leeds City Council As Accountable Body,30/06/2019,Social Services Pooled Budgets,Jcs For People With Learning Disabilitie,Third Party Payments,Home Care,568,18/06/2019,1906-00392,0.00,617.31,R,Affinity Trust,No
Http://opendatacommunities.org/id/metropolitan-district-council/leeds,Leeds City Council As Accountable Body,30/06/2019,Social Services Pooled Budgets,Jcs For People With Learning Disabilitie,Third Party Payments,Home Care,568,18/06/2019,1906-00393,0.00,1170.00,R,Affinity Trust,No
Http://opendatacommunities.org/id/metropolitan-district-council/leeds,Leeds City Council As Accountable Body,30/06/2019,Social Services Pooled Budgets,Jcs For People With Learning Disabilitie,Third Party Payments,Home Care,568,18/06/2019,1906-00394,0.00,2032.80,R,Affinity Trust,No
Http://opendatacommunities.org/id/metropolitan-district-council/leeds,Leeds City Council As Accountable Body,30/06/2019,Social Services Pooled Budgets,Jcs For People With Learning Disabilitie,Third Party Payments,Home Care,568,18/06/2019,1906-00395,0.00,1126.92,R,Affinity Trust,No
Http://opendatacommunities.org/id/metropolitan-district-council/leeds,Leeds City Council As Accountable Body,30/06/2019,Social Services Pooled Budgets,Jcs For People With Learning Disabilitie,Third Party Payments,Home Care,568,18/06/2019,1906-00396,0.00,2819.74,R,Affinity Trust,No
Http://opendatacommunities.org/id/metropolitan-district-council/leeds,Leeds City Council As Accountable Body,30/06/2019,Social Services Pooled Budgets,Jcs For People With Learning Disabilitie,Third Party Payments,Day Centre,564,18/06/2019,1906-00397,0.00,402.24,R,Affinity Trust,No
Http://opendatacommunities.org/id/metropolitan-district-council/leeds,Leeds City Council As Accountable Body,30/06/2019,Social Services Pooled Budgets,Jcs For People With Learning Disabilitie,Third Party Payments,Home Care,568,18/06/2019,1906-00398,0.00,323.52,R,Affinity Trust,No
Http://opendatacommunities.org/id/metropolitan-district-council/leeds,Leeds City Council As Accountable Body,30/06/2019,Social Services Pooled Budgets,Jcs For People With Learning Disabilitie,Third Party Payments,Day Centre,564,18/06/2019,1906-00399,0.00,1813.56,R,Affinity Trust,No
Http://opendatacommunities.org/id/metropolitan-district-council/leeds,Leeds City Council As Accountable Body,30/06/2019,Social Services Pooled Budgets,Jcs For People With Learning Disabilitie,Third Party Payments,Home Care,568,18/06/2019,1906-00400,0.00,1080.00,R,Affinity Trust,No
Http://opendatacommunities.org/id/metropolitan-district-council/leeds,Leeds City Council As Accountable Body,30/06/2019,Social Services Pooled Budgets,Jcs For People With Learning Disabilitie,Third Party Payments,Home Care,568,18/06/2019,1906-00401,0.00,1005.60,R,Affinity Trust,No
Http://opendatacommunities.org/id/metropolitan-district-council/leeds,Leeds City Council As Accountable Body,30/06/2019,Social Services Pooled Budgets,Jcs For People With Learning Disabilitie,Third Party Payments,Home Care,568,18/06/2019,1906-00402,0.00,360.00,R,Affinity Trust,No
Http://opendatacommunities.org/id/metropolitan-district-council/leeds,Leeds City Council As Accountable Body,30/06/2019,Social Services Pooled Budgets,Jcs For People With Learning Disabilitie,Third Party Payments,Day Centre,564,18/06/2019,1906-00403,0.00,536.09,R,Affinity Trust,No
Http://opendatacommunities.org/id/metropolitan-district-council/leeds,Leeds City Council As Accountable Body,30/06/2019,Social Services Pooled Budgets,Jcs For People With Learning Disabilitie,Third Party Payments,Home Care,568,18/06/2019,1906-00404,0.00,1109.40,R,Affinity Trust,No
Http://opendatacommunities.org/id/metropolitan-district-council/leeds,Leeds City Council As Accountable Body,30/06/2019,Social Services Pooled Budgets,Jcs For People With Learning Disabilitie,Transfer Payments,Personal Budgets,627,18/06/2019,1906-00405,0.00,443.22,R,Affinity Trust,No
Http://opendatacommunities.org/id/metropolitan-district-council/leeds,Leeds City Council As Accountable Body,30/06/2019,Social Services Pooled Budgets,Jcs For People With Learning Disabilitie,Third Party Payments,Home Care,568,18/06/2019,1906-00406,0.00,703.92,R,Affinity Trust,No
Http://opendatacommunities.org/id/metropolitan-district-council/leeds,Leeds City Council As Accountable Body,30/06/2019,Social Services Pooled Budgets,Jcs For People With Learning Disabilitie,Third Party Payments,Home Care,568,19/06/2019,1906-00407,0.00,1086.64,R,Affinity Trust,No
Http://opendatacommunities.org/id/metropolitan-district-council/leeds,Leeds City Council As Accountable Body,30/06/2019,Social Services Pooled Budgets,Jcs For People With Learning Disabilitie,Third Party Payments,Home Care,568,19/06/2019,1906-00408,0.00,824.18,R,Affinity Trust,No
Http://opendatacommunities.org/id/metropolitan-district-council/leeds,Leeds City Council As Accountable Body,30/06/2019,Social Services Pooled Budgets,Jcs For People With Learning Disabilitie,Third Party Payments,Home Care,568,19/06/2019,1906-00409,0.00,639.20,R,Affinity Trust,No
Http://opendatacommunities.org/id/metropolitan-district-council/leeds,Leeds City Council As Accountable Body,30/06/2019,Social Services Pooled Budgets,Jcs For People With Learning Disabilitie,Third Party Payments,Home Care,568,19/06/2019,1906-00410,0.00,1330.34,R,Affinity Trust,No
Http://opendatacommunities.org/id/metropolitan-district-council/leeds,Leeds City Council As Accountable Body,30/06/2019,Social Services Pooled Budgets,Jcs For People With Learning Disabilitie,Third Party Payments,Home Care,568,19/06/2019,1906-00411,0.00,319.60,R,Affinity Trust,No
Http://opendatacommunities.org/id/metropolitan-district-council/leeds,Leeds City Council As Accountable Body,30/06/2019,Social Services Pooled Budgets,Jcs For People With Learning Disabilitie,Third Party Payments,Day Centre,564,19/06/2019,1906-00412,0.00,255.68,R,Affinity Trust,No
Http://opendatacommunities.org/id/metropolitan-district-council/leeds,Leeds City Council As Accountable Body,30/06/2019,Social Services Pooled Budgets,Jcs For People With Learning Disabilitie,Third Party Payments,Day Centre,564,20/06/2019,1906-00413,0.00,1170.00,R,Affinity Trust,No
Http://opendatacommunities.org/id/metropolitan-district-council/leeds,Leeds City Council As Accountable Body,30/06/2019,Social Services Pooled Budgets,Jcs For People With Learning Disabilitie,Third Party Payments,Day Centre,564,20/06/2019,1906-00414,0.00,1994.44,R,Affinity Trust,No
Http://opendatacommunities.org/id/metropolitan-district-council/leeds,Leeds City Council As Accountable Body,30/06/2019,Social Services Pooled Budgets,Jcs For People With Learning Disabilitie,Third Party Payments,Day Centre,564,20/06/2019,1906-00415,0.00,1037.97,R,Affinity Trust,No
Http://opendatacommunities.org/id/metropolitan-district-council/leeds,Leeds City Council,30/06/2019,Adults and Health,Services For Older People Under 65 P/Dis,Third Party Payments,Home Care,568,20/06/2019,1906-00416,0.00,526.68,R,Affinity Trust,No
Http://opendatacommunities.org/id/metropolitan-district-council/leeds,Leeds City Council,30/06/2019,Adults and Health,Services For Older People - 65 And Over,Third Party Payments,HCAIT Community Support,575,24/06/2019,1906-00417,0.00,543.32,R,Affinity Trust,No
Http://opendatacommunities.org/id/metropolitan-district-council/leeds,Leeds City Council,30/06/2019,Adults and Health,Services For Older People Under 65 P/Dis,Third Party Payments,Home Care,568,24/06/2019,1906-00418,0.00,942.82,R,Affinity Trust,No
Http://opendatacommunities.org/id/metropolitan-district-council/leeds,Leeds City Council As Accountable Body,30/06/2019,Social Services Pooled Budgets,Jcs For People With Learning Disabilitie,Third Party Payments,Day Centre,564,25/06/2019,1906-00419,0.00,1260.00,R,Affinity Trust,No
Http://opendatacommunities.org/id/metropolitan-district-council/leeds,Leeds City Council As Accountable Body,30/06/2019,Social Services Pooled Budgets,Jcs For People With Learning Disabilitie,Third Party Payments,Home Care,568,25/06/2019,1906-00420,0.00,1553.70,R,Affinity Trust,No
Http://opendatacommunities.org/id/metropolitan-district-council/leeds,Leeds City Council As Accountable Body,30/06/2019,Social Services Pooled Budgets,Jcs For People With Learning Disabilitie,Third Party Payments,Home Care,568,28/06/2019,1906-00421,0.00,1170.00,R,Affinity Trust,No
Http://opendatacommunities.org/id/metropolitan-district-council/leeds,Leeds City Council As Accountable Body,30/06/2019,Social Services Pooled Budgets,Jcs For People With Learning Disabilitie,Third Party Payments,Home Care,568,28/06/2019,1906-00422,0.00,885.33,R,Affinity Trust,No
Http://opendatacommunities.org/id/metropolitan-district-council/leeds,Leeds City Council As Accountable Body,30/06/2019,Social Services Pooled Budgets,Jcs For People With Learning Disabilitie,Third Party Payments,Home Care,568,28/06/2019,1906-00423,0.00,2929.78,R,Affinity Trust,No
Http://opendatacommunities.org/id/metropolitan-district-council/leeds,Leeds City Council As Accountable Body,30/06/2019,Social Services Pooled Budgets,Jcs For People With Learning Disabilitie,Third Party Payments,Day Centre,564,28/06/2019,1906-00424,0.00,1777.55,R,Affinity Trust,No
Http://opendatacommunities.org/id/metropolitan-district-council/leeds,Leeds City Council As Accountable Body,30/06/2019,Social Services Pooled Budgets,Jcs For People With Learning Disabilitie,Third Party Payments,Home Care,568,28/06/2019,1906-00425,0.00,1211.04,R,Affinity Trust,No
Http://opendatacommunities.org/id/metropolitan-district-council/leeds,Leeds City Council As Accountable Body,30/06/2019,Social Services Pooled Budgets,Jcs For People With Learning Disabilitie,Third Party Payments,Home Care,568,28/06/2019,1906-00426,0.00,639.20,R,Affinity Trust,No
Http://opendatacommunities.org/id/metropolitan-district-council/leeds,Leeds City Council As Accountable Body,30/06/2019,Social Services Pooled Budgets,Jcs For People With Learning Disabilitie,Third Party Payments,Home Care,568,28/06/2019,1906-00427,0.00,1065.30,R,Affinity Trust,No
Http://opendatacommunities.org/id/metropolitan-district-council/leeds,Leeds City Council As Accountable Body,30/06/2019,Social Services Pooled Budgets,Jcs For People With Learning Disabilitie,Third Party Payments,Home Care,568,28/06/2019,1906-00428,0.00,3446.80,R,Affinity Trust,No
Http://opendatacommunities.org/id/metropolitan-district-council/leeds,Leeds City Council As Accountable Body,30/06/2019,Social Services Pooled Budgets,Jcs For People With Learning Disabilitie,Third Party Payments,Sheltered Accommodation,569,26/06/2019,1906-00429,0.00,193808.02,R,Affinity Trust North Divisional Office,No
Http://opendatacommunities.org/id/metropolitan-district-council/leeds,Leeds City Council,30/06/2019,Communities and Environment,Parks And Countryside  ,Transport,External Hire -Occasional,304,13/05/2019,1906-00430,0.00,950.00,R,Afi Uplift,Yes
Http://opendatacommunities.org/id/metropolitan-district-council/leeds,Leeds City Council,30/06/2019,Communities and Environment,Parks And Countryside  ,Transport,External Hire -Occasional,304,13/05/2019,1906-00431,0.00,950.00,R,Afi Uplift,Yes
Http://opendatacommunities.org/id/metropolitan-district-council/leeds,Leeds City Council,30/06/2019,Communities and Environment,Parks And Countryside  ,Transport,External Hire -Occasional,304,13/05/2019,1906-00432,0.00,950.00,R,Afi Uplift,Yes
Http://opendatacommunities.org/id/metropolitan-district-council/leeds,Leeds City Council,30/06/2019,Communities and Environment,Parks And Countryside  ,Transport,External Hire -Occasional,304,13/05/2019,1906-00433,0.00,950.00,R,Afi Uplift,Yes
Http://opendatacommunities.org/id/metropolitan-district-council/leeds,Leeds City Council,30/06/2019,Adults and Health,Public Health,Third Party Payments,Services Rendered By Voluntary Sector,505,21/06/2019,1906-00434,0.00,30000.00,R,Age Uk Leeds,No
Http://opendatacommunities.org/id/metropolitan-district-council/leeds,Leeds City Council,30/06/2019,City Development,Libraries  Arts & Heritage,Supplies and Services,Operational Materials,205,21/06/2019,1906-00435,0.00,67.10,R,Age Uk Leeds,No
Http://opendatacommunities.org/id/metropolitan-district-council/leeds,Leeds City Council,30/06/2019,City Development,Libraries  Arts & Heritage,Supplies and Services,Bought In Professional Services,277,21/06/2019,1906-00436,0.00,136.50,R,Age Uk Leeds,No
Http://opendatacommunities.org/id/metropolitan-district-council/leeds,Leeds City Council,30/06/2019,Adults and Health,Services For Older People - 65 And Over,Third Party Payments,Payments To Voluntary Organisations,561,28/06/2019,1906-00437,0.00,10599.75,R,Age Uk Leeds,No
Http://opendatacommunities.org/id/metropolitan-district-council/leeds,Leeds City Council,30/06/2019,City Development,Highways,Supplies and Services,Operational Materials,205,06/06/2019,1906-00438,0.00,8711.72,R,Aggregate Industries Uk Ltd,No
Http://opendatacommunities.org/id/metropolitan-district-council/leeds,Leeds City Council As Accountable Body,30/06/2019,Social Services Pooled Budgets,Leeds Community Equip Store Pooled Budgt,Supplies and Services,Other Equipment,203,28/06/2019,1906-00439,0.00,3407.60,R,Aidapt Bathrooms Ltd,No
Http://opendatacommunities.org/id/metropolitan-district-council/leeds,Leeds City Council As Accountable Body,30/06/2019,Social Services Pooled Budgets,Leeds Community Equip Store Pooled Budgt,Supplies and Services,Other Equipment,203,28/06/2019,1906-00440,0.00,2110.85,R,Aidapt Bathrooms Ltd,No
Http://opendatacommunities.org/id/metropolitan-district-council/leeds,Leeds City Council As Accountable Body,30/06/2019,Social Services Pooled Budgets,Leeds Community Equip Store Pooled Budgt,Supplies and Services,Other Equipment,203,28/06/2019,1906-00441,0.00,1099.40,R,Aidapt Bathrooms Ltd,No
Http://opendatacommunities.org/id/metropolitan-district-council/leeds,Leeds City Council As Accountable Body,30/06/2019,Social Services Pooled Budgets,Leeds Community Equip Store Pooled Budgt,Supplies and Services,Other Equipment,203,28/06/2019,1906-00442,0.00,644.75,R,Aidapt Bathrooms Ltd,No
Http://opendatacommunities.org/id/metropolitan-district-council/leeds,Leeds City Council As Accountable Body,30/06/2019,Social Services Pooled Budgets,Leeds Community Equip Store Pooled Budgt,Supplies and Services,Other Equipment,203,28/06/2019,1906-00443,0.00,517.70,R,Aidapt Bathrooms Ltd,No
Http://opendatacommunities.org/id/metropolitan-district-council/leeds,Leeds City Council As Accountable Body,30/06/2019,Social Services Pooled Budgets,Leeds Community Equip Store Pooled Budgt,Supplies and Services,Other Equipment,203,28/06/2019,1906-00444,0.00,1374.25,R,Aidapt Bathrooms Ltd,No
Http://opendatacommunities.org/id/metropolitan-district-council/leeds,Leeds City Council,30/06/2019,Resources and Housing,Leeds Building Services,Supplies and Services,Operational Materials,205,06/06/2019,1906-00445,0.00,108.87,R,Air Conditioning Accessories,No
Http://opendatacommunities.org/id/metropolitan-district-council/leeds,Leeds City Council,30/06/2019,Resources and Housing,Leeds Building Services,Supplies and Services,Operational Materials,205,14/06/2019,1906-00446,0.00,1989.72,R,Air Conditioning Accessories,No
Http://opendatacommunities.org/id/metropolitan-district-council/leeds,Leeds City Council,30/06/2019,Resources and Housing,Leeds Building Services,Supplies and Services,Operational Materials,205,21/06/2019,1906-00447,0.00,33.07,R,Air Conditioning Accessories,No
Http://opendatacommunities.org/id/metropolitan-district-council/leeds,Leeds City Council,30/06/2019,Resources and Housing,Leeds Building Services,Supplies and Services,Operational Materials,205,21/06/2019,1906-00448,0.00,107.86,R,Air Conditioning Accessories,No
Http://opendatacommunities.org/id/metropolitan-district-council/leeds,Leeds City Council,30/06/2019,Resources and Housing,Leeds Building Services,Supplies and Services,Operational Materials,205,28/06/2019,1906-00449,0.00,33.00,R,Air Conditioning Accessories,No
Http://opendatacommunities.org/id/metropolitan-district-council/leeds,Leeds City Council,30/06/2019,Communities and Environment,Environmental Health,Supplies and Services,Other Hired And Contracted Services,265,05/06/2019,1906-00450,0.00,10.45,R,Air Liquide Uk,No
Http://opendatacommunities.org/id/metropolitan-district-council/leeds,Leeds City Council,30/06/2019,Resources and Housing,Leeds Building Services,Supplies and Services,Operational Materials,205,06/06/2019,1906-00451,0.00,238.80,R,Air Liquide Uk,No
Http://opendatacommunities.org/id/metropolitan-district-council/leeds,Leeds City Council,30/06/2019,Resources and Housing,Leeds Building Services,Supplies and Services,Operational Materials,205,07/06/2019,1906-00452,0.00,14.40,R,Air Liquide Uk,No
Http://opendatacommunities.org/id/metropolitan-district-council/leeds,Leeds City Council,30/06/2019,Children and Families,Social Care  ,Supplies and Services,Training Allowances,257,14/05/2019,1906-00453,0.00,1310.70,R,Airbnb,Yes
Http://opendatacommunities.org/id/metropolitan-district-council/leeds,Leeds City Council,30/06/2019,Children and Families,Social Care  ,Supplies and Services,Subsistence,256,22/05/2019,1906-00454,0.00,249.58,R,Airbnb,Yes
Http://opendatacommunities.org/id/metropolitan-district-council/leeds,Leeds City Council,30/06/2019,Communities and Environment,Parks and Countryside,Supplies and Services,Other Hired And Contracted Services,265,21/06/2019,1906-00455,0.00,9840.00,R,Aire Valley Tree Services Ltd,No
Http://opendatacommunities.org/id/metropolitan-district-council/leeds,Leeds City Council,30/06/2019,Communities and Environment,Parks and Countryside,Supplies and Services,Other Hired And Contracted Services,265,21/06/2019,1906-00456,0.00,1475.00,R,Aire Valley Tree Services Ltd,No
Http://opendatacommunities.org/id/metropolitan-district-council/leeds,Leeds City Council,30/06/2019,Adults and Health,Services For Older People - 65 And Over,Third Party Payments,Residential Care Dementia,571,26/06/2019,1906-00457,0.00,50996.47,R,Aire View Residential Home,No
Http://opendatacommunities.org/id/metropolitan-district-council/leeds,Leeds City Council,30/06/2019,Adults and Health,Services For Older People - 65 And Over,Third Party Payments,Residential,580,26/06/2019,1906-00458,0.00,6208.42,R,Aire View Residential Home,No
Http://opendatacommunities.org/id/metropolitan-district-council/leeds,Leeds City Council,30/06/2019,Adults and Health,Services For Older People - 65 And Over,Third Party Payments,Residential Care Dementia,571,26/06/2019,1906-00459,0.00,2941.40,R,Airedale Care Home,No
Http://opendatacommunities.org/id/metropolitan-district-council/leeds,Leeds City Council,30/06/2019,Adults and Health,Services For Older People - 65 And Over,Third Party Payments,Residential,580,26/06/2019,1906-00460,0.00,19975.44,R,Airedale Care Home,No
Http://opendatacommunities.org/id/metropolitan-district-council/leeds,Leeds City Council,30/06/2019,Children and Families,Social Care,Supplies and Services,Operational Furniture And Equipment,203,21/06/2019,1906-00461,0.00,5695.00,R,Airedale Catering Equipment Ltd,No
Http://opendatacommunities.org/id/metropolitan-district-council/leeds,Leeds City Council,30/06/2019,Communities and Environment,Environmental Health,Supplies and Services,Other Hired And Contracted Services,265,21/06/2019,1906-00462,0.00,391.19,R,Aireworth Vets,No
Http://opendatacommunities.org/id/metropolitan-district-council/leeds,Leeds City Council,30/06/2019,Resources and Housing,Commercial Services,Supplies and Services,Other Hired And Contracted Services,265,07/06/2019,1906-00463,0.00,180.00,R,Air-Weigh Europe Limited,No
Http://opendatacommunities.org/id/metropolitan-district-council/leeds,Leeds City Council,30/06/2019,Resources and Housing,Commercial Services,Supplies and Services,Other Hired And Contracted Services,265,07/06/2019,1906-00464,0.00,180.00,R,Air-Weigh Europe Limited,No
Http://opendatacommunities.org/id/metropolitan-district-council/leeds,Leeds City Council,30/06/2019,Adults and Health,Services For Adults Under 65 Mental/Dis,Third Party Payments,Services Provided By Other NHS Bodies,522,21/06/2019,1906-00465,0.00,239.50,R,Ait Mitra Limited,No
Http://opendatacommunities.org/id/metropolitan-district-council/leeds,Leeds City Council,30/06/2019,Adults and Health,Services For Adults Under 65 Mental/Dis,Third Party Payments,Services Provided By Other NHS Bodies,522,21/06/2019,1906-00466,0.00,175.00,R,Ait Mitra Limited,No
Http://opendatacommunities.org/id/metropolitan-district-council/leeds,Leeds City Council,30/06/2019,Adults and Health,Services For Adults Under 65 Mental/Dis,Third Party Payments,Services Provided By Other NHS Bodies,522,21/06/2019,1906-00467,0.00,175.00,R,Ait Mitra Limited,No
Http://opendatacommunities.org/id/metropolitan-district-council/leeds,Leeds City Council,30/06/2019,Adults and Health,Services For Adults Under 65 Mental/Dis,Third Party Payments,Services Provided By Other NHS Bodies,522,21/06/2019,1906-00468,0.00,175.00,R,Ait Mitra Limited,No
Http://opendatacommunities.org/id/metropolitan-district-council/leeds,Leeds City Council,30/06/2019,Adults and Health,Services For Adults Under 65 Mental/Dis,Third Party Payments,Services Provided By Other NHS Bodies,522,21/06/2019,1906-00469,0.00,175.00,R,Ait Mitra Limited,No
Http://opendatacommunities.org/id/metropolitan-district-council/leeds,Leeds City Council,30/06/2019,Adults and Health,Services For Adults Under 65 Mental/Dis,Third Party Payments,Services Provided By Other NHS Bodies,522,21/06/2019,1906-00470,0.00,175.00,R,Ait Mitra Limited,No
Http://opendatacommunities.org/id/metropolitan-district-council/leeds,Leeds City Council,30/06/2019,Adults and Health,Services For Adults Under 65 Mental/Dis,Third Party Payments,Services Provided By Other NHS Bodies,522,21/06/2019,1906-00471,0.00,175.00,R,Ait Mitra Limited,No
Http://opendatacommunities.org/id/metropolitan-district-council/leeds,Leeds City Council,30/06/2019,Adults and Health,Services For Adults Under 65 Mental/Dis,Third Party Payments,Services Provided By Other NHS Bodies,522,21/06/2019,1906-00472,0.00,175.00,R,Ait Mitra Limited,No
Http://opendatacommunities.org/id/metropolitan-district-council/leeds,Leeds City Council,30/06/2019,Adults and Health,Services For Adults Under 65 Mental/Dis,Third Party Payments,Services Provided By Other NHS Bodies,522,21/06/2019,1906-00473,0.00,175.00,R,Ait Mitra Limited,No
Http://opendatacommunities.org/id/metropolitan-district-council/leeds,Leeds City Council,30/06/2019,Adults and Health,Services For Adults Under 65 Mental/Dis,Third Party Payments,Services Provided By Other NHS Bodies,522,21/06/2019,1906-00474,0.00,175.00,R,Ait Mitra Limited,No
Http://opendatacommunities.org/id/metropolitan-district-council/leeds,Leeds City Council,30/06/2019,Adults and Health,Services For Adults Under 65 Mental/Dis,Third Party Payments,Services Provided By Other NHS Bodies,522,21/06/2019,1906-00475,0.00,175.00,R,Ait Mitra Limited,No
Http://opendatacommunities.org/id/metropolitan-district-council/leeds,Leeds City Council As Accountable Body,30/06/2019,Social Services Pooled Budgets,Jcs For People With Learning Disabilitie,Third Party Payments,Residential,580,26/06/2019,1906-00476,0.00,6080.84,R,Aitch Care Homes,No
Http://opendatacommunities.org/id/metropolitan-district-council/leeds,Leeds City Council,30/06/2019,Communities and Environment,Parks and Countryside,Supplies and Services,Operational Materials,205,19/06/2019,1906-00477,0.00,60.00,R,Aitkens Sportsturf Ltd,No
Http://opendatacommunities.org/id/metropolitan-district-council/leeds,Leeds City Council,30/06/2019,Resources and Housing,Commercial Services,Supplies and Services,Other Hired And Contracted Services,265,05/06/2019,1906-00478,0.00,525.00,R,REDACTED PERSONAL DATA,No
Http://opendatacommunities.org/id/metropolitan-district-council/leeds,Leeds City Council,30/06/2019,Resources and Housing,Commercial Services,Supplies and Services,Other Hired And Contracted Services,265,05/06/2019,1906-00479,0.00,600.00,R,REDACTED PERSONAL DATA,No
Http://opendatacommunities.org/id/metropolitan-district-council/leeds,Leeds City Council,30/06/2019,City Development,Recreation,Supplies and Services,Operational Furniture And Equipment,203,21/06/2019,1906-00480,0.00,529.00,R,Aj Products (Uk) Ltd,No
Http://opendatacommunities.org/id/metropolitan-district-council/leeds,Leeds City Council,30/06/2019,Resources and Housing,Leeds Building Services,Supplies and Services,Operational Furniture And Equipment,203,06/06/2019,1906-00481,0.00,158.00,R,Ajm Fixings & Power Tools Ltd,No
Http://opendatacommunities.org/id/metropolitan-district-council/leeds,Leeds City Council,30/06/2019,Resources and Housing,Leeds Building Services,Supplies and Services,Operational Furniture And Equipment,203,06/06/2019,1906-00482,0.00,156.04,R,Ajm Fixings & Power Tools Ltd,No
Http://opendatacommunities.org/id/metropolitan-district-council/leeds,Leeds City Council,30/06/2019,Resources and Housing,Leeds Building Services,Supplies and Services,Operational Furniture And Equipment,203,11/06/2019,1906-00483,0.00,312.00,R,Ajm Fixings & Power Tools Ltd,No
Http://opendatacommunities.org/id/metropolitan-district-council/leeds,Leeds City Council,30/06/2019,Resources and Housing,Leeds Building Services,Supplies and Services,Stores - Central And Other Depots,5,11/06/2019,1906-00484,0.00,842.94,R,Ajm Fixings & Power Tools Ltd,No
Http://opendatacommunities.org/id/metropolitan-district-council/leeds,Leeds City Council,30/06/2019,Resources and Housing,Leeds Building Services,Supplies and Services,Operational Furniture And Equipment,203,11/06/2019,1906-00485,0.00,37.38,R,Ajm Fixings & Power Tools Ltd,No
Http://opendatacommunities.org/id/metropolitan-district-council/leeds,Leeds City Council,30/06/2019,Resources and Housing,Leeds Building Services,Supplies and Services,Operational Furniture And Equipment,203,14/06/2019,1906-00486,0.00,596.00,R,Ajm Fixings & Power Tools Ltd,No
Http://opendatacommunities.org/id/metropolitan-district-council/leeds,Leeds City Council,30/06/2019,Resources and Housing,Leeds Building Services,Supplies and Services,Operational Furniture And Equipment,203,21/06/2019,1906-00487,0.00,965.00,R,Ajm Fixings & Power Tools Ltd,No
Http://opendatacommunities.org/id/metropolitan-district-council/leeds,Leeds City Council,30/06/2019,Resources and Housing,Leeds Building Services,Supplies and Services,Stores - Central And Other Depots,5,28/06/2019,1906-00488,0.00,1056.97,R,Ajm Fixings & Power Tools Ltd,No
Http://opendatacommunities.org/id/metropolitan-district-council/leeds,Leeds City Council,30/06/2019,Resources and Housing,Leeds Building Services,Supplies and Services,Stores - Central And Other Depots,5,28/06/2019,1906-00489,0.00,26.16,R,Ajm Fixings & Power Tools Ltd,No
Http://opendatacommunities.org/id/metropolitan-district-council/leeds,Leeds City Council,30/06/2019,Resources and Housing,Leeds Building Services,Supplies and Services,Operational Furniture And Equipment,203,28/06/2019,1906-00490,0.00,6449.00,R,Ajm Fixings & Power Tools Ltd,No
Http://opendatacommunities.org/id/metropolitan-district-council/leeds,Leeds City Council,30/06/2019,City Development,Recreation  ,Supplies and Services,Operational Furniture And Equipment,203,01/05/2019,1906-00491,0.00,165.00,R,Ajproductscouk,Yes
Http://opendatacommunities.org/id/metropolitan-district-council/leeds,Leeds City Council,30/06/2019,Children and Families,Social Care  ,Supplies and Services,Subsistence,256,13/05/2019,1906-00492,0.00,33.33,R,Akbar Leeds,Yes
Http://opendatacommunities.org/id/metropolitan-district-council/leeds,Leeds City Council,30/06/2019,Adults and Health,Service Strategy,Supplies and Services,Other Hired And Contracted Services,265,14/06/2019,1906-00493,0.00,1000.00,R,Akd Solutions Ltd,No
Http://opendatacommunities.org/id/metropolitan-district-council/leeds,Leeds City Council,30/06/2019,Resources and Housing,Sustainable Energy & Climate Change,Capital,Other Costs,7,10/06/2019,1906-00494,0.00,1500.00,C,Akeel Younas,No
Http://opendatacommunities.org/id/metropolitan-district-council/leeds,Leeds City Council,30/06/2019,Resources and Housing,Leeds Building Services,Supplies and Services,Operational Materials,205,21/06/2019,1906-00495,0.00,192.32,R,Akw Medicare Ltd,No
Http://opendatacommunities.org/id/metropolitan-district-council/leeds,Leeds City Council,30/06/2019,Adults and Health,Services For Older People - 65 And Over,Third Party Payments,Payments To Voluntary Organisations,561,28/06/2019,1906-00496,0.00,3000.00,R,Al Khidmat Centre,No
Http://opendatacommunities.org/id/metropolitan-district-council/leeds,Leeds City Council,30/06/2019,Communities and Environment,Car Parking Services,Income,Penalties  Fines & Car Parking Charges,934,06/06/2019,1906-00497,0.00,30.00,R,REDACTED PERSONAL DATA,No
Http://opendatacommunities.org/id/metropolitan-district-council/leeds,Leeds City Council,30/06/2019,Children and Families,Social Care,Third Party Payments,Services Rendered By Other Organisations,511,07/06/2019,1906-00498,0.00,838.50,R,REDACTED PERSONAL DATA,No
Http://opendatacommunities.org/id/metropolitan-district-council/leeds,Leeds City Council,30/06/2019,Adults and Health,Services For Older People - 65 And Over,Third Party Payments,Residential Care Dementia,571,26/06/2019,1906-00499,0.00,1134.75,R,Albemarle,No
Http://opendatacommunities.org/id/metropolitan-district-council/leeds,Leeds City Council,30/06/2019,Resources and Housing,Commercial Services,Transport,Vehicle Spares,345,12/06/2019,1906-00500,0.00,4.28,R,Albert Jagger Limited,No
Http://opendatacommunities.org/id/metropolitan-district-council/leeds,Leeds City Council,30/06/2019,Communities and Environment,Communities,Supplies and Services,Computer Software & Equipment,214,17/06/2019,1906-00501,0.00,1075.00,R,Alcium Software Ltd,No
Http://opendatacommunities.org/id/metropolitan-district-council/leeds,Leeds City Council,30/06/2019,Children and Families,Social Care  ,Premises,Cleaning Maintenance & Toiletries,127,30/04/2019,1906-00502,0.00,13.76,R,Aldi,Yes
Http://opendatacommunities.org/id/metropolitan-district-council/leeds,Leeds City Council,30/06/2019,Children and Families,Social Care  ,Supplies and Services,Food & Drink,231,30/04/2019,1906-00503,0.00,11.44,R,Aldi,Yes
Http://opendatacommunities.org/id/metropolitan-district-council/leeds,Leeds City Council,30/06/2019,Communities and Environment,Customer Access  ,Supplies and Services,Office Furniture & Equipment,201,07/05/2019,1906-00504,0.00,8.56,R,Aldi,Yes
Http://opendatacommunities.org/id/metropolitan-district-council/leeds,Leeds City Council,30/06/2019,Children and Families,Social Care  ,Supplies and Services,Food & Drink,231,22/05/2019,1906-00505,0.00,50.44,R,Aldi,Yes
Http://opendatacommunities.org/id/metropolitan-district-council/leeds,Leeds City Council,30/06/2019,Children and Families,Social Care  ,Supplies and Services,Food & Drink,231,11/05/2019,1906-00506,0.00,39.75,R,Aldi 40 779,Yes
Http://opendatacommunities.org/id/metropolitan-district-council/leeds,Leeds City Council,30/06/2019,Children and Families,Social Care  ,Supplies and Services,Food & Drink,231,14/05/2019,1906-00507,0.00,31.80,R,Aldi 40 779,Yes
Http://opendatacommunities.org/id/metropolitan-district-council/leeds,Leeds City Council,30/06/2019,Children and Families,Social Care  ,Supplies and Services,Food & Drink,231,29/05/2019,1906-00508,0.00,43.96,R,Aldi 49 779,Yes
Http://opendatacommunities.org/id/metropolitan-district-council/leeds,Leeds City Council,30/06/2019,Adults and Health,Services For Older People - 65 And Over  ,Supplies and Services,General Amenity For Clients/Residents,285,25/05/2019,1906-00509,0.00,8.95,R,Aldi 57 779,Yes
Http://opendatacommunities.org/id/metropolitan-district-council/leeds,Leeds City Council,30/06/2019,City Development,Highways  ,Supplies and Services,Operational Furniture And Equipment,203,14/05/2019,1906-00510,0.00,22.35,R,Aldi 71 779,Yes
Http://opendatacommunities.org/id/metropolitan-district-council/leeds,Leeds City Council,30/06/2019,Children and Families,Social Care  ,Supplies and Services,Teaching Materials,202,14/05/2019,1906-00511,0.00,34.44,R,Aldi 71 779,Yes
Http://opendatacommunities.org/id/metropolitan-district-council/leeds,Leeds City Council,30/06/2019,Children and Families,Social Care  ,Supplies and Services,Food & Drink,231,21/05/2019,1906-00512,0.00,7.41,R,Aldi 71 779,Yes
Http://opendatacommunities.org/id/metropolitan-district-council/leeds,Leeds City Council,30/06/2019,Children and Families,Social Care  ,Transfer Payments,Leaving Care Allowances,634,21/05/2019,1906-00513,0.00,68.44,R,Aldi 71 779,Yes
Http://opendatacommunities.org/id/metropolitan-district-council/leeds,Leeds City Council,30/06/2019,Communities and Environment,Communities  ,Supplies and Services,Food & Drink,231,29/05/2019,1906-00514,0.00,3.83,R,Aldi 71 779,Yes
Http://opendatacommunities.org/id/metropolitan-district-council/leeds,Leeds City Council,30/06/2019,Communities and Environment,Parks And Countryside  ,Supplies and Services,Operational Materials,205,01/05/2019,1906-00515,0.00,7.48,R,Aldi 8 779,Yes
Http://opendatacommunities.org/id/metropolitan-district-council/leeds,Leeds City Council,30/06/2019,Children and Families,Social Care  ,Supplies and Services,Food & Drink,231,13/05/2019,1906-00516,0.00,4.06,R,Aldi 85 779,Yes
Http://opendatacommunities.org/id/metropolitan-district-council/leeds,Leeds City Council,30/06/2019,Children and Families,Social Care  ,Transfer Payments,Leaving Care Allowances,634,16/05/2019,1906-00517,0.00,8.68,R,Aldi 89 779,Yes
Http://opendatacommunities.org/id/metropolitan-district-council/leeds,Leeds City Council,30/06/2019,Adults and Health,Social Services Support Services,Employees,Training & Development,70,25/06/2019,1906-00518,0.00,13.00,R,REDACTED PERSONAL DATA,No
Http://opendatacommunities.org/id/metropolitan-district-council/leeds,Leeds City Council,30/06/2019,Communities and Environment,Customer Access,Supplies and Services,Other Hired And Contracted Services,265,05/06/2019,1906-00519,0.00,25.50,R,Alena Zueva,No
Http://opendatacommunities.org/id/metropolitan-district-council/leeds,Leeds City Council,30/06/2019,Communities and Environment,Customer Access,Supplies and Services,Bought In Professional Services,277,11/06/2019,1906-00520,0.00,661.30,R,Alena Zueva,No
Http://opendatacommunities.org/id/metropolitan-district-council/leeds,Leeds City Council,30/06/2019,Children and Families,Social Care,Support Services,Legal Disbursements,411,06/06/2019,1906-00521,0.00,175.68,R,Alere Toxicology Plc,No
Http://opendatacommunities.org/id/metropolitan-district-council/leeds,Leeds City Council,30/06/2019,Children and Families,Social Care,Support Services,Legal Disbursements,411,07/06/2019,1906-00522,0.00,112.25,R,Alere Toxicology Plc,No
Http://opendatacommunities.org/id/metropolitan-district-council/leeds,Leeds City Council,30/06/2019,Children and Families,Social Care,Support Services,Legal Disbursements,411,25/06/2019,1906-00523,0.00,131.75,R,Alere Toxicology Plc,No
Http://opendatacommunities.org/id/metropolitan-district-council/leeds,Leeds City Council,30/06/2019,Resources and Housing,Commercial Services,Transport,Vehicle Spares,345,12/06/2019,1906-00524,0.00,210.00,R,Alex Wagg,No
Http://opendatacommunities.org/id/metropolitan-district-council/leeds,Leeds City Council,30/06/2019,Resources and Housing,Commercial Services,Transport,Vehicle Spares,345,14/06/2019,1906-00525,0.00,380.00,R,Alex Wagg,No
Http://opendatacommunities.org/id/metropolitan-district-council/leeds,Leeds City Council,30/06/2019,Resources and Housing,Commercial Services,Supplies and Services,Other Hired And Contracted Services,265,19/06/2019,1906-00526,0.00,80.00,R,Alex Wagg,No
Http://opendatacommunities.org/id/metropolitan-district-council/leeds,Leeds City Council,30/06/2019,Resources and Housing,Commercial Services,Supplies and Services,Other Hired And Contracted Services,265,19/06/2019,1906-00527,0.00,497.50,R,Alex Wagg,No
Http://opendatacommunities.org/id/metropolitan-district-council/leeds,Leeds City Council,30/06/2019,Resources and Housing,Commercial Services,Supplies and Services,Other Hired And Contracted Services,265,19/06/2019,1906-00528,0.00,120.00,R,Alex Wagg,No
Http://opendatacommunities.org/id/metropolitan-district-council/leeds,Leeds City Council,30/06/2019,Resources and Housing,Commercial Services,Supplies and Services,Other Hired And Contracted Services,265,19/06/2019,1906-00529,0.00,166.00,R,Alex Wagg,No
Http://opendatacommunities.org/id/metropolitan-district-council/leeds,Leeds City Council,30/06/2019,Resources and Housing,Commercial Services,Supplies and Services,Other Hired And Contracted Services,265,21/06/2019,1906-00530,0.00,485.00,R,Alex Wagg,No
Http://opendatacommunities.org/id/metropolitan-district-council/leeds,Leeds City Council,30/06/2019,Resources and Housing,Commercial Services,Supplies and Services,Other Hired And Contracted Services,265,21/06/2019,1906-00531,0.00,100.00,R,Alex Wagg,No
Http://opendatacommunities.org/id/metropolitan-district-council/leeds,Leeds City Council,30/06/2019,Resources and Housing,Commercial Services,Supplies and Services,Other Hired And Contracted Services,265,21/06/2019,1906-00532,0.00,495.00,R,Alex Wagg,No
Http://opendatacommunities.org/id/metropolitan-district-council/leeds,Leeds City Council,30/06/2019,Adults and Health,Services For Older People - 65 And Over,Third Party Payments,Residential Care Dementia,571,26/06/2019,1906-00533,0.00,32006.55,R,Alexander Residential Home,No
Http://opendatacommunities.org/id/metropolitan-district-council/leeds,Leeds City Council,30/06/2019,Adults and Health,Services For Older People - 65 And Over,Third Party Payments,Residential,580,26/06/2019,1906-00534,0.00,12287.55,R,Alexander Residential Home,No
Http://opendatacommunities.org/id/metropolitan-district-council/leeds,Leeds City Council,30/06/2019,Children and Families,Social Care,Transport,Public Transport Expenses,310,03/06/2019,1906-00535,0.00,22.40,R,REDACTED PERSONAL DATA,No
Http://opendatacommunities.org/id/metropolitan-district-council/leeds,Leeds City Council,30/06/2019,Communities and Environment,Customer Access,Supplies and Services,Bought In Professional Services,277,11/06/2019,1906-00536,0.00,297.00,R,Alexandra Costenco,No
Http://opendatacommunities.org/id/metropolitan-district-council/leeds,Leeds City Council,30/06/2019,Adults and Health,Services For Older People - 65 And Over,Third Party Payments,Residential,580,26/06/2019,1906-00537,0.00,2950.57,R,Alexandra Court,No
Http://opendatacommunities.org/id/metropolitan-district-council/leeds,Leeds City Council,30/06/2019,City Development,Libraries  Arts & Heritage,Supplies and Services,Other Hired And Contracted Services,265,28/06/2019,1906-00538,0.00,200.00,R,Alexandra Glew,No
Http://opendatacommunities.org/id/metropolitan-district-council/leeds,Leeds City Council,30/06/2019,Communities and Environment,Customer Access,Supplies and Services,Bought In Professional Services,277,11/06/2019,1906-00539,0.00,200.00,R,Alexandra Hirst,No
Http://opendatacommunities.org/id/metropolitan-district-council/leeds,Leeds City Council,30/06/2019,Children and Families,Social Care,Third Party Payments,Services Rendered By Other Organisations,511,13/06/2019,1906-00540,0.00,83.62,R,REDACTED PERSONAL DATA,No
Http://opendatacommunities.org/id/metropolitan-district-council/leeds,Leeds City Council,30/06/2019,Resources and Housing,Leeds Building Services,Supplies and Services,Other Hired And Contracted Services,265,04/06/2019,1906-00541,0.00,4000.00,R,Alfred Bagnall & Sons (Leeds) Ltd,No
Http://opendatacommunities.org/id/metropolitan-district-council/leeds,Leeds City Council,30/06/2019,Communities and Environment,Parks and Countryside,Supplies and Services,Other Hired And Contracted Services,265,06/06/2019,1906-00542,0.00,4000.00,R,Alfred Bagnall & Sons (Leeds) Ltd,No
Http://opendatacommunities.org/id/metropolitan-district-council/leeds,Leeds City Council,30/06/2019,Resources and Housing,Corporate Property Management,Capital,Construction,3,07/06/2019,1906-00543,0.00,5579.00,C,Alfred Bagnall & Sons (Leeds) Ltd,No
Http://opendatacommunities.org/id/metropolitan-district-council/leeds,Leeds City Council,30/06/2019,Resources and Housing,Leeds Building Services,Supplies and Services,Other Hired And Contracted Services,265,13/06/2019,1906-00544,0.00,600.00,R,Alfred Bagnall & Sons (Leeds) Ltd,No
Http://opendatacommunities.org/id/metropolitan-district-council/leeds,Leeds City Council,30/06/2019,Resources and Housing,Leeds Building Services,Supplies and Services,Other Hired And Contracted Services,265,13/06/2019,1906-00545,0.00,800.00,R,Alfred Bagnall & Sons (Leeds) Ltd,No
Http://opendatacommunities.org/id/metropolitan-district-council/leeds,Leeds City Council,30/06/2019,Resources and Housing,Leeds Building Services,Supplies and Services,Other Hired And Contracted Services,265,13/06/2019,1906-00546,0.00,2618.35,R,Alfred Bagnall & Sons (Leeds) Ltd,No
Http://opendatacommunities.org/id/metropolitan-district-council/leeds,Leeds City Council,30/06/2019,Resources and Housing,Leeds Building Services,Supplies and Services,Other Hired And Contracted Services,265,13/06/2019,1906-00547,0.00,670.00,R,Alfred Bagnall & Sons (Leeds) Ltd,No
Http://opendatacommunities.org/id/metropolitan-district-council/leeds,Leeds City Council,30/06/2019,Resources and Housing,Leeds Building Services,Supplies and Services,Other Hired And Contracted Services,265,13/06/2019,1906-00548,0.00,600.00,R,Alfred Bagnall & Sons (Leeds) Ltd,No
Http://opendatacommunities.org/id/metropolitan-district-council/leeds,Leeds City Council,30/06/2019,Resources and Housing,Leeds Building Services,Supplies and Services,Other Hired And Contracted Services,265,13/06/2019,1906-00549,0.00,800.00,R,Alfred Bagnall & Sons (Leeds) Ltd,No
Http://opendatacommunities.org/id/metropolitan-district-council/leeds,Leeds City Council,30/06/2019,City Development,Recreation,Supplies and Services,Operational Materials,205,13/06/2019,1906-00550,0.00,155.40,R,Alfred Bagnall & Sons (Leeds) Ltd,No
Http://opendatacommunities.org/id/metropolitan-district-council/leeds,Leeds City Council,30/06/2019,Resources and Housing,Leeds Building Services,Supplies and Services,Other Hired And Contracted Services,265,14/06/2019,1906-00551,0.00,2280.00,R,Alfred Bagnall & Sons (Leeds) Ltd,No
Http://opendatacommunities.org/id/metropolitan-district-council/leeds,Leeds City Council,30/06/2019,Resources and Housing,Leeds Building Services,Supplies and Services,Other Hired And Contracted Services,265,21/06/2019,1906-00552,0.00,800.00,R,Alfred Bagnall & Sons (Leeds) Ltd,No
Http://opendatacommunities.org/id/metropolitan-district-council/leeds,Leeds City Council,30/06/2019,Resources and Housing,Leeds Building Services,Supplies and Services,Other Hired And Contracted Services,265,21/06/2019,1906-00553,0.00,650.00,R,Alfred Bagnall & Sons (Leeds) Ltd,No
Http://opendatacommunities.org/id/metropolitan-district-council/leeds,Leeds City Council,30/06/2019,Resources and Housing,Leeds Building Services,Supplies and Services,Other Hired And Contracted Services,265,21/06/2019,1906-00554,0.00,600.00,R,Alfred Bagnall & Sons (Leeds) Ltd,No
Http://opendatacommunities.org/id/metropolitan-district-council/leeds,Leeds City Council,30/06/2019,Resources and Housing,Leeds Building Services,Supplies and Services,Other Hired And Contracted Services,265,21/06/2019,1906-00555,0.00,140.00,R,Alfred Bagnall & Sons (Leeds) Ltd,No
Http://opendatacommunities.org/id/metropolitan-district-council/leeds,Leeds City Council,30/06/2019,Resources and Housing,Leeds Building Services,Supplies and Services,Other Hired And Contracted Services,265,21/06/2019,1906-00556,0.00,280.00,R,Alfred Bagnall & Sons (Leeds) Ltd,No
Http://opendatacommunities.org/id/metropolitan-district-council/leeds,Leeds City Council,30/06/2019,Resources and Housing,Leeds Building Services,Supplies and Services,Other Hired And Contracted Services,265,21/06/2019,1906-00557,0.00,300.00,R,Alfred Bagnall & Sons (Leeds) Ltd,No
Http://opendatacommunities.org/id/metropolitan-district-council/leeds,Leeds City Council,30/06/2019,Resources and Housing,Leeds Building Services,Supplies and Services,Other Hired And Contracted Services,265,21/06/2019,1906-00558,0.00,720.00,R,Alfred Bagnall & Sons (Leeds) Ltd,No
Http://opendatacommunities.org/id/metropolitan-district-council/leeds,Leeds City Council,30/06/2019,Resources and Housing,Leeds Building Services,Supplies and Services,Other Hired And Contracted Services,265,21/06/2019,1906-00559,0.00,680.00,R,Alfred Bagnall & Sons (Leeds) Ltd,No
Http://opendatacommunities.org/id/metropolitan-district-council/leeds,Leeds City Council,30/06/2019,Resources and Housing,Leeds Building Services,Supplies and Services,Other Hired And Contracted Services,265,21/06/2019,1906-00560,0.00,280.00,R,Alfred Bagnall & Sons (Leeds) Ltd,No
Http://opendatacommunities.org/id/metropolitan-district-council/leeds,Leeds City Council,30/06/2019,Resources and Housing,Leeds Building Services,Supplies and Services,Other Hired And Contracted Services,265,21/06/2019,1906-00561,0.00,600.00,R,Alfred Bagnall & Sons (Leeds) Ltd,No
Http://opendatacommunities.org/id/metropolitan-district-council/leeds,Leeds City Council,30/06/2019,Resources and Housing,Leeds Building Services,Supplies and Services,Other Hired And Contracted Services,265,21/06/2019,1906-00562,0.00,590.00,R,Alfred Bagnall & Sons (Leeds) Ltd,No
Http://opendatacommunities.org/id/metropolitan-district-council/leeds,Leeds City Council,30/06/2019,Resources and Housing,Leeds Building Services,Supplies and Services,Other Hired And Contracted Services,265,21/06/2019,1906-00563,0.00,600.00,R,Alfred Bagnall & Sons (Leeds) Ltd,No
Http://opendatacommunities.org/id/metropolitan-district-council/leeds,Leeds City Council,30/06/2019,Resources and Housing,Leeds Building Services,Supplies and Services,Other Hired And Contracted Services,265,21/06/2019,1906-00564,0.00,200.00,R,Alfred Bagnall & Sons (Leeds) Ltd,No
Http://opendatacommunities.org/id/metropolitan-district-council/leeds,Leeds City Council,30/06/2019,Resources and Housing,Leeds Building Services,Supplies and Services,Other Hired And Contracted Services,265,21/06/2019,1906-00565,0.00,200.00,R,Alfred Bagnall & Sons (Leeds) Ltd,No
Http://opendatacommunities.org/id/metropolitan-district-council/leeds,Leeds City Council,30/06/2019,Resources and Housing,Leeds Building Services,Supplies and Services,Other Hired And Contracted Services,265,24/06/2019,1906-00566,0.00,1200.00,R,Alfred Bagnall & Sons (Leeds) Ltd,No
Http://opendatacommunities.org/id/metropolitan-district-council/leeds,Leeds City Council,30/06/2019,Resources and Housing,Corporate Property Management,Capital,Construction,3,25/06/2019,1906-00567,0.00,6196.00,C,Alfred Bagnall & Sons (Leeds) Ltd,No
Http://opendatacommunities.org/id/metropolitan-district-council/leeds,Leeds City Council,30/06/2019,City Development,Libraries  Arts & Heritage,Supplies and Services,Bought In Professional Services,277,26/06/2019,1906-00568,0.00,780.00,R,Alfred Bagnall & Sons (Leeds) Ltd,No
Http://opendatacommunities.org/id/metropolitan-district-council/leeds,Leeds City Council,30/06/2019,Resources and Housing,Leeds Building Services,Supplies and Services,Other Hired And Contracted Services,265,27/06/2019,1906-00569,0.00,720.00,R,Alfred Bagnall & Sons (Leeds) Ltd,No
Http://opendatacommunities.org/id/metropolitan-district-council/leeds,Leeds City Council,30/06/2019,Resources and Housing,Leeds Building Services,Supplies and Services,Other Hired And Contracted Services,265,27/06/2019,1906-00570,0.00,225.00,R,Alfred Bagnall & Sons (Leeds) Ltd,No
Http://opendatacommunities.org/id/metropolitan-district-council/leeds,Leeds City Council,30/06/2019,City Development,Libraries  Arts & Heritage  ,Supplies and Services,Computer Software & Equipment,214,21/05/2019,1906-00571,0.00,51.79,R,Alg Id Cards,Yes
Http://opendatacommunities.org/id/metropolitan-district-council/leeds,Leeds City Council,30/06/2019,Communities and Environment,Customer Access,Supplies and Services,Bought In Professional Services,277,11/06/2019,1906-00572,0.00,461.00,R,Ali Pourakaberian,No
Http://opendatacommunities.org/id/metropolitan-district-council/leeds,Leeds City Council,30/06/2019,Children and Families,Social Care,Third Party Payments,Services Rendered By Other Organisations,511,07/06/2019,1906-00573,0.00,167.70,R,REDACTED PERSONAL DATA,No
Http://opendatacommunities.org/id/metropolitan-district-council/leeds,Leeds City Council,30/06/2019,Children and Families,Social Care,Third Party Payments,Services Rendered By Other Organisations,511,13/06/2019,1906-00574,0.00,167.25,R,REDACTED PERSONAL DATA,No
Http://opendatacommunities.org/id/metropolitan-district-council/leeds,Leeds City Council,30/06/2019,City Development,Libraries  Arts & Heritage,Supplies and Services,Bought In Professional Services,277,24/06/2019,1906-00575,0.00,480.00,R,Alison Wilding,No
Http://opendatacommunities.org/id/metropolitan-district-council/leeds,Leeds City Council,30/06/2019,Communities and Environment,Waste Management,Supplies and Services,Publication And Promotion,267,07/06/2019,1906-00576,0.00,30.00,R,REDACTED PERSONAL DATA,No
Http://opendatacommunities.org/id/metropolitan-district-council/leeds,Leeds City Council,30/06/2019,Resources and Housing,Leeds Building Services,Supplies and Services,Other Hired And Contracted Services,265,07/06/2019,1906-00577,0.00,195.00,R,All Clear Solutions Ltd,No
Http://opendatacommunities.org/id/metropolitan-district-council/leeds,Leeds City Council,30/06/2019,Resources and Housing,Leeds Building Services,Supplies and Services,Other Hired And Contracted Services,265,21/06/2019,1906-00578,0.00,195.00,R,All Clear Solutions Ltd,No
Http://opendatacommunities.org/id/metropolitan-district-council/leeds,Leeds City Council,30/06/2019,Children and Families,Learning,Supplies and Services,Other Hired And Contracted Services,265,11/06/2019,1906-00579,0.00,240.00,R,All Hallows Church,No
Http://opendatacommunities.org/id/metropolitan-district-council/leeds,Leeds City Council,30/06/2019,Adults and Health,Services For Adults Under 65 Mental/Dis,Third Party Payments,Home Care,568,17/06/2019,1906-00580,0.00,667.00,R,All Seasons Home Care,No
Http://opendatacommunities.org/id/metropolitan-district-council/leeds,Leeds City Council,30/06/2019,Adults and Health,Services For Adults Under 65 Mental/Dis,Third Party Payments,Home Care,568,18/06/2019,1906-00581,0.00,1235.00,R,All Seasons Home Care,No
Http://opendatacommunities.org/id/metropolitan-district-council/leeds,Leeds City Council,30/06/2019,Adults and Health,Services For Adults Under 65 Mental/Dis,Third Party Payments,Home Care,568,18/06/2019,1906-00582,0.00,1227.00,R,All Seasons Home Care,No
Http://opendatacommunities.org/id/metropolitan-district-council/leeds,Leeds City Council,30/06/2019,Resources and Housing,Strategic Housing Partnership & Support  ,Supplies and Services,Other Hired And Contracted Services,265,01/05/2019,1906-00583,0.00,120.00,R,All Service 4 U Ltd,Yes
Http://opendatacommunities.org/id/metropolitan-district-council/leeds,Leeds City Council,30/06/2019,Children and Families,Social Care,Third Party Payments,Services Rendered By Other Organisations,511,05/06/2019,1906-00584,0.00,811.20,R,All Stars Childcare,No
Http://opendatacommunities.org/id/metropolitan-district-council/leeds,Leeds City Council,30/06/2019,Children and Families,Social Care,Third Party Payments,Services Rendered By Other Organisations,511,07/06/2019,1906-00585,0.00,7894.80,R,All Stars Childcare,No
Http://opendatacommunities.org/id/metropolitan-district-council/leeds,Leeds City Council,30/06/2019,Children and Families,Social Care,Third Party Payments,Services Rendered By Other Organisations,511,13/06/2019,1906-00586,0.00,2246.25,R,All Stars Childcare,No
Http://opendatacommunities.org/id/metropolitan-district-council/leeds,Leeds City Council,30/06/2019,Adults and Health,Services For Adults Under 65 Mental/Dis,Supplies and Services,Operational Furniture And Equipment,203,20/06/2019,1906-00587,0.00,89.10,R,Allansound Communications,No
Http://opendatacommunities.org/id/metropolitan-district-council/leeds,Leeds City Council,30/06/2019,Adults and Health,Services For Adults Under 65 Mental/Dis,Supplies and Services,Operational Furniture And Equipment,203,20/06/2019,1906-00588,0.00,292.05,R,Allansound Communications,No
Http://opendatacommunities.org/id/metropolitan-district-council/leeds,Leeds City Council As Accountable Body,30/06/2019,Social Services Pooled Budgets,Jcs For People With Learning Disabilitie,Third Party Payments,Sheltered Accommodation,569,26/06/2019,1906-00589,0.00,16807.26,R,Allerton Avenue,No
Http://opendatacommunities.org/id/metropolitan-district-council/leeds,Leeds City Council,30/06/2019,Adults and Health,Services For Older People - 65 And Over,Third Party Payments,Nursing Care Dementia,574,26/06/2019,1906-00590,0.00,2224.00,R,Allerton Park N H,No
Http://opendatacommunities.org/id/metropolitan-district-council/leeds,Leeds City Council,30/06/2019,Resources and Housing,Finance,Supplies and Services,Bank Charges,263,03/06/2019,1906-00591,0.00,-59.07,R,Alliance & Leicester Commercial Bank,No
Http://opendatacommunities.org/id/metropolitan-district-council/leeds,Leeds City Council,30/06/2019,Resources and Housing,Finance,Supplies and Services,Bank Charges,263,05/06/2019,1906-00592,0.00,414.83,R,Alliance & Leicester Commercial Bank,No
Http://opendatacommunities.org/id/metropolitan-district-council/leeds,Leeds City Council,30/06/2019,Resources and Housing,Finance,Supplies and Services,Bank Charges,263,05/06/2019,1906-00593,0.00,100.14,R,Alliance & Leicester Commercial Bank,No
Http://opendatacommunities.org/id/metropolitan-district-council/leeds,Leeds City Council,30/06/2019,Communities and Environment,Parks and Countryside,Supplies and Services,Food & Drink,231,13/06/2019,1906-00594,0.00,-21.61,R,Alliance Disposables Ltd,No
Http://opendatacommunities.org/id/metropolitan-district-council/leeds,Leeds City Council,30/06/2019,City Development,Libraries  Arts & Heritage,Supplies and Services,Food & Drink,231,25/06/2019,1906-00595,0.00,130.84,R,Alliance Disposables Ltd,No
Http://opendatacommunities.org/id/metropolitan-district-council/leeds,Leeds City Council,30/06/2019,City Development,Libraries  Arts & Heritage,Supplies and Services,Food & Drink,231,25/06/2019,1906-00596,0.00,42.92,R,Alliance Disposables Ltd,No
Http://opendatacommunities.org/id/metropolitan-district-council/leeds,Leeds City Council,30/06/2019,Communities and Environment,Parks and Countryside,Supplies and Services,Food & Drink,231,28/06/2019,1906-00597,0.00,209.31,R,Alliance Disposables Ltd,No
Http://opendatacommunities.org/id/metropolitan-district-council/leeds,Leeds City Council,30/06/2019,Resources and Housing,Commercial Services,Transport,Vehicle Spares,345,11/06/2019,1906-00598,0.00,38.00,R,Alliance Electronics Ltd,No
Http://opendatacommunities.org/id/metropolitan-district-council/leeds,Leeds City Council,30/06/2019,Resources and Housing,Commercial Services,Supplies and Services,Operational Furniture And Equipment,203,13/06/2019,1906-00599,0.00,795.00,R,Alliance Electronics Ltd,No
Http://opendatacommunities.org/id/metropolitan-district-council/leeds,Leeds City Council,30/06/2019,City Development,Recreation,Employees,Training & Development,70,06/06/2019,1906-00600,0.00,937.50,R,Alliance Leisure Service Ltd,No
Http://opendatacommunities.org/id/metropolitan-district-council/leeds,Leeds City Council,30/06/2019,City Development,Recreation,Supplies and Services,Printing,215,14/06/2019,1906-00601,0.00,1004.40,R,Alliance Leisure Service Ltd,No
Http://opendatacommunities.org/id/metropolitan-district-council/leeds,Leeds City Council,30/06/2019,City Development,Highways,Supplies and Services,Other Hired And Contracted Services,265,14/06/2019,1906-00602,0.00,6328.10,R,Allied Exploration & Geotechnics Ltd,No
Http://opendatacommunities.org/id/metropolitan-district-council/leeds,Leeds City Council As Accountable Body,30/06/2019,Social Services Pooled Budgets,Jcs For People With Learning Disabilitie,Third Party Payments,Home Care,568,07/06/2019,1906-00603,0.00,6895.00,R,Allied Healthcare,No
Http://opendatacommunities.org/id/metropolitan-district-council/leeds,Leeds City Council,30/06/2019,Children and Families,Social Care,Third Party Payments,Services Rendered By Voluntary Sector,505,14/06/2019,1906-00604,0.00,684.00,R,Allied Healthcare,No
Http://opendatacommunities.org/id/metropolitan-district-council/leeds,Leeds City Council As Accountable Body,30/06/2019,Social Services Pooled Budgets,Jcs For People With Learning Disabilitie,Third Party Payments,Home Care,568,18/06/2019,1906-00605,0.00,15306.20,R,Allied Healthcare,No
Http://opendatacommunities.org/id/metropolitan-district-council/leeds,Leeds City Council As Accountable Body,30/06/2019,Social Services Pooled Budgets,Jcs For People With Learning Disabilitie,Third Party Payments,Home Care,568,18/06/2019,1906-00606,0.00,573.28,R,Allied Healthcare,No
Http://opendatacommunities.org/id/metropolitan-district-council/leeds,Leeds City Council,30/06/2019,Adults and Health,Services For Older People - 65 And Over,Third Party Payments,Home Care,568,26/06/2019,1906-00607,0.00,2280.17,R,Allied Healthcare,No
Http://opendatacommunities.org/id/metropolitan-district-council/leeds,Leeds City Council,30/06/2019,Adults and Health,Services For Older People - 65 And Over,Third Party Payments,Home Care,568,26/06/2019,1906-00608,0.00,9244.95,R,Allied Healthcare,No
Http://opendatacommunities.org/id/metropolitan-district-council/leeds,Leeds City Council,30/06/2019,Adults and Health,Services For Older People Under 65 P/Dis,Third Party Payments,Home Care,568,26/06/2019,1906-00609,0.00,711.46,R,Allied Healthcare,No
Http://opendatacommunities.org/id/metropolitan-district-council/leeds,Leeds City Council As Accountable Body,30/06/2019,Social Services Pooled Budgets,Jcs For People With Learning Disabilitie,Third Party Payments,Home Care,568,26/06/2019,1906-00610,0.00,233.75,R,Allied Healthcare,No
Http://opendatacommunities.org/id/metropolitan-district-council/leeds,Leeds City Council,30/06/2019,Adults and Health,Services For Adults Under 65 Mental/Dis,Third Party Payments,Home Care,568,26/06/2019,1906-00611,0.00,569.35,R,Allied Healthcare,No
Http://opendatacommunities.org/id/metropolitan-district-council/leeds,Leeds City Council,30/06/2019,Adults and Health,Services For Older People - 65 And Over,Third Party Payments,Home Care,568,26/06/2019,1906-00612,0.00,8622.40,R,Allied Healthcare,No
Http://opendatacommunities.org/id/metropolitan-district-council/leeds,Leeds City Council,30/06/2019,Adults and Health,Services For Older People Under 65 P/Dis,Third Party Payments,Home Care,568,26/06/2019,1906-00613,0.00,1099.26,R,Allied Healthcare,No
Http://opendatacommunities.org/id/metropolitan-district-council/leeds,Leeds City Council,30/06/2019,Adults and Health,Services For Older People - 65 And Over,Third Party Payments,Home Care,568,26/06/2019,1906-00614,0.00,17711.45,R,Allied Healthcare,No
Http://opendatacommunities.org/id/metropolitan-district-council/leeds,Leeds City Council,30/06/2019,Adults and Health,Services For Older People - 65 And Over,Third Party Payments,HCAIT Other,577,26/06/2019,1906-00615,0.00,722.88,R,Allied Healthcare,No
Http://opendatacommunities.org/id/metropolitan-district-council/leeds,Leeds City Council,30/06/2019,Adults and Health,Services For Older People Under 65 P/Dis,Third Party Payments,Home Care,568,26/06/2019,1906-00616,0.00,5556.20,R,Allied Healthcare,No
Http://opendatacommunities.org/id/metropolitan-district-council/leeds,Leeds City Council,30/06/2019,Children and Families,Social Care,Third Party Payments,Services Rendered By Other Organisations,511,07/06/2019,1906-00617,0.00,209.62,R,REDACTED PERSONAL DATA,No
Http://opendatacommunities.org/id/metropolitan-district-council/leeds,Leeds City Council,30/06/2019,Resources and Housing,Strategic Housing Partnership & Support  ,Supplies and Services,Other Hired And Contracted Services,265,14/05/2019,1906-00618,0.00,153.04,R,Allpay *yorkshire Housing,Yes
Http://opendatacommunities.org/id/metropolitan-district-council/leeds,Leeds City Council,30/06/2019,Children and Families,Social Care  ,Transfer Payments,Leaving Care Grants,635,30/05/2019,1906-00619,0.00,769.35,R,Allpay *yorkshire Housing,Yes
Http://opendatacommunities.org/id/metropolitan-district-council/leeds,Leeds City Council,30/06/2019,Strategic Landlord,Housing Management,Supplies and Services,Other Hired And Contracted Services,265,07/06/2019,1906-00620,0.00,6.69,R,Allpay Limted,No
Http://opendatacommunities.org/id/metropolitan-district-council/leeds,Leeds City Council,30/06/2019,Strategic Landlord,Housing Management,Supplies and Services,Other Hired And Contracted Services,265,07/06/2019,1906-00621,0.00,207.44,R,Allpay Limted,No
Http://opendatacommunities.org/id/metropolitan-district-council/leeds,Leeds City Council,30/06/2019,Strategic Landlord,Housing Management,Supplies and Services,Other Hired And Contracted Services,265,07/06/2019,1906-00622,0.00,1.10,R,Allpay Limted,No
Http://opendatacommunities.org/id/metropolitan-district-council/leeds,Leeds City Council,30/06/2019,Resources and Housing,Leeds Building Services,Transport,Fuel (Non LCC Supplies),321,12/06/2019,1906-00623,0.00,65.57,R,Allstar Business Solutions Ltd,No
Http://opendatacommunities.org/id/metropolitan-district-council/leeds,Leeds City Council,30/06/2019,Resources and Housing,Human Resources,Supplies and Services,Other Hired And Contracted Services,265,28/06/2019,1906-00624,0.00,60.00,R,Alphabiolaboratories Corporate Ltd,No
Http://opendatacommunities.org/id/metropolitan-district-council/leeds,Leeds City Council,30/06/2019,Resources and Housing,Human Resources,Supplies and Services,Other Hired And Contracted Services,265,28/06/2019,1906-00625,0.00,49.00,R,Alphabiolaboratories Corporate Ltd,No
Http://opendatacommunities.org/id/metropolitan-district-council/leeds,Leeds City Council,30/06/2019,Resources and Housing,Human Resources,Supplies and Services,Other Hired And Contracted Services,265,28/06/2019,1906-00626,0.00,60.00,R,Alphabiolaboratories Corporate Ltd,No
Http://opendatacommunities.org/id/metropolitan-district-council/leeds,Leeds City Council,30/06/2019,Children and Families,Social Care,Support Services,Legal Disbursements,411,03/06/2019,1906-00627,0.00,118.75,R,Alphabiolabs,No
Http://opendatacommunities.org/id/metropolitan-district-council/leeds,Leeds City Council,30/06/2019,Children and Families,Social Care,Support Services,Legal Disbursements,411,07/06/2019,1906-00628,0.00,117.25,R,Alphabiolabs,No
Http://opendatacommunities.org/id/metropolitan-district-council/leeds,Leeds City Council,30/06/2019,Children and Families,Social Care,Support Services,Legal Disbursements,411,07/06/2019,1906-00629,0.00,489.00,R,Alphabiolabs,No
Http://opendatacommunities.org/id/metropolitan-district-council/leeds,Leeds City Council,30/06/2019,Children and Families,Social Care,Support Services,Legal Disbursements,411,12/06/2019,1906-00630,0.00,77.50,R,Alphabiolabs,No
Http://opendatacommunities.org/id/metropolitan-district-council/leeds,Leeds City Council,30/06/2019,Children and Families,Social Care,Support Services,Legal Disbursements,411,14/06/2019,1906-00631,0.00,118.75,R,Alphabiolabs,No
Http://opendatacommunities.org/id/metropolitan-district-council/leeds,Leeds City Council,30/06/2019,Children and Families,Social Care,Support Services,Legal Disbursements,411,20/06/2019,1906-00632,0.00,286.67,R,Alphabiolabs,No
Http://opendatacommunities.org/id/metropolitan-district-council/leeds,Leeds City Council,30/06/2019,Children and Families,Social Care,Support Services,Legal Disbursements,411,28/06/2019,1906-00633,0.00,276.35,R,Alphabiolabs,No
Http://opendatacommunities.org/id/metropolitan-district-council/leeds,Leeds City Council,30/06/2019,Children and Families,Social Care,Support Services,Legal Disbursements,411,28/06/2019,1906-00634,0.00,153.75,R,Alphabiolabs,No
Http://opendatacommunities.org/id/metropolitan-district-council/leeds,Leeds City Council,30/06/2019,Children and Families,Social Care,Support Services,Legal Disbursements,411,28/06/2019,1906-00635,0.00,118.34,R,Alphabiolabs,No
Http://opendatacommunities.org/id/metropolitan-district-council/leeds,Leeds City Council,30/06/2019,Children and Families,Social Care,Support Services,Legal Disbursements,411,28/06/2019,1906-00636,0.00,123.00,R,Alphabiolabs,No
Http://opendatacommunities.org/id/metropolitan-district-council/leeds,Leeds City Council,30/06/2019,Resources and Housing,HRA Housing Leeds,Capital,Other Costs,7,27/06/2019,1906-00637,0.00,100.00,C,REDACTED PERSONAL DATA,No
Http://opendatacommunities.org/id/metropolitan-district-council/leeds,Leeds City Council,30/06/2019,Children and Families,Social Care,Third Party Payments,Services Rendered By Other Organisations,511,07/06/2019,1906-00638,0.00,447.20,R,REDACTED PERSONAL DATA,No
Http://opendatacommunities.org/id/metropolitan-district-council/leeds,Leeds City Council,30/06/2019,Children and Families,Social Care,Third Party Payments,Services Rendered By Other Organisations,511,13/06/2019,1906-00639,0.00,292.69,R,REDACTED PERSONAL DATA,No
Http://opendatacommunities.org/id/metropolitan-district-council/leeds,Leeds City Council,30/06/2019,Children and Families,Social Care,Third Party Payments,Services Rendered By Other Organisations,511,07/06/2019,1906-00640,0.00,447.20,R,REDACTED PERSONAL DATA,No
Http://opendatacommunities.org/id/metropolitan-district-council/leeds,Leeds City Council,30/06/2019,City Development,Recreation,Supplies and Services,Bought In Professional Services,277,28/06/2019,1906-00641,0.00,100.00,R,Amanda Ellis,No
Http://opendatacommunities.org/id/metropolitan-district-council/leeds,Leeds City Council,30/06/2019,Children and Families,Social Care,Third Party Payments,Services Rendered By Other Organisations,511,07/06/2019,1906-00642,0.00,167.70,R,REDACTED PERSONAL DATA,No
Http://opendatacommunities.org/id/metropolitan-district-council/leeds,Leeds City Council,30/06/2019,Children and Families,Social Care,Transport,Public Transport Expenses,310,13/06/2019,1906-00643,0.00,4.00,R,REDACTED PERSONAL DATA,No
Http://opendatacommunities.org/id/metropolitan-district-council/leeds,Leeds City Council,30/06/2019,Children and Families,Social Care,Supplies and Services,General Amenity For Clients/Residents,285,28/06/2019,1906-00644,0.00,19.85,R,REDACTED PERSONAL DATA,No
Http://opendatacommunities.org/id/metropolitan-district-council/leeds,Leeds City Council,30/06/2019,Children and Families,Social Care,Transport,Public Transport Expenses,310,28/06/2019,1906-00645,0.00,7.20,R,REDACTED PERSONAL DATA,No
Http://opendatacommunities.org/id/metropolitan-district-council/leeds,Leeds City Council,30/06/2019,Children and Families,Social Care,Third Party Payments,Services Rendered By Other Organisations,511,07/06/2019,1906-00646,0.00,1006.20,R,REDACTED PERSONAL DATA,No
Http://opendatacommunities.org/id/metropolitan-district-council/leeds,Leeds City Council,30/06/2019,Children and Families,Social Care,Third Party Payments,Services Rendered By Other Organisations,511,13/06/2019,1906-00647,0.00,250.87,R,REDACTED PERSONAL DATA,No
Http://opendatacommunities.org/id/metropolitan-district-council/leeds,Leeds City Council,30/06/2019,Resources and Housing,Leeds Building Services,Supplies and Services,Operational Materials,205,12/06/2019,1906-00648,0.00,49.82,R,Amari Plastics Plc,No
Http://opendatacommunities.org/id/metropolitan-district-council/leeds,Leeds City Council,30/06/2019,Resources and Housing,Shared Services,Supplies and Services,Operational Materials,205,14/06/2019,1906-00649,0.00,170.00,R,Amari Plastics Plc,No
Http://opendatacommunities.org/id/metropolitan-district-council/leeds,Leeds City Council,30/06/2019,Resources and Housing,Shared Services,Supplies and Services,Operational Materials,205,27/06/2019,1906-00650,0.00,210.00,R,Amari Plastics Plc,No
Http://opendatacommunities.org/id/metropolitan-district-council/leeds,Leeds City Council,30/06/2019,Children and Families,Social Care,Third Party Payments,Services Rendered By Other Organisations,511,05/06/2019,1906-00651,0.00,2636.40,R,Amazing Grace Early Years Childcare,No
Http://opendatacommunities.org/id/metropolitan-district-council/leeds,Leeds City Council,30/06/2019,Children and Families,Social Care,Third Party Payments,Services Rendered By Other Organisations,511,07/06/2019,1906-00652,0.00,6875.70,R,Amazing Grace Early Years Childcare,No
Http://opendatacommunities.org/id/metropolitan-district-council/leeds,Leeds City Council,30/06/2019,Children and Families,Social Care,Third Party Payments,Services Rendered By Voluntary Sector,505,12/06/2019,1906-00653,0.00,473.70,R,Amazing Grace Early Years Childcare,No
Http://opendatacommunities.org/id/metropolitan-district-council/leeds,Leeds City Council,30/06/2019,Children and Families,Social Care,Third Party Payments,Services Rendered By Other Organisations,511,13/06/2019,1906-00654,0.00,3465.20,R,Amazing Grace Early Years Childcare,No
Http://opendatacommunities.org/id/metropolitan-district-council/leeds,Leeds City Council,30/06/2019,City Development,Recreation,Supplies and Services,Operational Furniture And Equipment,203,06/06/2019,1906-00655,0.00,306.31,R,Amazon Leisure Uk Ltd,No
Http://opendatacommunities.org/id/metropolitan-district-council/leeds,Leeds City Council,30/06/2019,City Development,Recreation,Supplies and Services,Operational Furniture And Equipment,203,06/06/2019,1906-00656,0.00,105.00,R,Amazon Leisure Uk Ltd,No
Http://opendatacommunities.org/id/metropolitan-district-council/leeds,Leeds City Council,30/06/2019,City Development,Recreation,Supplies and Services,Operational Furniture And Equipment,203,07/06/2019,1906-00657,0.00,127.50,R,Amazon Leisure Uk Ltd,No
Http://opendatacommunities.org/id/metropolitan-district-council/leeds,Leeds City Council,30/06/2019,City Development,Recreation,Supplies and Services,Operational Furniture And Equipment,203,12/06/2019,1906-00658,0.00,1914.45,R,Amazon Leisure Uk Ltd,No
Http://opendatacommunities.org/id/metropolitan-district-council/leeds,Leeds City Council,30/06/2019,City Development,Recreation,Supplies and Services,Operational Furniture And Equipment,203,21/06/2019,1906-00659,0.00,443.09,R,Amazon Leisure Uk Ltd,No
Http://opendatacommunities.org/id/metropolitan-district-council/leeds,Leeds City Council,30/06/2019,City Development,Recreation,Supplies and Services,Operational Furniture And Equipment,203,21/06/2019,1906-00660,0.00,768.72,R,Amazon Leisure Uk Ltd,No
Http://opendatacommunities.org/id/metropolitan-district-council/leeds,Leeds City Council,30/06/2019,City Development,Recreation,Supplies and Services,Operational Furniture And Equipment,203,21/06/2019,1906-00661,0.00,15.93,R,Amazon Leisure Uk Ltd,No
Http://opendatacommunities.org/id/metropolitan-district-council/leeds,Leeds City Council,30/06/2019,City Development,Recreation,Supplies and Services,Operational Furniture And Equipment,203,28/06/2019,1906-00662,0.00,105.00,R,Amazon Leisure Uk Ltd,No
Http://opendatacommunities.org/id/metropolitan-district-council/leeds,Leeds City Council,30/06/2019,City Development,Recreation,Supplies and Services,Operational Furniture And Equipment,203,28/06/2019,1906-00663,0.00,638.61,R,Amazon Leisure Uk Ltd,No
Http://opendatacommunities.org/id/metropolitan-district-council/leeds,Leeds City Council,30/06/2019,City Development,Recreation,Supplies and Services,Other Hired And Contracted Services,265,28/06/2019,1906-00664,0.00,356.50,R,Amazon Leisure Uk Ltd,No
Http://opendatacommunities.org/id/metropolitan-district-council/leeds,Leeds City Council,30/06/2019,Children and Families,Social Care  ,Supplies and Services,General Amenity For Clients/Residents,285,23/05/2019,1906-00665,0.00,-7.99,R,Amazon Prime,Yes
Http://opendatacommunities.org/id/metropolitan-district-council/leeds,Leeds City Council,30/06/2019,Resources and Housing,Shared Services  ,Supplies and Services,Operational Materials,205,13/05/2019,1906-00666,0.00,-7.99,R,Amazon Prime Amzn.Co.Uk/P,Yes
Http://opendatacommunities.org/id/metropolitan-district-council/leeds,Leeds City Council,30/06/2019,Resources and Housing,Pppu And Procurement  ,Supplies and Services,Computer Software & Equipment,214,29/05/2019,1906-00667,0.00,7.99,R,Amazon Prime*mn2by3ub4 Am,Yes
Http://opendatacommunities.org/id/metropolitan-district-council/leeds,Leeds City Council,30/06/2019,Resources and Housing,Commercial Services  ,Supplies and Services,Office Consumables,210,27/05/2019,1906-00668,0.00,7.99,R,Amazon Prime*mn33k8kw4 Am,Yes
Http://opendatacommunities.org/id/metropolitan-district-council/leeds,Leeds City Council,30/06/2019,City Development,Highways  ,Supplies and Services,Operational Furniture And Equipment,203,24/05/2019,1906-00669,0.00,6.66,R,Amazon Prime*mn3i26se4,Yes
Http://opendatacommunities.org/id/metropolitan-district-council/leeds,Leeds City Council,30/06/2019,Children and Families,Social Care  ,Supplies and Services,General Amenity For Clients/Residents,285,11/05/2019,1906-00670,0.00,7.99,R,Amazon Prime*mn3t05154,Yes
Http://opendatacommunities.org/id/metropolitan-district-council/leeds,Leeds City Council,30/06/2019,Communities and Environment,Parks And Countryside  ,Supplies and Services,Operational Materials,205,14/05/2019,1906-00671,0.00,7.99,R,Amazon Prime*mn4835gr4,Yes
Http://opendatacommunities.org/id/metropolitan-district-council/leeds,Leeds City Council,30/06/2019,Resources and Housing,Strategy And Improvement  ,Supplies and Services,Computer Software & Equipment,214,30/05/2019,1906-00672,0.00,7.99,R,Amazon Prime*mn5ar4id4,Yes
Http://opendatacommunities.org/id/metropolitan-district-council/leeds,Leeds City Council,30/06/2019,Children and Families,Social Care  ,Supplies and Services,Clothing & Uniforms,241,03/05/2019,1906-00673,0.00,7.99,R,Amazon Prime*mn6217zb4 Am,Yes
Http://opendatacommunities.org/id/metropolitan-district-council/leeds,Leeds City Council,30/06/2019,Children and Families,Social Care  ,Supplies and Services,Teaching Materials,202,11/05/2019,1906-00674,0.00,7.99,R,Amazon Prime*mn70n3154 Am,Yes
Http://opendatacommunities.org/id/metropolitan-district-council/leeds,Leeds City Council,30/06/2019,Resources and Housing,Commercial Services  ,Supplies and Services,Books & Audio-Visual Materials,206,03/05/2019,1906-00675,0.00,79.00,R,Amazon Prime*mn71m7zt4,Yes
Http://opendatacommunities.org/id/metropolitan-district-council/leeds,Leeds City Council,30/06/2019,Resources and Housing,Shared Services  ,Supplies and Services,Operational Materials,205,09/05/2019,1906-00676,0.00,7.99,R,Amazon Prime*mn7c06e04 Am,Yes
Http://opendatacommunities.org/id/metropolitan-district-council/leeds,Leeds City Council,30/06/2019,Communities and Environment,Parks And Countryside  ,Supplies and Services,Office Consumables,210,19/05/2019,1906-00677,0.00,7.99,R,Amazon Prime*mn82w9h54 Am,Yes
Http://opendatacommunities.org/id/metropolitan-district-council/leeds,Leeds City Council,30/06/2019,Children and Families,Social Care  ,Supplies and Services,Teaching Materials,202,27/05/2019,1906-00678,0.00,79.00,R,Amazon Prime*mn8sx4k24,Yes
Http://opendatacommunities.org/id/metropolitan-district-council/leeds,Leeds City Council,30/06/2019,Children and Families,Social Care  ,Supplies and Services,Postages,212,07/05/2019,1906-00679,0.00,0.99,R,Amazon Prime*mn90z7j74 Am,Yes
Http://opendatacommunities.org/id/metropolitan-district-council/leeds,Leeds City Council,30/06/2019,City Development,Libraries  Arts & Heritage  ,Supplies and Services,Operational Materials,205,09/05/2019,1906-00680,0.00,7.99,R,Amazon Prime*mn91e8eo4 Am,Yes
Http://opendatacommunities.org/id/metropolitan-district-council/leeds,Leeds City Council,30/06/2019,City Development,Libraries  Arts & Heritage  ,Supplies and Services,Books & Audio-Visual Materials,206,04/05/2019,1906-00681,0.00,6.66,R,Amazon.Co.Uk*mn0155z54,Yes
Http://opendatacommunities.org/id/metropolitan-district-council/leeds,Leeds City Council,30/06/2019,Resources and Housing,Commercial Services  ,Supplies and Services,Office Consumables,210,30/04/2019,1906-00682,0.00,28.82,R,Amazon.Co.Uk*mn0236o74,Yes
Http://opendatacommunities.org/id/metropolitan-district-council/leeds,Leeds City Council,30/06/2019,Resources and Housing,Commercial Services  ,Supplies and Services,Operational Materials,205,09/05/2019,1906-00683,0.00,95.57,R,Amazon.Co.Uk*mn02l6e14 Am,Yes
Http://opendatacommunities.org/id/metropolitan-district-council/leeds,Leeds City Council,30/06/2019,Communities and Environment,Environmental Health  ,Supplies and Services,Operational Furniture And Equipment,203,19/05/2019,1906-00684,0.00,16.65,R,Amazon.Co.Uk*mn08j6hk4,Yes
Http://opendatacommunities.org/id/metropolitan-district-council/leeds,Leeds City Council,30/06/2019,Communities and Environment,Benefits  Wlefare And Poverty  ,Supplies and Services,Office Furniture & Equipment,201,14/05/2019,1906-00685,0.00,19.71,R,Amazon.Co.Uk*mn0bj1xe4,Yes
Http://opendatacommunities.org/id/metropolitan-district-council/leeds,Leeds City Council,30/06/2019,City Development,Libraries  Arts & Heritage  ,Supplies and Services,Operational Materials,205,22/05/2019,1906-00686,0.00,16.67,R,Amazon.Co.Uk*mn0d536f4,Yes
Http://opendatacommunities.org/id/metropolitan-district-council/leeds,Leeds City Council,30/06/2019,Resources and Housing,Finance  ,Supplies and Services,Office Furniture & Equipment,201,09/05/2019,1906-00687,0.00,35.04,R,Amazon.Co.Uk*mn0fq4e94,Yes
Http://opendatacommunities.org/id/metropolitan-district-council/leeds,Leeds City Council,30/06/2019,Children and Families,Social Care  ,Supplies and Services,General Amenity For Clients/Residents,285,20/05/2019,1906-00688,0.00,319.99,R,Amazon.Co.Uk*mn0lo7vx4 Am,Yes
Http://opendatacommunities.org/id/metropolitan-district-council/leeds,Leeds City Council,30/06/2019,Communities and Environment,Customer Access  ,Supplies and Services,Office Furniture & Equipment,201,02/05/2019,1906-00689,0.00,29.41,R,Amazon.Co.Uk*mn0nw0lh4 Am,Yes
Http://opendatacommunities.org/id/metropolitan-district-council/leeds,Leeds City Council,30/06/2019,Children and Families,Social Care  ,Supplies and Services,Operational Furniture And Equipment,203,26/05/2019,1906-00690,0.00,89.99,R,Amazon.Co.Uk*mn0sq7dx4 Am,Yes
Http://opendatacommunities.org/id/metropolitan-district-council/leeds,Leeds City Council,30/06/2019,Children and Families,Social Care  ,Supplies and Services,Teaching Materials,202,02/05/2019,1906-00691,0.00,14.99,R,Amazon.Co.Uk*mn0t33l94,Yes
Http://opendatacommunities.org/id/metropolitan-district-council/leeds,Leeds City Council,30/06/2019,Children and Families,Social Care  ,Supplies and Services,Teaching Furniture & Equipment,207,13/05/2019,1906-00692,0.00,5.98,R,Amazon.Co.Uk*mn0to1gw4,Yes
Http://opendatacommunities.org/id/metropolitan-district-council/leeds,Leeds City Council,30/06/2019,Children and Families,Social Care  ,Supplies and Services,Teaching Materials,202,20/05/2019,1906-00693,0.00,24.98,R,Amazon.Co.Uk*mn0v58874 Am,Yes
Http://opendatacommunities.org/id/metropolitan-district-council/leeds,Leeds City Council,30/06/2019,Communities and Environment,Environmental Action (City Centre)  ,Supplies and Services,Operational Materials,205,08/05/2019,1906-00694,0.00,19.37,R,Amazon.Co.Uk*mn1092ae4,Yes
Http://opendatacommunities.org/id/metropolitan-district-council/leeds,Leeds City Council,30/06/2019,City Development,Libraries  Arts & Heritage  ,Supplies and Services,Books & Audio-Visual Materials,206,22/05/2019,1906-00695,0.00,4.99,R,Amazon.Co.Uk*mn13u9qq4 Am,Yes
Http://opendatacommunities.org/id/metropolitan-district-council/leeds,Leeds City Council,30/06/2019,Children and Families,Social Care  ,Supplies and Services,Office Consumables,210,11/05/2019,1906-00696,0.00,10.17,R,Amazon.Co.Uk*mn1ai10z4 Am,Yes
Http://opendatacommunities.org/id/metropolitan-district-council/leeds,Leeds City Council,30/06/2019,Communities and Environment,Customer Access  ,Supplies and Services,Office Furniture & Equipment,201,15/05/2019,1906-00697,0.00,10.99,R,Amazon.Co.Uk*mn1at5va4 Am,Yes
Http://opendatacommunities.org/id/metropolitan-district-council/leeds,Leeds City Council,30/06/2019,Children and Families,Learning  ,Supplies and Services,Teaching Materials,202,18/05/2019,1906-00698,0.00,0.18,R,Amazon.Co.Uk*mn1f09h84,Yes
Http://opendatacommunities.org/id/metropolitan-district-council/leeds,Leeds City Council,30/06/2019,Communities and Environment,Environmental Health  ,Supplies and Services,Operational Furniture And Equipment,203,20/05/2019,1906-00699,0.00,28.66,R,Amazon.Co.Uk*mn1gp5bx4,Yes
Http://opendatacommunities.org/id/metropolitan-district-council/leeds,Leeds City Council,30/06/2019,Children and Families,Social Care  ,Supplies and Services,Teaching Materials,202,21/05/2019,1906-00700,0.00,19.96,R,Amazon.Co.Uk*mn1hd7844,Yes
Http://opendatacommunities.org/id/metropolitan-district-council/leeds,Leeds City Council,30/06/2019,Adults and Health,Public Health  ,Supplies and Services,Teaching Materials,202,02/05/2019,1906-00701,0.00,7.99,R,Amazon.Co.Uk*mn1l98la4,Yes
Http://opendatacommunities.org/id/metropolitan-district-council/leeds,Leeds City Council,30/06/2019,Children and Families,Social Care  ,Supplies and Services,Teaching Materials,202,29/05/2019,1906-00702,0.00,80.02,R,Amazon.Co.Uk*mn1tt5uh4,Yes
Http://opendatacommunities.org/id/metropolitan-district-council/leeds,Leeds City Council,30/06/2019,City Development,Libraries  Arts & Heritage  ,Supplies and Services,Operational Materials,205,17/05/2019,1906-00703,0.00,13.63,R,Amazon.Co.Uk*mn1wi2554,Yes
Http://opendatacommunities.org/id/metropolitan-district-council/leeds,Leeds City Council,30/06/2019,City Development,Recreation  ,Supplies and Services,Operational Furniture And Equipment,203,30/04/2019,1906-00704,0.00,5.48,R,Amazon.Co.Uk*mn1za4f34 Am,Yes
Http://opendatacommunities.org/id/metropolitan-district-council/leeds,Leeds City Council,30/06/2019,Children and Families,Social Care  ,Supplies and Services,Teaching Materials,202,05/05/2019,1906-00705,0.00,24.99,R,Amazon.Co.Uk*mn29v73f4,Yes
Http://opendatacommunities.org/id/metropolitan-district-council/leeds,Leeds City Council,30/06/2019,Communities and Environment,Benefits  Wlefare And Poverty  ,Supplies and Services,Office Furniture & Equipment,201,23/05/2019,1906-00706,0.00,7.08,R,Amazon.Co.Uk*mn2ia6dk4,Yes
Http://opendatacommunities.org/id/metropolitan-district-council/leeds,Leeds City Council,30/06/2019,Adults and Health,Social Services Support Services  ,Supplies and Services,Books & Audio-Visual Materials,206,20/05/2019,1906-00707,0.00,26.99,R,Amazon.Co.Uk*mn2j96be4,Yes
Http://opendatacommunities.org/id/metropolitan-district-council/leeds,Leeds City Council,30/06/2019,Children and Families,Social Care  ,Supplies and Services,Teaching Materials,202,08/05/2019,1906-00708,0.00,28.44,R,Amazon.Co.Uk*mn2ke8a94,Yes
Http://opendatacommunities.org/id/metropolitan-district-council/leeds,Leeds City Council,30/06/2019,Resources and Housing,Legal Services  ,Supplies and Services,Books & Audio-Visual Materials,206,28/05/2019,1906-00709,0.00,145.99,R,Amazon.Co.Uk*mn2m93u24 Am,Yes
Http://opendatacommunities.org/id/metropolitan-district-council/leeds,Leeds City Council,30/06/2019,Children and Families,Learning  ,Supplies and Services,Teaching Materials,202,18/05/2019,1906-00710,0.00,19.58,R,Amazon.Co.Uk*mn2nu6hy4,Yes
Http://opendatacommunities.org/id/metropolitan-district-council/leeds,Leeds City Council,30/06/2019,Children and Families,Social Care  ,Supplies and Services,General Amenity For Clients/Residents,285,27/05/2019,1906-00711,0.00,64.99,R,Amazon.Co.Uk*mn2ou7744,Yes
Http://opendatacommunities.org/id/metropolitan-district-council/leeds,Leeds City Council,30/06/2019,City Development,Libraries  Arts & Heritage  ,Supplies and Services,Books & Audio-Visual Materials,206,03/05/2019,1906-00712,0.00,15.49,R,Amazon.Co.Uk*mn2um7lw4 Am,Yes
Http://opendatacommunities.org/id/metropolitan-district-council/leeds,Leeds City Council,30/06/2019,Children and Families,Social Care  ,Supplies and Services,Operational Furniture And Equipment,203,10/05/2019,1906-00713,0.00,34.15,R,Amazon.Co.Uk*mn2yc3t34 Am,Yes
Http://opendatacommunities.org/id/metropolitan-district-council/leeds,Leeds City Council,30/06/2019,Resources and Housing,Facilities Management  ,Supplies and Services,Operational Materials,205,13/05/2019,1906-00714,0.00,20.68,R,Amazon.Co.Uk*mn3619x54,Yes
Http://opendatacommunities.org/id/metropolitan-district-council/leeds,Leeds City Council,30/06/2019,Communities and Environment,Communities  ,Supplies and Services,Office Consumables,210,28/05/2019,1906-00715,0.00,59.99,R,Amazon.Co.Uk*mn3ht49l4,Yes
Http://opendatacommunities.org/id/metropolitan-district-council/leeds,Leeds City Council,30/06/2019,City Development,Markets & City Centre Management  ,Supplies and Services,Advertising,211,01/05/2019,1906-00716,0.00,50.00,R,Amazon.Co.Uk*mn3ht9fu4,Yes
Http://opendatacommunities.org/id/metropolitan-district-council/leeds,Leeds City Council,30/06/2019,Children and Families,Social Care  ,Supplies and Services,Office Furniture & Equipment,201,22/05/2019,1906-00717,0.00,23.32,R,Amazon.Co.Uk*mn3p276t4 Am,Yes
Http://opendatacommunities.org/id/metropolitan-district-council/leeds,Leeds City Council,30/06/2019,Adults and Health,Social Services Support Services  ,Supplies and Services,Books & Audio-Visual Materials,206,20/05/2019,1906-00718,0.00,24.57,R,Amazon.Co.Uk*mn3p85be4,Yes
Http://opendatacommunities.org/id/metropolitan-district-council/leeds,Leeds City Council,30/06/2019,City Development,Recreation  ,Supplies and Services,Office Furniture & Equipment,201,16/05/2019,1906-00719,0.00,12.24,R,Amazon.Co.Uk*mn3rl8mc4,Yes
Http://opendatacommunities.org/id/metropolitan-district-council/leeds,Leeds City Council,30/06/2019,Communities and Environment,Parks And Countryside  ,Supplies and Services,Food & Drink,231,19/05/2019,1906-00720,0.00,26.51,R,Amazon.Co.Uk*mn3u45bc4,Yes
Http://opendatacommunities.org/id/metropolitan-district-council/leeds,Leeds City Council,30/06/2019,Children and Families,Social Care  ,Supplies and Services,Operational Materials,205,09/05/2019,1906-00721,0.00,22.14,R,Amazon.Co.Uk*mn3us1054,Yes
Http://opendatacommunities.org/id/metropolitan-district-council/leeds,Leeds City Council,30/06/2019,Resources and Housing,Pppu And Procurement  ,Supplies and Services,Computer Software & Equipment,214,01/05/2019,1906-00722,0.00,78.90,R,Amazon.Co.Uk*mn3vj1404,Yes
Http://opendatacommunities.org/id/metropolitan-district-council/leeds,Leeds City Council,30/06/2019,City Development,Libraries  Arts & Heritage  ,Supplies and Services,Books & Audio-Visual Materials,206,29/05/2019,1906-00723,0.00,72.11,R,Amazon.Co.Uk*mn47309z4,Yes
Http://opendatacommunities.org/id/metropolitan-district-council/leeds,Leeds City Council,30/06/2019,Children and Families,Learning  ,Supplies and Services,Teaching Materials,202,29/05/2019,1906-00724,0.00,72.38,R,Amazon.Co.Uk*mn4b68uf4 Am,Yes
Http://opendatacommunities.org/id/metropolitan-district-council/leeds,Leeds City Council,30/06/2019,Children and Families,Social Care  ,Supplies and Services,Teaching Materials,202,30/04/2019,1906-00725,0.00,6.94,R,Amazon.Co.Uk*mn4cv3f64,Yes
Http://opendatacommunities.org/id/metropolitan-district-council/leeds,Leeds City Council,30/06/2019,Communities and Environment,Environmental Action (City Centre)  ,Supplies and Services,Office Consumables,210,02/05/2019,1906-00726,0.00,17.19,R,Amazon.Co.Uk*mn4gc6l44 Am,Yes
Http://opendatacommunities.org/id/metropolitan-district-council/leeds,Leeds City Council,30/06/2019,Children and Families,Learning  ,Supplies and Services,Teaching Materials,202,20/05/2019,1906-00727,0.00,27.84,R,Amazon.Co.Uk*mn4lz18k4,Yes
Http://opendatacommunities.org/id/metropolitan-district-council/leeds,Leeds City Council,30/06/2019,City Development,Markets & City Centre Management  ,Supplies and Services,Operational Materials,205,28/05/2019,1906-00728,0.00,16.67,R,Amazon.Co.Uk*mn4rv77c4,Yes
Http://opendatacommunities.org/id/metropolitan-district-council/leeds,Leeds City Council,30/06/2019,Children and Families,Social Care  ,Supplies and Services,Office Consumables,210,21/05/2019,1906-00729,0.00,23.99,R,Amazon.Co.Uk*mn4xs4894,Yes
Http://opendatacommunities.org/id/metropolitan-district-council/leeds,Leeds City Council,30/06/2019,City Development,Libraries  Arts & Heritage  ,Supplies and Services,Other Hired And Contracted Services,265,07/05/2019,1906-00730,0.00,16.67,R,Amazon.Co.Uk*mn4yu6tu4,Yes
Http://opendatacommunities.org/id/metropolitan-district-council/leeds,Leeds City Council,30/06/2019,Children and Families,Learning  ,Supplies and Services,Teaching Materials,202,01/05/2019,1906-00731,0.00,14.24,R,Amazon.Co.Uk*mn4zw54n4 Am,Yes
Http://opendatacommunities.org/id/metropolitan-district-council/leeds,Leeds City Council,30/06/2019,City Development,Libraries  Arts & Heritage  ,Supplies and Services,Operational Materials,205,15/05/2019,1906-00732,0.00,26.08,R,Amazon.Co.Uk*mn5256vt4,Yes
Http://opendatacommunities.org/id/metropolitan-district-council/leeds,Leeds City Council,30/06/2019,City Development,Libraries  Arts & Heritage  ,Supplies and Services,Operational Materials,205,29/05/2019,1906-00733,0.00,2.49,R,Amazon.Co.Uk*mn55q6u84,Yes
Http://opendatacommunities.org/id/metropolitan-district-council/leeds,Leeds City Council,30/06/2019,Communities and Environment,Customer Access  ,Supplies and Services,Operational Materials,205,19/05/2019,1906-00734,0.00,19.84,R,Amazon.Co.Uk*mn5f46m34 Am,Yes
Http://opendatacommunities.org/id/metropolitan-district-council/leeds,Leeds City Council,30/06/2019,Resources and Housing,Strategy And Improvement  ,Supplies and Services,Operational Materials,205,17/05/2019,1906-00735,0.00,20.98,R,Amazon.Co.Uk*mn5g305s4,Yes
Http://opendatacommunities.org/id/metropolitan-district-council/leeds,Leeds City Council,30/06/2019,Children and Families,Learning  ,Supplies and Services,Office Consumables,210,16/05/2019,1906-00736,0.00,21.45,R,Amazon.Co.Uk*mn5k01mv4,Yes
Http://opendatacommunities.org/id/metropolitan-district-council/leeds,Leeds City Council,30/06/2019,Resources and Housing,Facilities Management  ,Supplies and Services,Operational Furniture And Equipment,203,06/05/2019,1906-00737,0.00,102.48,R,Amazon.Co.Uk*mn5tv0jh4,Yes
Http://opendatacommunities.org/id/metropolitan-district-council/leeds,Leeds City Council,30/06/2019,Communities and Environment,Benefits  Wlefare And Poverty  ,Supplies and Services,Other Hired And Contracted Services,265,01/05/2019,1906-00738,0.00,7.60,R,Amazon.Co.Uk*mn5vk44i4,Yes
Http://opendatacommunities.org/id/metropolitan-district-council/leeds,Leeds City Council,30/06/2019,Resources and Housing,Commercial Services  ,Supplies and Services,Office Consumables,210,01/05/2019,1906-00739,0.00,14.48,R,Amazon.Co.Uk*mn5w664r4 Am,Yes
Http://opendatacommunities.org/id/metropolitan-district-council/leeds,Leeds City Council,30/06/2019,Communities and Environment,Customer Access  ,Supplies and Services,Operational Furniture And Equipment,203,23/05/2019,1906-00740,0.00,61.06,R,Amazon.Co.Uk*mn5zc4sn4 Am,Yes
Http://opendatacommunities.org/id/metropolitan-district-council/leeds,Leeds City Council,30/06/2019,Children and Families,Social Care  ,Supplies and Services,Office Consumables,210,04/05/2019,1906-00741,0.00,25.00,R,Amazon.Co.Uk*mn60e5nj4,Yes
Http://opendatacommunities.org/id/metropolitan-district-council/leeds,Leeds City Council,30/06/2019,Children and Families,Social Care  ,Supplies and Services,Teaching Materials,202,23/05/2019,1906-00742,0.00,9.72,R,Amazon.Co.Uk*mn61g6dr4 Am,Yes
Http://opendatacommunities.org/id/metropolitan-district-council/leeds,Leeds City Council,30/06/2019,City Development,Recreation  ,Supplies and Services,Operational Furniture And Equipment,203,01/05/2019,1906-00743,0.00,13.73,R,Amazon.Co.Uk*mn66724c4,Yes
Http://opendatacommunities.org/id/metropolitan-district-council/leeds,Leeds City Council,30/06/2019,Children and Families,Partnerships & Health  ,Supplies and Services,Office Consumables,210,19/05/2019,1906-00744,0.00,12.48,R,Amazon.Co.Uk*mn67h8bo4,Yes
Http://opendatacommunities.org/id/metropolitan-district-council/leeds,Leeds City Council,30/06/2019,Communities and Environment,Benefits  Wlefare And Poverty  ,Supplies and Services,Office Furniture & Equipment,201,18/05/2019,1906-00745,0.00,16.49,R,Amazon.Co.Uk*mn6ac9hy4,Yes
Http://opendatacommunities.org/id/metropolitan-district-council/leeds,Leeds City Council,30/06/2019,Children and Families,Social Care  ,Supplies and Services,Office Furniture & Equipment,201,20/05/2019,1906-00746,0.00,25.40,R,Amazon.Co.Uk*mn6d22ve4,Yes
Http://opendatacommunities.org/id/metropolitan-district-council/leeds,Leeds City Council,30/06/2019,Children and Families,Learning  ,Supplies and Services,Teaching Materials,202,18/05/2019,1906-00747,0.00,19.58,R,Amazon.Co.Uk*mn6fv0hr4,Yes
Http://opendatacommunities.org/id/metropolitan-district-council/leeds,Leeds City Council,30/06/2019,Adults and Health,Public Health  ,Supplies and Services,Teaching Materials,202,02/05/2019,1906-00748,0.00,41.99,R,Amazon.Co.Uk*mn6hb74e4,Yes
Http://opendatacommunities.org/id/metropolitan-district-council/leeds,Leeds City Council,30/06/2019,City Development,Libraries  Arts & Heritage  ,Supplies and Services,Operational Materials,205,14/05/2019,1906-00749,0.00,15.09,R,Amazon.Co.Uk*mn6jd2xo4 Am,Yes
Http://opendatacommunities.org/id/metropolitan-district-council/leeds,Leeds City Council,30/06/2019,Adults and Health,Public Health  ,Supplies and Services,Office Consumables,210,14/05/2019,1906-00750,0.00,41.58,R,Amazon.Co.Uk*mn6jl4x84,Yes
Http://opendatacommunities.org/id/metropolitan-district-council/leeds,Leeds City Council,30/06/2019,City Development,Recreation  ,Supplies and Services,Office Furniture & Equipment,201,16/05/2019,1906-00751,0.00,14.87,R,Amazon.Co.Uk*mn6k39mk4,Yes
Http://opendatacommunities.org/id/metropolitan-district-council/leeds,Leeds City Council,30/06/2019,Children and Families,Social Care  ,Supplies and Services,Office Consumables,210,17/05/2019,1906-00752,0.00,19.48,R,Amazon.Co.Uk*mn6ky65k4,Yes
Http://opendatacommunities.org/id/metropolitan-district-council/leeds,Leeds City Council,30/06/2019,Adults and Health,Services For Older People - 65 And Over  ,Supplies and Services,Office Furniture & Equipment,201,12/05/2019,1906-00753,0.00,29.99,R,Amazon.Co.Uk*mn6of5pt4,Yes
Http://opendatacommunities.org/id/metropolitan-district-council/leeds,Leeds City Council,30/06/2019,City Development,Recreation  ,Supplies and Services,Other Hired And Contracted Services,265,12/05/2019,1906-00754,0.00,14.29,R,Amazon.Co.Uk*mn6ov0pn4,Yes
Http://opendatacommunities.org/id/metropolitan-district-council/leeds,Leeds City Council,30/06/2019,City Development,Libraries  Arts & Heritage  ,Supplies and Services,Operational Materials,205,14/05/2019,1906-00755,0.00,19.44,R,Amazon.Co.Uk*mn6th3pq4,Yes
Http://opendatacommunities.org/id/metropolitan-district-council/leeds,Leeds City Council,30/06/2019,Children and Families,Social Care  ,Supplies and Services,Operational Materials,205,16/05/2019,1906-00756,0.00,13.30,R,Amazon.Co.Uk*mn6vs0m24,Yes
Http://opendatacommunities.org/id/metropolitan-district-council/leeds,Leeds City Council,30/06/2019,City Development,Libraries  Arts & Heritage  ,Supplies and Services,Operational Materials,205,15/05/2019,1906-00757,0.00,11.67,R,Amazon.Co.Uk*mn6yb3xf4,Yes
Http://opendatacommunities.org/id/metropolitan-district-council/leeds,Leeds City Council,30/06/2019,Children and Families,Social Care  ,Supplies and Services,General Amenity For Clients/Residents,285,24/05/2019,1906-00758,0.00,39.98,R,Amazon.Co.Uk*mn77k0s94,Yes
Http://opendatacommunities.org/id/metropolitan-district-council/leeds,Leeds City Council,30/06/2019,Communities and Environment,Communities  ,Supplies and Services,Office Consumables,210,08/05/2019,1906-00759,0.00,22.49,R,Amazon.Co.Uk*mn7ln0em4,Yes
Http://opendatacommunities.org/id/metropolitan-district-council/leeds,Leeds City Council,30/06/2019,Communities and Environment,Customer Access  ,Supplies and Services,Office Consumables,210,30/05/2019,1906-00760,0.00,24.98,R,Amazon.Co.Uk*mn7m089l4,Yes
Http://opendatacommunities.org/id/metropolitan-district-council/leeds,Leeds City Council,30/06/2019,Communities and Environment,Customer Access  ,Supplies and Services,Office Consumables,210,06/05/2019,1906-00761,0.00,26.40,R,Amazon.Co.Uk*mn7th53y4,Yes
Http://opendatacommunities.org/id/metropolitan-district-council/leeds,Leeds City Council,30/06/2019,City Development,Recreation  ,Supplies and Services,Operational Materials,205,21/05/2019,1906-00762,0.00,16.00,R,Amazon.Co.Uk*mn89p5q54,Yes
Http://opendatacommunities.org/id/metropolitan-district-council/leeds,Leeds City Council,30/06/2019,City Development,Libraries  Arts & Heritage  ,Supplies and Services,Office Consumables,210,27/05/2019,1906-00763,0.00,12.22,R,Amazon.Co.Uk*mn8ak97h4,Yes
Http://opendatacommunities.org/id/metropolitan-district-council/leeds,Leeds City Council,30/06/2019,Adults and Health,Services For Older People - 65 And Over  ,Supplies and Services,Office Consumables,210,17/05/2019,1906-00764,0.00,8.72,R,Amazon.Co.Uk*mn8ba3hb4,Yes
Http://opendatacommunities.org/id/metropolitan-district-council/leeds,Leeds City Council,30/06/2019,Communities and Environment,Community Safety  ,Supplies and Services,Operational Furniture And Equipment,203,16/05/2019,1906-00765,0.00,35.04,R,Amazon.Co.Uk*mn8cg8mg4,Yes
Http://opendatacommunities.org/id/metropolitan-district-council/leeds,Leeds City Council,30/06/2019,Communities and Environment,Parks And Countryside  ,Supplies and Services,Food & Drink,231,20/05/2019,1906-00766,0.00,24.70,R,Amazon.Co.Uk*mn8g56bc4,Yes
Http://opendatacommunities.org/id/metropolitan-district-council/leeds,Leeds City Council,30/06/2019,Communities and Environment,Customer Access  ,Supplies and Services,Office Consumables,210,03/05/2019,1906-00767,0.00,141.15,R,Amazon.Co.Uk*mn8h30zb4 Am,Yes
Http://opendatacommunities.org/id/metropolitan-district-council/leeds,Leeds City Council,30/06/2019,Resources and Housing,Facilities Management  ,Supplies and Services,Operational Furniture And Equipment,203,30/04/2019,1906-00768,0.00,10.25,R,Amazon.Co.Uk*mn8l56fv4 Am,Yes
Http://opendatacommunities.org/id/metropolitan-district-council/leeds,Leeds City Council,30/06/2019,Resources and Housing,Technology  ,Supplies and Services,Operational Materials,205,08/05/2019,1906-00769,0.00,6.78,R,Amazon.Co.Uk*mn8le0ec4,Yes
